account_party,address,code,date,document_number,expense_code_name,expense_code_name_short,id,party_cell,party_cell_code,party_cell_geoobject,purpose,source_bank_account_number,source_bank_account_type,sum,target_legal_personality,target_legal_personality_code,target_type
УКРОП,"Київ, вулиця Михайла Грушевського, 1Д",70,2016-12-31,бн846,Банківські послуги,Інші витрати,372645,"Сумська обласна організація політичної партії ""Українське обʼєднання патріотів - УКРОП""",39945637,Сумська область,"комісія за обслуговування рахунку за грудень 2016р, згідно договору банківського рахунку від 26.08.2016р.",26000055016685,current,149.53,"ПАТ КБ ""Приватбанк""",14360570,юридична особа
УКРОП,Київ,84,2016-12-30,G1230V7J6Н,"Заробітна плата, премії","Заробітна плата, лікарняні, вагітності, відрядження, компенсації",373366,"Хмельницька обласна організація політичної партії ""Українське обʼєднання патріотів - УКРОП""",39933490,Хмельницька область,"на виплату заробітної плати за січень, лютий 2016 року",26001052423138,current,5825.27,Говдій Дмитро Васильович,,фізична особа
УКРОП,"Херсонська область, Херсон",84,2016-12-30,118,"Заробітна плата, премії","Заробітна плата, лікарняні, вагітності, відрядження, компенсації",372738,"Херсонська обласна організація політичної партії ""Українське обʼєднання патріотів - УКРОП""",39904145,Херсонська область,пререрахування коштів на виплату зар. плати за грудень 2016,26007052206397,current,3300.50,Богданов Віталій Володимирович,,фізична особа
УКРОП,"Київ, вулиця Михайла Грушевського, 1Д",70,2016-12-30,1590700009144,Банківські послуги,Інші витрати,372483,"Полтавська обласна організація політичної партії ""Українське обʼєднання патріотів - УКРОП""",39947896,Полтавська область,Оплата комісії за касове обслуговування по ПОРИПИ УКР. ОБ'ЄДНАННЯ ПАТР.-УКРОП.,26003054616293,current,2.93,"ПАТ КБ ""Приватбанк""",14360570,юридична особа
УКРОП,"Київ, вулиця Михайла Грушевського, 1Д",70,2016-12-30,С1230У716Н,Банківські послуги,Інші витрати,371363,"Хмельницька обласна організація політичної партії ""Українське обʼєднання патріотів - УКРОП""",39933490,Хмельницька область,еквайрингова комісія,26001052423138,current,45.00,"ПАТ КБ ""Приватбанк""",14360570,юридична особа
УКРОП,"Вінницька область, Вінницький район, Стрижавка",84,2016-12-29,Банківськавиписказа23.01.2016,"Заробітна плата, премії","Заробітна плата, лікарняні, вагітності, відрядження, компенсації",374217,"Вінницька обласна організація політичної партії ""Українське обʼєднання патріотів - УКРОП""",39901123,Вінницька область,відшкодування витрат по авансовим звітам,26002055324323,current,110.00,Зозуля Григорій Степанович,,фізична особа
УКРОП,"Київ, вулиця Гарматна, 31",60,2016-12-29,1108,Інші податки,Податкові платежі,374093,Центральний офіс,39479782,Київ,Державне мито за видачу патенту на промисловий зразок за заявкою N§2016 01800,26004052741642,current,17.00,УКДСУ у Соломʼянському районі м. Києва,38050812,юридична особа
УКРОП,"Київ, вулиця Гарматна, 31",60,2016-12-29,1105,Інші податки,Податкові платежі,374092,Центральний офіс,39479782,Київ,Державне мито за видачу патенту на промисловий зразок за заявкою N§2016 01795,26004052741642,current,17.00,УКДСУ у Соломʼянському районі м. Києва,38050812,юридична особа
УКРОП,"Київ, вулиця Гарматна, 31",60,2016-12-29,1102,Інші податки,Податкові платежі,374091,Центральний офіс,39479782,Київ,Державне мито за видачу патенту на промисловий зразок за заявкою N§2016 01798,26004052741642,current,17.00,УКДСУ у Соломʼянському районі м. Києва,38050812,юридична особа
УКРОП,"Київ, вулиця Гарматна, 31",60,2016-12-29,1099,Інші податки,Податкові платежі,374089,Центральний офіс,39479782,Київ,Державне мито за видачу патенту на промисловий зразок за заявкою N§2016 01796,26004052741642,current,17.00,УКДСУ у Соломʼянському районі м. Києва,38050812,юридична особа
УКРОП,"Київ, вулиця Гарматна, 31",60,2016-12-29,1096,Інші податки,Податкові платежі,374088,Центральний офіс,39479782,Київ,Державне мито за видачу патенту на промисловий зразок за заявкою N§2016 01799,26004052741642,current,17.00,УКДСУ у Соломʼянському районі м. Києва,38050812,юридична особа
УКРОП,"Київ, вулиця Гарматна, 31",60,2016-12-29,1093,Інші податки,Податкові платежі,374087,Центральний офіс,39479782,Київ,Державне мито за видачу патенту на промисловий зразок за заявкою N§2016 01797,26004052741642,current,17.00,УКДСУ у Соломʼянському районі м. Києва,38050812,юридична особа
УКРОП,"Київ, вулиця Гарматна, 31",60,2016-12-29,1090,Інші податки,Податкові платежі,374086,Центральний офіс,39479782,Київ,Державне мито за видачу патенту на промисловий зразок за заявкою N§2016 01794,26004052741642,current,17.00,УКДСУ у Соломʼянському районі м. Києва,38050812,юридична особа
УКРОП,"Київ, вулиця Гарматна, 31",60,2016-12-29,1087,Інші податки,Податкові платежі,374085,Центральний офіс,39479782,Київ,Державне мито за видачу патенту на промисловий зразок за заявкою N§2016 01793,26004052741642,current,17.00,УКДСУ у Соломʼянському районі м. Києва,38050812,юридична особа
УКРОП,"Сумська область, Суми, вулиця Троїцька, 8",61,2016-12-29,305,Військовий збір,Податкові платежі,373962,"Сумська обласна організація політичної партії ""Українське обʼєднання патріотів - УКРОП""",39945637,Сумська область,"військовий збір 1,5% із заробітної плати за другу половину грудня 2016р.",26000055016685,current,15.45,УДКСУ у м. Суми,37970593,юридична особа
УКРОП,"Полтавська область, Полтава, вулиця Шевченка, 1",61,2016-12-29,118,Військовий збір,Податкові платежі,373859,"Полтавська обласна організація політичної партії ""Українське обʼєднання патріотів - УКРОП""",39947896,Полтавська область,101 ;39947896; 1.5% військовий податок з зарплати за 2 половину грудня 2016 р.;;;,26003054616293,current,19.50,УДКСУ у м. Полтаві,38019510,юридична особа
УКРОП,"Сумська область, Суми, Покровська площа, 2",62,2016-12-29,304,Сплата ЄСВ,Податкові платежі,373735,"Сумська обласна організація політичної партії ""Українське обʼєднання патріотів - УКРОП""",39945637,Сумська область,єдиний внесок 22% на заробітну плату за другу половину грудня 2016р.,26000055016685,current,165.27,ДПІ у м. Сумах,39563287,юридична особа
УКРОП,"Полтавська область, Полтава, вулиця Європейська, 155",62,2016-12-29,116,Сплата ЄСВ,Податкові платежі,373638,"Полтавська обласна організація політичної партії ""Українське обʼєднання патріотів - УКРОП""",39947896,Полтавська область,"101:39947896; ЄСВ з зарплати за 2 половину грудня 2016 р. 22% - 374,00 грн. Перераховано повністю. ;;;",26003054616293,current,374.00,ДПІ у м. Полтава ГУ ДФС у Полтавській області,39680655,юридична особа
УКРОП,"Сумська область, Суми, вулиця Троїцька, 8",63,2016-12-29,303,Податок на доходи,Податкові платежі,373500,"Сумська обласна організація політичної партії ""Українське обʼєднання патріотів - УКРОП""",39945637,Сумська область,податок з доходу фізичних осіб із заробітної плати за другу половину грудня 2016р.,26000055016685,current,185.23,УДКСУ у м. Суми,37970593,юридична особа
УКРОП,"Полтавська область, Полтава, вулиця Шевченка, 1",63,2016-12-29,117,Податок на доходи,Податкові платежі,373399,"Полтавська обласна організація політичної партії ""Українське обʼєднання патріотів - УКРОП""",39947896,Полтавська область,101 ;39947896; Прибу тковий податок з заплати за 2 половину грудня 2016 року з найманих працівників партії. Перераховано повністю.;;;,26003054616293,current,109.98,УДКСУ у м. Полтаві,38019510,юридична особа
УКРОП,"Полтавська область, Полтавський район, Тахтаулове",84,2016-12-29,платіжнавідомість,"Заробітна плата, премії","Заробітна плата, лікарняні, вагітності, відрядження, компенсації",373313,"Полтавська обласна організація політичної партії ""Українське обʼєднання патріотів - УКРОП""",39947896,Полтавська область,заробітна плата за 2 половину грудня 2016 р.,26003054616293,current,786.51,Соловей Сергій Андрійович,,фізична особа
УКРОП,"Полтавська область, Полтавський район, Супрунівка",84,2016-12-29,платіжнавідомість,"Заробітна плата, премії","Заробітна плата, лікарняні, вагітності, відрядження, компенсації",373312,"Полтавська обласна організація політичної партії ""Українське обʼєднання патріотів - УКРОП""",39947896,Полтавська область,заробітна плата за 2 половину грудня 2016 р.,26003054616293,current,384.01,Вовченко Людмила Іванівна,,фізична особа
УКРОП,,84,2016-12-29,161229СТ955672,"Заробітна плата, премії","Заробітна плата, лікарняні, вагітності, відрядження, компенсації",372848,"Сумська обласна організація політичної партії ""Українське обʼєднання патріотів - УКРОП""",39945637,Сумська область,заробітна плата за другу половину грудня 2016р.,26000055016685,current,644.18,Чаленко Ольга Андріївна,,фізична особа
УКРОП,,84,2016-12-29,161229СТ955672,"Заробітна плата, премії","Заробітна плата, лікарняні, вагітності, відрядження, компенсації",372847,"Сумська обласна організація політичної партії ""Українське обʼєднання патріотів - УКРОП""",39945637,Сумська область,заробітна плата за другу половину грудня 2016р.,26000055016685,current,184.18,Луговий Владислав Віталійович,,фізична особа
УКРОП,"Київ, вулиця Михайла Грушевського, 1Д",70,2016-12-29,15А0800020188,Банківські послуги,Інші витрати,372527,"Херсонська обласна організація політичної партії ""Українське обʼєднання патріотів - УКРОП""",39904145,Херсонська область,Оплата комісії за касове обслуговування по ХОР ППГТ УОП Укроп,26007052206397,current,7.21,"ПАТ КБ ""Приватбанк""",14360570,юридична особа
УКРОП,"Київ, вулиця Михайла Грушевського, 1Д",70,2016-12-29,1229Ь5Мр8У89,Банківські послуги,Інші витрати,372456,Центральний офіс,39479782,Київ,"Комісія за виконання платежів в національній валюті, згідно з відкритою офертою банку N б/н від 01.07.2015 та тарифів банку, без ПДВ.",26004052741642,current,3.00,"ПАТ КБ ""Приватбанк""",14360570,юридична особа
УКРОП,"Київ, вулиця Михайла Грушевського, 1Д",70,2016-12-29,1229Ь5Мр8У88,Банківські послуги,Інші витрати,372455,Центральний офіс,39479782,Київ,"Комісія за виконання платежів в національній валюті, згідно з відкритою офертою банку N б/н від 01.07.2015 та тарифів банку, без ПДВ.",26004052741642,current,3.00,"ПАТ КБ ""Приватбанк""",14360570,юридична особа
УКРОП,"Київ, вулиця Михайла Грушевського, 1Д",70,2016-12-29,1229Ь5МдБУ87,Банківські послуги,Інші витрати,372454,Центральний офіс,39479782,Київ,"Комісія за виконання платежів в національній валюті, згідно з відкритою офертою банку N б/н від 01.07.2015 та тарифів банку, без ПДВ.",26004052741642,current,3.00,"ПАТ КБ ""Приватбанк""",14360570,юридична особа
УКРОП,"Київ, вулиця Михайла Грушевського, 1Д",70,2016-12-29,1229Ь5МдБУ86,Банківські послуги,Інші витрати,372453,Центральний офіс,39479782,Київ,"Комісія за виконання платежів в національній валюті, згідно з відкритою офертою банку N б/н від 01.07.2015 та тарифів банку, без ПДВ.",26004052741642,current,3.00,"ПАТ КБ ""Приватбанк""",14360570,юридична особа
УКРОП,"Київ, вулиця Михайла Грушевського, 1Д",70,2016-12-29,12295МХ85,Банківські послуги,Інші витрати,372452,Центральний офіс,39479782,Київ,"Комісія за викон. платежу 1095 від 29.12.2016, 100.00 в нац. валюті в післяопераційний час, згідно з відкритою офертою банку № б/н від 01.07.2015 без ПДВ",26004052741642,current,0.20,"ПАТ КБ ""Приватбанк""",14360570,юридична особа
УКРОП,"Київ, вулиця Михайла Грушевського, 1Д",70,2016-12-29,12295МХ84,Банківські послуги,Інші витрати,372451,Центральний офіс,39479782,Київ,"Комісія за викон. платежу 1088 від 29.12.2016, 1000.00 в нац. валюті в післяопераційний час, згідно з відкритою офертою банку № б/н від 01.07.2015 без ПДВ",26004052741642,current,2.00,"ПАТ КБ ""Приватбанк""",14360570,юридична особа
УКРОП,"Київ, вулиця Пушкінська, 21",76,2016-12-29,1086,Послуги зв’язку,Послуги зв’язку,372161,Центральний офіс,39479782,Київ,"За послуги ТБ+інтернет за січень 2017 р. згідно рах N 2958/16-12/ВК-965496320 від 30.11.2016р. У сумі 613.33 грн., ПДВ - 20 % 122.67 грн.",26004052741642,current,736.00,"ТОВ ""Воля-кабель""",30777913,юридична особа
УКРОП,"Київ, вулиця Глазунова, 1",60,2016-12-29,1110,Інші податки,Податкові платежі,371643,Центральний офіс,39479782,Київ,"Збір 22100, публікація про видачу патенту на промисловий зразок за заявкою N §2016 01800",26004052741642,current,100.00,"ДП ""УКРАЇНСЬКИЙ ІНСТИТУТ ІНТЕЛЕКТУАЛЬНОЇ ВЛАСНОСТІ""",31032378,юридична особа
УКРОП,"Київ, вулиця Глазунова, 1",60,2016-12-29,1109,Інші податки,Податкові платежі,371642,Центральний офіс,39479782,Київ,"Збір 21000, публікація про видачу патенту на промисловий зразок за заявкою N §2016 01800",26004052741642,current,250.00,"ДП ""УКРАЇНСЬКИЙ ІНСТИТУТ ІНТЕЛЕКТУАЛЬНОЇ ВЛАСНОСТІ""",31032378,юридична особа
УКРОП,"Київ, вулиця Глазунова, 1",60,2016-12-29,1107,Інші податки,Податкові платежі,371641,Центральний офіс,39479782,Київ,"Збір 22100, публікація про видачу патенту на промисловий зразок за заявкою N §2016 01795",26004052741642,current,100.00,"ДП ""УКРАЇНСЬКИЙ ІНСТИТУТ ІНТЕЛЕКТУАЛЬНОЇ ВЛАСНОСТІ""",31032378,юридична особа
УКРОП,"Київ, вулиця Глазунова, 1",60,2016-12-29,1106,Інші податки,Податкові платежі,371640,Центральний офіс,39479782,Київ,"Збір 21000, публікація про видачу патенту на промисловий зразок за заявкою N §2016 01795",26004052741642,current,1500.00,"ДП ""УКРАЇНСЬКИЙ ІНСТИТУТ ІНТЕЛЕКТУАЛЬНОЇ ВЛАСНОСТІ""",31032378,юридична особа
УКРОП,"Київ, вулиця Глазунова, 1",60,2016-12-29,1104,Інші податки,Податкові платежі,371639,Центральний офіс,39479782,Київ,"Збір 22100, публікація про видачу патенту на промисловий зразок за заявкою N §2016 01798",26004052741642,current,100.00,"ДП ""УКРАЇНСЬКИЙ ІНСТИТУТ ІНТЕЛЕКТУАЛЬНОЇ ВЛАСНОСТІ""",31032378,юридична особа
УКРОП,"Київ, вулиця Глазунова, 1",60,2016-12-29,1103,Інші податки,Податкові платежі,371638,Центральний офіс,39479782,Київ,"Збір 21000, публікація про видачу патенту на промисловий зразок за заявкою N §2016 01798",26004052741642,current,250.00,"ДП ""УКРАЇНСЬКИЙ ІНСТИТУТ ІНТЕЛЕКТУАЛЬНОЇ ВЛАСНОСТІ""",31032378,юридична особа
УКРОП,"Київ, вулиця Глазунова, 1",60,2016-12-29,1101,Інші податки,Податкові платежі,371637,Центральний офіс,39479782,Київ,"Збір 22100, публікація про видачу патенту на промисловий зразок за заявкою N §2016 01796",26004052741642,current,100.00,"ДП ""УКРАЇНСЬКИЙ ІНСТИТУТ ІНТЕЛЕКТУАЛЬНОЇ ВЛАСНОСТІ""",31032378,юридична особа
УКРОП,"Київ, вулиця Глазунова, 1",60,2016-12-29,1100,Інші податки,Податкові платежі,371636,Центральний офіс,39479782,Київ,"Збір 21000, публікація про видачу патенту на промисловий зразок за заявкою N §2016 01796",26004052741642,current,2600.00,"ДП ""УКРАЇНСЬКИЙ ІНСТИТУТ ІНТЕЛЕКТУАЛЬНОЇ ВЛАСНОСТІ""",31032378,юридична особа
УКРОП,"Київ, вулиця Глазунова, 1",60,2016-12-29,1098,Інші податки,Податкові платежі,371635,Центральний офіс,39479782,Київ,"Збір 22100, підтримання чинності патенту на промисловий зразок за заявкою N §2016 01799",26004052741642,current,100.00,"ДП ""УКРАЇНСЬКИЙ ІНСТИТУТ ІНТЕЛЕКТУАЛЬНОЇ ВЛАСНОСТІ""",31032378,юридична особа
УКРОП,"Київ, вулиця Глазунова, 1",60,2016-12-29,1097,Інші податки,Податкові платежі,371634,Центральний офіс,39479782,Київ,"Збір 21000, публікація про видачу патенту на промисловий зразок за заявкою N §2016 01799",26004052741642,current,150.00,"ДП ""УКРАЇНСЬКИЙ ІНСТИТУТ ІНТЕЛЕКТУАЛЬНОЇ ВЛАСНОСТІ""",31032378,юридична особа
УКРОП,"Київ, вулиця Глазунова, 1",60,2016-12-29,1095,Інші податки,Податкові платежі,371633,Центральний офіс,39479782,Київ,"Збір 22100, публікація про видачу патенту на промисловий зразок за заявкою N §2016 01797",26004052741642,current,100.00,"ДП ""УКРАЇНСЬКИЙ ІНСТИТУТ ІНТЕЛЕКТУАЛЬНОЇ ВЛАСНОСТІ""",31032378,юридична особа
УКРОП,"Київ, вулиця Глазунова, 1",60,2016-12-29,1094,Інші податки,Податкові платежі,371632,Центральний офіс,39479782,Київ,"Збір 21000, публікація про видачу патенту на промисловий зразок за заявкою N §2016 01797",26004052741642,current,750.00,"ДП ""УКРАЇНСЬКИЙ ІНСТИТУТ ІНТЕЛЕКТУАЛЬНОЇ ВЛАСНОСТІ""",31032378,юридична особа
УКРОП,"Київ, вулиця Глазунова, 1",60,2016-12-29,1092,Інші податки,Податкові платежі,371631,Центральний офіс,39479782,Київ,"Збір 22100, публікація про видачу патенту на промисловий зразок за заявкою N §2016 01794",26004052741642,current,100.00,"ДП ""УКРАЇНСЬКИЙ ІНСТИТУТ ІНТЕЛЕКТУАЛЬНОЇ ВЛАСНОСТІ""",31032378,юридична особа
УКРОП,"Київ, вулиця Глазунова, 1",60,2016-12-29,1091,Інші податки,Податкові платежі,371630,Центральний офіс,39479782,Київ,"Збір 21000, публікація про видачу патенту на промисловий зразок за заявкою N §2016 01794",26004052741642,current,2000.00,"ДП ""УКРАЇНСЬКИЙ ІНСТИТУТ ІНТЕЛЕКТУАЛЬНОЇ ВЛАСНОСТІ""",31032378,юридична особа
УКРОП,"Київ, вулиця Глазунова, 1",60,2016-12-29,1089,Інші податки,Податкові платежі,371628,Центральний офіс,39479782,Київ,"Збір 22100, публікація про видачу патенту на промисловий зразок за заявкою N §2016 01793",26004052741642,current,100.00,"ДП ""УКРАЇНСЬКИЙ ІНСТИТУТ ІНТЕЛЕКТУАЛЬНОЇ ВЛАСНОСТІ""",31032378,юридична особа
УКРОП,"Київ, вулиця Глазунова, 1",60,2016-12-29,1088,Інші податки,Податкові платежі,371627,Центральний офіс,39479782,Київ,"Збір 21000, публікація про видачу патенту на промисловий зразок за заявкою N §2016 01793",26004052741642,current,1000.00,"ДП ""УКРАЇНСЬКИЙ ІНСТИТУТ ІНТЕЛЕКТУАЛЬНОЇ ВЛАСНОСТІ""",31032378,юридична особа
УКРОП,"Київ, вулиця Антоновича, 112, 40",75,2016-12-29,1084,Поштові послуги та поширення друкованих матеріалів,Поштові послуги та поширення друкованих матеріалів,371594,Центральний офіс,39479782,Київ,Оплата за послуги з доставки газет згідно рах 2312/01 від 23.12.2016 р. Без ПДВ,26004052741642,current,20077.00,"ТОВ ""ЕКСПЕРТ-СЕРВІС""",31863950,юридична особа
УКРОП,"Київ, вулиця Михайла Грушевського, 1Д",70,2016-12-29,1229Ь5МР№Х,Банківські послуги,Інші витрати,371096,Центральний офіс,39479782,Київ,"Комісія за викон. платежу 1107 від 29.12.2016, 100.00 в нац. валюті в післяопераційний час, згідно з відкритою офертою банку № б/н від 01.07.2015 без ПДВ",26004052741642,current,0.20,"ПАТ КБ ""Приватбанк""",14360570,юридична особа
УКРОП,"Київ, вулиця Михайла Грушевського, 1Д",70,2016-12-29,1229Ь5МР№У,Банківські послуги,Інші витрати,371095,Центральний офіс,39479782,Київ,"Комісія за виконання платежів в національній валюті, згідно з відкритою офертою банку N б/н від 01.07.2015 та тарифів банку, без ПДВ.",26004052741642,current,3.00,"ПАТ КБ ""Приватбанк""",14360570,юридична особа
УКРОП,"Київ, вулиця Михайла Грушевського, 1Д",70,2016-12-29,1229Ь5МРЦХ,Банківські послуги,Інші витрати,371094,Центральний офіс,39479782,Київ,"Комісія за викон. платежу 1101 від 29.12.2016, 100.00 в нац. валюті в післяопераційний час, згідно з відкритою офертою банку № б/н від 01.07.2015 без ПДВ",26004052741642,current,0.20,"ПАТ КБ ""Приватбанк""",14360570,юридична особа
УКРОП,"Київ, вулиця Михайла Грушевського, 1Д",70,2016-12-29,1229Ь5Мр9У,Банківські послуги,Інші витрати,371093,Центральний офіс,39479782,Київ,"Комісія за виконання платежів в національній валюті, згідно з відкритою офертою банку N б/н від 01.07.2015 та тарифів банку, без ПДВ.",26004052741642,current,3.00,"ПАТ КБ ""Приватбанк""",14360570,юридична особа
УКРОП,"Київ, вулиця Михайла Грушевського, 1Д",70,2016-12-29,1229Ь5Мр5У,Банківські послуги,Інші витрати,371092,Центральний офіс,39479782,Київ,"Комісія за виконання платежів в національній валюті, згідно з відкритою офертою банку N б/н від 01.07.2015 та тарифів банку, без ПДВ.",26004052741642,current,3.00,"ПАТ КБ ""Приватбанк""",14360570,юридична особа
УКРОП,"Київ, вулиця Михайла Грушевського, 1Д",70,2016-12-29,1229Ь5Мр2У,Банківські послуги,Інші витрати,371091,Центральний офіс,39479782,Київ,"Комісія за виконання платежів в національній валюті, згідно з відкритою офертою банку N б/н від 01.07.2015 та тарифів банку, без ПДВ.",26004052741642,current,3.00,"ПАТ КБ ""Приватбанк""",14360570,юридична особа
УКРОП,"Київ, вулиця Михайла Грушевського, 1Д",70,2016-12-29,1229Ь5Мр1У,Банківські послуги,Інші витрати,371090,Центральний офіс,39479782,Київ,"Комісія за виконання платежів в національній валюті, згідно з відкритою офертою банку N б/н від 01.07.2015 та тарифів банку, без ПДВ.",26004052741642,current,3.00,"ПАТ КБ ""Приватбанк""",14360570,юридична особа
УКРОП,"Київ, вулиця Михайла Грушевського, 1Д",70,2016-12-29,1229Ь5Мр0У,Банківські послуги,Інші витрати,371089,Центральний офіс,39479782,Київ,"Комісія за виконання платежів в національній валюті, згідно з відкритою офертою банку N б/н від 01.07.2015 та тарифів банку, без ПДВ.",26004052741642,current,3.00,"ПАТ КБ ""Приватбанк""",14360570,юридична особа
УКРОП,"Київ, вулиця Михайла Грушевського, 1Д",70,2016-12-29,1229Ь5МдЬ¥,Банківські послуги,Інші витрати,371088,Центральний офіс,39479782,Київ,"Комісія за виконання платежів в національній валюті, згідно з відкритою офертою банку N б/н від 01.07.2015 та тарифів банку, без ПДВ.",26004052741642,current,3.00,"ПАТ КБ ""Приватбанк""",14360570,юридична особа
УКРОП,"Київ, вулиця Михайла Грушевського, 1Д",70,2016-12-29,1229Ь5Мдр¥,Банківські послуги,Інші витрати,371087,Центральний офіс,39479782,Київ,"Комісія за виконання платежів в національній валюті, згідно з відкритою офертою банку N б/н від 01.07.2015 та тарифів банку, без ПДВ.",26004052741642,current,3.00,"ПАТ КБ ""Приватбанк""",14360570,юридична особа
УКРОП,"Київ, вулиця Михайла Грушевського, 1Д",70,2016-12-29,1229Ь5МдОТ,Банківські послуги,Інші витрати,371086,Центральний офіс,39479782,Київ,"Комісія за виконання платежів в національній валюті, згідно з відкритою офертою банку N б/н від 01.07.2015 та тарифів банку, без ПДВ.",26004052741642,current,3.00,"ПАТ КБ ""Приватбанк""",14360570,юридична особа
УКРОП,"Київ, вулиця Михайла Грушевського, 1Д",70,2016-12-29,1229Ь5МдО¥,Банківські послуги,Інші витрати,371085,Центральний офіс,39479782,Київ,"Комісія за виконання платежів в національній валюті, згідно з відкритою офертою банку N б/н від 01.07.2015 та тарифів банку, без ПДВ.",26004052741642,current,3.00,"ПАТ КБ ""Приватбанк""",14360570,юридична особа
УКРОП,"Київ, вулиця Михайла Грушевського, 1Д",70,2016-12-29,1229Ь5МдКХ,Банківські послуги,Інші витрати,371084,Центральний офіс,39479782,Київ,"Комісія за викон. платежу 1098 від 29.12.2016, 100.00 в нац. валюті в післяопераційний час, згідно з відкритою офертою банку № б/н від 01.07.2015 без ПДВ",26004052741642,current,0.20,"ПАТ КБ ""Приватбанк""",14360570,юридична особа
УКРОП,"Київ, вулиця Михайла Грушевського, 1Д",70,2016-12-29,1229Ь5МдКУ,Банківські послуги,Інші витрати,371083,Центральний офіс,39479782,Київ,"Комісія за виконання платежів в національній валюті, згідно з відкритою офертою банку N б/н від 01.07.2015 та тарифів банку, без ПДВ.",26004052741642,current,3.00,"ПАТ КБ ""Приватбанк""",14360570,юридична особа
УКРОП,"Київ, вулиця Михайла Грушевського, 1Д",70,2016-12-29,1229Ь2ІБЛУ,Банківські послуги,Інші витрати,371082,Центральний офіс,39479782,Київ,"Комісія за виконання платежів в національній валюті, згідно з відкритою офертою банку N б/н від 01.07.2015 та тарифів банку, без ПДВ.",26004052741642,current,3.00,"ПАТ КБ ""Приватбанк""",14360570,юридична особа
УКРОП,"Київ, вулиця Михайла Грушевського, 1Д",70,2016-12-29,1229ЦК5ІУ,Банківські послуги,Інші витрати,371081,"Полтавська обласна організація політичної партії ""Українське обʼєднання патріотів - УКРОП""",39947896,Полтавська область,"Комісія за виконання платежів в національній валюті, згідно з відкритою офертою банку N б/н від 21.08.2015 та тарифів банку, без ПДВ.",26003054616293,current,3.00,"ПАТ КБ ""Приватбанк""",14360570,юридична особа
УКРОП,"Київ, вулиця Михайла Грушевського, 1Д",70,2016-12-29,1229П1К60У,Банківські послуги,Інші витрати,371080,"Полтавська обласна організація політичної партії ""Українське обʼєднання патріотів - УКРОП""",39947896,Полтавська область,"Комісія за виконання платежів в національній валюті, згідно з відкритою офертою банку N б/н від 21.08.2015 та тарифів банку, без ПДВ.",26003054616293,current,3.00,"ПАТ КБ ""Приватбанк""",14360570,юридична особа
УКРОП,"Київ, вулиця Михайла Грушевського, 1Д",70,2016-12-29,1229Б5МРХХ,Банківські послуги,Інші витрати,371079,Центральний офіс,39479782,Київ,"Комісія за викон. платежу 1100 від 29.12.2016, 2600.00 в нац. валюті в післяопераційний час, згідно з відкритою офертою банку № б/н від 01.07.2015 без ПДВ",26004052741642,current,5.20,"ПАТ КБ ""Приватбанк""",14360570,юридична особа
УКРОП,"Київ, вулиця Михайла Грушевського, 1Д",70,2016-12-29,1229Б5МРХУ,Банківські послуги,Інші витрати,371078,Центральний офіс,39479782,Київ,"Комісія за виконання платежів в національній валюті, згідно з відкритою офертою банку N б/н від 01.07.2015 та тарифів банку, без ПДВ.",26004052741642,current,3.00,"ПАТ КБ ""Приватбанк""",14360570,юридична особа
УКРОП,"Київ, вулиця Михайла Грушевського, 1Д",70,2016-12-29,1229Б5МРУУ,Банківські послуги,Інші витрати,371077,Центральний офіс,39479782,Київ,"Комісія за виконання платежів в національній валюті, згідно з відкритою офертою банку N б/н від 01.07.2015 та тарифів банку, без ПДВ.",26004052741642,current,3.00,"ПАТ КБ ""Приватбанк""",14360570,юридична особа
УКРОП,"Київ, вулиця Михайла Грушевського, 1Д",70,2016-12-29,1229Б5МРИУ,Банківські послуги,Інші витрати,371076,Центральний офіс,39479782,Київ,"Комісія за виконання платежів в національній валюті, згідно з відкритою офертою банку N б/н від 01.07.2015 та тарифів банку, без ПДВ.",26004052741642,current,3.00,"ПАТ КБ ""Приватбанк""",14360570,юридична особа
УКРОП,"Київ, вулиця Михайла Грушевського, 1Д",70,2016-12-29,1229Б5МР2У,Банківські послуги,Інші витрати,371075,Центральний офіс,39479782,Київ,"Комісія за виконання платежів в національній валюті, згідно з відкритою офертою банку N б/н від 01.07.2015 та тарифів банку, без ПДВ.",26004052741642,current,3.00,"ПАТ КБ ""Приватбанк""",14360570,юридична особа
УКРОП,"Київ, вулиця Михайла Грушевського, 1Д",70,2016-12-29,12295МРХ,Банківські послуги,Інші витрати,371074,Центральний офіс,39479782,Київ,"Комісія за виконання платежів в національній валюті, згідно з відкритою офертою банку N б/н від 01.07.2015 та тарифів банку, без ПДВ.",26004052741642,current,3.00,"ПАТ КБ ""Приватбанк""",14360570,юридична особа
УКРОП,"Київ, вулиця Михайла Грушевського, 1Д",70,2016-12-29,12295МР¥,Банківські послуги,Інші витрати,371073,Центральний офіс,39479782,Київ,"Комісія за викон. платежу 1106 від 29.12.2016, 1500.00 в нац. валюті в післяопераційний час, згідно з відкритою офертою банку № б/н від 01.07.2015 без ПДВ",26004052741642,current,3.00,"ПАТ КБ ""Приватбанк""",14360570,юридична особа
УКРОП,"Київ, вулиця Михайла Грушевського, 1Д",70,2016-12-29,12295МОХ,Банківські послуги,Інші витрати,371072,Центральний офіс,39479782,Київ,"Комісія за викон. платежу 1097 від 29.12.2016, 150.00 в нац. валюті в післяопераційний час, згідно з відкритою офертою банку № б/н від 01.07.2015 без ПДВ",26004052741642,current,0.30,"ПАТ КБ ""Приватбанк""",14360570,юридична особа
УКРОП,"Київ, вулиця Михайла Грушевського, 1Д",70,2016-12-29,12295МНХ,Банківські послуги,Інші витрати,371071,Центральний офіс,39479782,Київ,"Комісія за викон. платежу 1094 від 29.12.2016, 750.00 в нац. валюті в післяопераційний час, згідно з відкритою офертою банку № б/н від 01.07.2015 без ПДВ",26004052741642,current,1.50,"ПАТ КБ ""Приватбанк""",14360570,юридична особа
УКРОП,"Київ, вулиця Михайла Грушевського, 1Д",70,2016-12-29,12295МН¥,Банківські послуги,Інші витрати,371070,Центральний офіс,39479782,Київ,"Комісія за виконання платежів в національній валюті, згідно з відкритою офертою банку N б/н від 01.07.2015 та тарифів банку, без ПДВ.",26004052741642,current,3.00,"ПАТ КБ ""Приватбанк""",14360570,юридична особа
УКРОП,"Київ, вулиця Михайла Грушевського, 1Д",70,2016-12-29,12295МКХ,Банківські послуги,Інші витрати,371069,Центральний офіс,39479782,Київ,"Комісія за викон. платежу 1089 від 29.12.2016, 100.00 в нац. валюті в післяопераційний час, згідно з відкритою офертою банку № б/н від 01.07.2015 без ПДВ",26004052741642,current,0.20,"ПАТ КБ ""Приватбанк""",14360570,юридична особа
УКРОП,"Київ, вулиця Михайла Грушевського, 1Д",70,2016-12-29,12295МК¥,Банківські послуги,Інші витрати,371068,Центральний офіс,39479782,Київ,"Комісія за виконання платежів в національній валюті, згідно з відкритою офертою банку N б/н від 01.07.2015 та тарифів банку, без ПДВ.",26004052741642,current,3.00,"ПАТ КБ ""Приватбанк""",14360570,юридична особа
УКРОП,"Київ, вулиця Михайла Грушевського, 1Д",70,2016-12-29,12295МІХ,Банківські послуги,Інші витрати,371067,Центральний офіс,39479782,Київ,"Комісія за викон. платежу 1110 від 29.12.2016, 100.00 в нац. валюті в післяопераційний час, згідно з відкритою офертою банку № б/н від 01.07.2015 без ПДВ",26004052741642,current,0.20,"ПАТ КБ ""Приватбанк""",14360570,юридична особа
УКРОП,"Київ, вулиця Михайла Грушевського, 1Д",70,2016-12-29,12295МІ¥,Банківські послуги,Інші витрати,371066,Центральний офіс,39479782,Київ,"Комісія за виконання платежів в національній валюті, згідно з відкритою офертою банку N б/н від 01.07.2015 та тарифів банку, без ПДВ.",26004052741642,current,3.00,"ПАТ КБ ""Приватбанк""",14360570,юридична особа
УКРОП,"Київ, вулиця Михайла Грушевського, 1Д",70,2016-12-29,12295МЕ¥,Банківські послуги,Інші витрати,371065,Центральний офіс,39479782,Київ,"Комісія за виконання платежів в національній валюті, згідно з відкритою офертою банку N б/н від 01.07.2015 та тарифів банку, без ПДВ.",26004052741642,current,3.00,"ПАТ КБ ""Приватбанк""",14360570,юридична особа
УКРОП,"Київ, вулиця Михайла Грушевського, 1Д",70,2016-12-29,12295М9Х,Банківські послуги,Інші витрати,371064,Центральний офіс,39479782,Київ,"Комісія за викон. платежу 1097 від 29.12.2016, 2000.00 в нац. валюті в післяопераційний час, згідно з відкритою офертою банку № б/н від 01.07.2015 без ПДВ",26004052741642,current,4.00,"ПАТ КБ ""Приватбанк""",14360570,юридична особа
УКРОП,"Київ, вулиця Михайла Грушевського, 1Д",70,2016-12-29,12295М8Х,Банківські послуги,Інші витрати,371063,Центральний офіс,39479782,Київ,"Комісія за викон. платежу 1103 від 29.12.2016, 250.00 в нац. валюті в післяопераційний час, згідно з відкритою офертою банку № б/н від 01.07.2015 без ПДВ",26004052741642,current,0.50,"ПАТ КБ ""Приватбанк""",14360570,юридична особа
УКРОП,"Київ, вулиця Михайла Грушевського, 1Д",70,2016-12-29,12295М5Х,Банківські послуги,Інші витрати,371062,Центральний офіс,39479782,Київ,"Комісія за викон. платежу 1104 від 29.12.2016, 100.00 в нац. валюті в післяопераційний час, згідно з відкритою офертою банку № б/н від 01.07.2015 без ПДВ",26004052741642,current,0.20,"ПАТ КБ ""Приватбанк""",14360570,юридична особа
УКРОП,"Київ, вулиця Михайла Грушевського, 1Д",70,2016-12-29,12295М2Х,Банківські послуги,Інші витрати,371061,Центральний офіс,39479782,Київ,"Комісія за викон. платежу 1109 від 29.12.2016, 250.00 в нац. валюті в післяопераційний час, згідно з відкритою офертою банку № б/н від 01.07.2015 без ПДВ",26004052741642,current,0.50,"ПАТ КБ ""Приватбанк""",14360570,юридична особа
УКРОП,"Київ, вулиця Михайла Грушевського, 1Д",70,2016-12-29,12295М1Х,Банківські послуги,Інші витрати,371060,Центральний офіс,39479782,Київ,"Комісія за викон. платежу 1092 від 29.12.2016, 100.00 в нац. валюті в післяопераційний час, згідно з відкритою офертою банку № б/н від 01.07.2015 без ПДВ",26004052741642,current,0.20,"ПАТ КБ ""Приватбанк""",14360570,юридична особа
УКРОП,"Київ, вулиця Михайла Грушевського, 1Д",70,2016-12-29,12291.1К5АУ,Банківські послуги,Інші витрати,371059,"Полтавська обласна організація політичної партії ""Українське обʼєднання патріотів - УКРОП""",39947896,Полтавська область,"Комісія за виконання платежів в національній валюті, зг ідно з відкритою офертою банку N б/н від 21.08.2015 та тарифів банку, без ПДВ.",26003054616293,current,3.00,"ПАТ КБ ""Приватбанк""",14360570,юридична особа
УКРОП,"Київ, вулиця Михайла Грушевського, 1Д",70,2016-12-29,1085,Банківські послуги,Інші витрати,370859,Центральний офіс,39479782,Київ,"Оплата за інформаційно-консультаційні послуги з обробки документів згідно рах. N 77896 від 02.12.2016 р. У сумі 666.67 грн., ПДВ -20 % 133.33 грн.",26004052741642,current,800.00,"ПАТ КБ ""Приватбанк""",14360570,юридична особа
УКРОП,"Київ, вулиця Михайла Грушевського, 1Д",70,2016-12-29,11,Банківські послуги,Інші витрати,370109,"Львівська обласна організація політичної партії ""Українське обʼєднання патріотів - УКРОП""",39923503,Львівська область,РКО,26001053838223,current,14.83,"ПАТ КБ ""Приватбанк""",14360570,юридична особа
УКРОП,"Львівська область, Львів, вулиця Джохара Дудаєва, 19",61,2016-12-28,76,Військовий збір,Податкові платежі,374030,"Львівська обласна організація політичної партії ""Українське обʼєднання патріотів - УКРОП""",39923503,Львівська область,"ВЗ 1,5% за 12.2016 р.",26001053838223,current,109.00,УДКСУ у Галицькому районі м. Львова,,юридична особа
УКРОП,"Київська обл., Вишгородський район, Вишгород, вулиця Кургузова, 12",61,2016-12-28,214,Військовий збір,Податкові платежі,373936,"Київська обласна організація політичної партії ""Українське обʼєднання патріотів - УКРОП""",39949818,Київська область,101;39949818; Військовий збір із з/пл за 12/2016 утриман та перерахован повністю. Без ПДВ;;;,26003052766800,current,43.36,УДКСУ у Вишгородському районі Київської області,37868556,юридична особа
УКРОП,"Херсонська область, Херсон, провулок Козацький, 10",61,2016-12-28,119,Військовий збір,Податкові платежі,373860,"Херсонська обласна організація політичної партії ""Українське обʼєднання патріотів - УКРОП""",39904145,Херсонська область,військовий збір за грудень 2016,26007052206397,current,61.50,УДКСУ у м. Херсон,37959779,юридична особа
УКРОП,"Львівська область, Львів, вулиця Стрийська, 35",62,2016-12-28,77,Сплата ЄСВ,Податкові платежі,373788,"Львівська обласна організація політичної партії ""Українське обʼєднання патріотів - УКРОП""",39923503,Львівська область,ЄСВ 22% з ЗП за 12.2016 р.,26001053838223,current,1588.00,Галицька ОДПІ ГУ ДФС у Львівській області,39508163,юридична особа
УКРОП,"Київська обл., Вишгородський район, Вишгород, проспект Шевченка, 1",62,2016-12-28,213,Сплата ЄСВ,Податкові платежі,373713,"Київська обласна організація політичної партії ""Українське обʼєднання патріотів - УКРОП""",39949818,Київська область,101;39949818;ЕСВ 22% на з/пл за 12/2016 р нарахован та перерахован повністю .;;;,26003052766800,current,635.91,Вишгородська ОДПІ ГУ ДФС у Київській області,39466569,юридична особа
УКРОП,"Херсонська область, Херсон, вулиця Іллюши Кулика, 143А",62,2016-12-28,120,Сплата ЄСВ,Податкові платежі,373643,"Херсонська обласна організація політичної партії ""Українське обʼєднання патріотів - УКРОП""",39904145,Херсонська область,ЄСВ 22% за грудень 2016,26007052206397,current,902.00,Херсонська ОДПІ ГУ ДФС у Херсонській області,39473382,юридична особа
УКРОП,"Львівська область, Львів, вулиця Джохара Дудаєва, 19",63,2016-12-28,75,Податок на доходи,Податкові платежі,373567,"Львівська обласна організація політичної партії ""Українське обʼєднання патріотів - УКРОП""",39923503,Львівська область,ПДФО за 12.2016 р.,26001053838223,current,1175.00,УДКСУ у Галицькому районі м. Львова,38007573,юридична особа
УКРОП,"Київська обл., Вишгородський район, Вишгород, вулиця Кургузова, 12",63,2016-12-28,212,Податок на доходи,Податкові платежі,373473,"Київська обласна організація політичної партії ""Українське обʼєднання патріотів - УКРОП""",39949818,Київська область,101;39949818; ПДФО із з/пл за 12/2016 утриман та перерахован повністю. Без ПДВ;;;,26003052766800,current,272.13,УДКСУ у Вишгородському районі Київської області,37868556,юридична особа
УКРОП,"Херсонська область, Херсон, провулок Козацький, 10",63,2016-12-28,102,Податок на доходи,Податкові платежі,373378,"Херсонська обласна організація політичної партії ""Українське обʼєднання патріотів - УКРОП""",39904145,Херсонська область,податок на доходи працівників за грудень 2016,26007052206397,current,738.00,УДКСУ у м. Херсон,37959779,юридична особа
УКРОП,"Львівська область, Львів",84,2016-12-28,78,"Заробітна плата, премії","Заробітна плата, лікарняні, вагітності, відрядження, компенсації",372995,"Львівська обласна організація політичної партії ""Українське обʼєднання патріотів - УКРОП""",39923503,Львівська область,запрплата за 12.2016,26001053838223,current,929.02,Білошевська Наталія Миколаївна,,фізична особа
УКРОП,"Львівська область, Львів",84,2016-12-28,78,"Заробітна плата, премії","Заробітна плата, лікарняні, вагітності, відрядження, компенсації",372994,"Львівська обласна організація політичної партії ""Українське обʼєднання патріотів - УКРОП""",39923503,Львівська область,запрплата за 12.2016,26001053838223,current,5003.08,Батенко Катерина Миколаївна,,фізична особа
УКРОП,"Житомирська область, Андрушівський район, Новоівницьке",84,2016-12-28,215,"Заробітна плата, премії","Заробітна плата, лікарняні, вагітності, відрядження, компенсації",372894,"Київська обласна організація політичної партії ""Українське обʼєднання патріотів - УКРОП""",39949818,Київська область,Зарплата за грудень 2016р.,26003052766800,current,882.77,Чугунова Оксана Василівна,,фізична особа
УКРОП,"Київська обл., Києво-Святошинський район, Святопетрівське",84,2016-12-28,215,"Заробітна плата, премії","Заробітна плата, лікарняні, вагітності, відрядження, компенсації",372893,"Київська обласна організація політичної партії ""Українське обʼєднання патріотів - УКРОП""",39949818,Київська область,Зарплата за грудень 2016р.,26003052766800,current,849.00,Реган Павло Леонідович,,фізична особа
УКРОП,"Київська обл., Києво-Святошинський район, Дмитрівка",84,2016-12-28,215,"Заробітна плата, премії","Заробітна плата, лікарняні, вагітності, відрядження, компенсації",372892,"Київська обласна організація політичної партії ""Українське обʼєднання патріотів - УКРОП""",39949818,Київська область,Зарплата за грудень 2016р.,26003052766800,current,843.08,Козак Микола Миколайович,,фізична особа
УКРОП,"Київ, вулиця Михайла Грушевського, 1Д",70,2016-12-28,216295,Банківські послуги,Інші витрати,372550,"Київська обласна організація політичної партії ""Українське обʼєднання патріотів - УКРОП""",39949818,Київська область,Комісія РКО від зарплати за грудень 2016р.,26003052766800,current,6.44,"ПАТ КБ ""Приватбанк""",14360570,юридична особа
УКРОП,"Львівська область, Львів, вулиця Січових Стрільців, 5",79,2016-12-28,79,"Оренда будинків і приміщень та експлуатаційні витрати (прибирання, страхування орендованих будинків, охорона, сигналізація, ремонт, вивіз сміття, тощо)",Оренда нерухомості,372064,"Львівська обласна організація політичної партії ""Українське обʼєднання патріотів - УКРОП""",39923503,Львівська область,оренда приміщення за 01.2017,26001053838223,current,5000.00,Савельєва Людмила Анатоліївна,2577216304,фізична особа
УКРОП,"Київ, вулиця Хрещатик, 22",74,2016-12-28,9950,"Придбання канцтоварів, паперу, інших предметів і матеріалів, а також госп товари",Придбання канцтоварів та госп. товарів,371517,"Хмельницька обласна організація політичної партії ""Українське обʼєднання патріотів - УКРОП""",39933490,Хмельницька область,Оплата за поштові марки,26001052423138,current,174.73,"ПАТ ""Укрпошта""",21560045,юридична особа
УКРОП,"Київ, вулиця Михайла Грушевського, 1Д",70,2016-12-28,488,Банківські послуги,Інші витрати,371133,"Херсонська обласна організація політичної партії ""Українське обʼєднання патріотів - УКРОП""",39904145,Херсонська область,Погашення заборгованості за розрахункове- касове обслуговування згідно угод РКО б/н від,26007052206397,current,81.79,"ПАТ КБ ""Приватбанк""",14360570,юридична особа
УКРОП,"Київ, вулиця Михайла Грушевського, 1Д",70,2016-12-28,1228Ь001ХУ,Банківські послуги,Інші витрати,371057,"Київська обласна організація політичної партії ""Українське обʼєднання патріотів - УКРОП""",39949818,Київська область,"Комісія за виконання платежів в національній валюті, згідно з відкритою офертою банку N б/н від 21.08.2015 та тарифів банку, без ПДВ.",26003052766800,current,3.00,"ПАТ КБ ""Приватбанк""",14360570,юридична особа
УКРОП,"Київ, вулиця Михайла Грушевського, 1Д",70,2016-12-28,1228Ь0012У,Банківські послуги,Інші витрати,371056,"Київська обласна організація політичної партії ""Українське обʼєднання патріотів - УКРОП""",39949818,Київська область,"Комісія за виконання платежів в національній валюті, згідно з відкритою офертою банку N б/н від 21.08.2015 та тарифів банку, без ПДВ.",26003052766800,current,3.00,"ПАТ КБ ""Приватбанк""",14360570,юридична особа
УКРОП,"Київ, вулиця Михайла Грушевського, 1Д",70,2016-12-28,1228Т2ХОЗУ,Банківські послуги,Інші витрати,371055,"Херсонська обласна організація політичної партії ""Українське обʼєднання патріотів - УКРОП""",39904145,Херсонська область,"Комісії за виконання платежів в національній валюті, згідно з відкритою офертою банку № б/н",26007052206397,current,3.00,"ПАТ КБ ""Приватбанк""",14360570,юридична особа
УКРОП,"Київ, вулиця Михайла Грушевського, 1Д",70,2016-12-28,1228Б2ХПСУ,Банківські послуги,Інші витрати,371054,"Херсонська обласна організація політичної партії ""Українське обʼєднання патріотів - УКРОП""",39904145,Херсонська область,"Комісії за виконання платежів в національній валюті, згідно з відкритою офертою банку № б/н",26007052206397,current,3.00,"ПАТ КБ ""Приватбанк""",14360570,юридична особа
УКРОП,"Київ, вулиця Михайла Грушевського, 1Д",70,2016-12-28,1228Б2ХЕОУ,Банківські послуги,Інші витрати,371053,"Херсонська обласна організація політичної партії ""Українське обʼєднання патріотів - УКРОП""",39904145,Херсонська область,"Комісії за виконання платежів в національній валюті, згідно з відкритою офертою банку № б/н",26007052206397,current,3.00,"ПАТ КБ ""Приватбанк""",14360570,юридична особа
УКРОП,"Київ, вулиця Михайла Грушевського, 1Д",70,2016-12-28,1228Б00К0У,Банківські послуги,Інші витрати,371052,"Київська обласна організація політичної партії ""Українське обʼєднання патріотів - УКРОП""",39949818,Київська область,"Комісія за виконання платежів в національній валюті, згідно з відкритою",26003052766800,current,3.00,"ПАТ КБ ""Приватбанк""",14360570,юридична особа
УКРОП,"Київ, вулиця Михайла Грушевського, 1Д",70,2016-12-28,10,Банківські послуги,Інші витрати,370108,"Львівська обласна організація політичної партії ""Українське обʼєднання патріотів - УКРОП""",39923503,Львівська область,РКО,26001053838223,current,9.00,"ПАТ КБ ""Приватбанк""",14360570,юридична особа
УКРОП,"Полтавська область, Полтава, вулиця Шевченка, 1",60,2016-12-27,114,Інші податки,Податкові платежі,374095,"Полтавська обласна організація політичної партії ""Українське обʼєднання патріотів - УКРОП""",39947896,Полтавська область,101; 39947896 За надання вит ягу з СДР без 1 ІДВ,26003054616293,current,70.00,УДКСУ у м. Полтаві,38019510,юридична особа
УКРОП,"Волинська область, Луцьк, вулиця Стрілецька, 4А",61,2016-12-27,гр544,Військовий збір,Податкові платежі,374063,"Волинська обласна організація політичної партії ""Українське обʼєднання патріотів - УКРОП""",39946248,Волинська область,"01;39946248;Військовий збір з доходів фізичної особи за послуги оренди.Оплата ШБНІсто 27.12,16р.;;;",26007055507180,current,57.10,Марчук Денис Володимирович,3172900890,фізична особа
УКРОП,"Волинська область, Луцьк, вулиця Стрілецька, 4А",63,2016-12-27,545,Податок на доходи,Податкові платежі,373533,"Волинська обласна організація політичної партії ""Українське обʼєднання патріотів - УКРОП""",39946248,Волинська область,101;39946248;11010100;Пода ток з доходів фізичних осіб 3 послуг оренди.Оплата повністю 27Л2Л 6р.;;;,26007055507180,current,685.21,УДКСУ у м. Луцьку,38009628,юридична особа
УКРОП,"Полтавська область, Полтава, вулиця Симона Петлюри, 13",82,2016-12-27,113,"Гонорари, в тому числі за надані консультаційні послуги","Гонорари, в тому числі за надані консультаційні послуги",373369,"Полтавська обласна організація політичної партії ""Українське обʼєднання патріотів - УКРОП""",39947896,Полтавська область,За надання нотаріальних послуг по рах. б/н від 26.12.2016 р.,26003054616293,current,200.00,Святецька В. В.,2746914349,юридична особа
УКРОП,"Волинська область, Маневицький район, Маневичі",84,2016-12-27,547,"Заробітна плата, премії","Заробітна плата, лікарняні, вагітності, відрядження, компенсації",372957,"Волинська обласна організація політичної партії ""Українське обʼєднання патріотів - УКРОП""",39946248,Волинська область,Зарахування на картковий рахунок №5167490042667783 Матвійчук Василь Ананійович (код 2441515577) за відшкодування елктр листгрудень по договору №13/16 від 01.02.16р.,26007055507180,current,730.00,Матвійчук Василь Ананійович,,фізична особа
УКРОП,"Волинська область, Луцьк",53,2016-12-27,547,Витрати на розміщення зовнішньої реклами,Зовнішня реклама,372676,"Волинська обласна організація політичної партії ""Українське обʼєднання патріотів - УКРОП""",39946248,Волинська область,"За розміщення реклами на площині ,локлейка постера зг.рах.№83 від 15.12.2016р. Без ПДВ",26007055507180,current,15275.00,Брикса Андрій Володимирович,3099707271,фізична особа
УКРОП,"Волинська область, Горохівський район, Горохів",79,2016-12-27,546,"Оренда будинків і приміщень та експлуатаційні витрати (прибирання, страхування орендованих будинків, охорона, сигналізація, ремонт, вивіз сміття, тощо)",Оренда нерухомості,372345,"Волинська обласна організація політичної партії ""Українське обʼєднання патріотів - УКРОП""",39946248,Волинська область,#4149437810135267 ІПН 2430412210 Кульгай Я.І. за відшкодування електроенергії за серпень- грудень 201 б.р по дог.№9/16 від 01.02.16р. Без ПДВ,26007055507180,current,2334.40,Кульгай Ярослав Ігорович,,фізична особа
УКРОП,"Дніпропетровська область, Дніпро́, площа Героїв Майдану, 1",76,2016-12-27,134,Послуги зв’язку,Послуги зв’язку,372184,"Дніпропетровська обласна регіональна парторганізація політичної партії ""Українське обʼєднання патріотів - УКРОП""",39874446,Дніпропетровська область,"Абонплата інтернет за листопад, грудень 2016 р., згідно дог 00576/5 від 01.09.2015 р. У сумі 1666.67 грн., ПДВ - 20 % 333.33 грн.",26007050259982,current,2000.00,"ДП ""Промспецзвʼязок""",00191951,юридична особа
УКРОП,"Волинська область, Турійський район, Турійськ, вулиця Сагайдачного, 1",79,2016-12-27,543,"Оренда будинків і приміщень та експлуатаційні витрати (прибирання, страхування орендованих будинків, охорона, сигналізація, ремонт, вивіз сміття, тощо)",Оренда нерухомості,371991,"Волинська обласна організація політичної партії ""Українське обʼєднання патріотів - УКРОП""",39946248,Волинська область,Орендна плата за приміщення грудень 2016 зг.рах.№73 від 16.12.16р. Бю ПДВ,26007055507180,current,603.70,Відділ культури Турійської РДА,02226961,юридична особа
УКРОП,"Полтавська область, Полтава, вулиця Пушкіна, 115",79,2016-12-27,112,"Оренда будинків і приміщень та експлуатаційні витрати (прибирання, страхування орендованих будинків, охорона, сигналізація, ремонт, вивіз сміття, тощо)",Оренда нерухомості,371788,"Полтавська обласна організація політичної партії ""Українське обʼєднання патріотів - УКРОП""",39947896,Полтавська область,За оренду приміщення у грудні 2016 р. по рах. 1094 від 12.12.2016 в т.ч. ПДВ 297.46,26003054616293,current,1784.73,Управління майном Полтавської облради,24386961,юридична особа
УКРОП,"Київська обл., Києво-Святошинський район, Софіївська Борщагівка, Кільцева дорога, 4",77,2016-12-27,1083,"Оренда, ремонт та обслуговування автомобілів","Оренда, ремонт та обслуговування автомобілів",371626,Центральний офіс,39479782,Київ,"Оплата за техогляд автомобіля згідно рах САСТ-532832 від 27.12.2016р. У сумі 495.42 грн., ПДВ - 20 % 99.09 грн.",26004052741642,current,594.51,"ТОВ ""Автоцентр ""Прага Авто на Кільцевій""",35997739,юридична особа
УКРОП,"Київська обл., Києво-Святошинський район, Софіївська Борщагівка, Кільцева дорога, 4",77,2016-12-27,1082,"Оренда, ремонт та обслуговування автомобілів","Оренда, ремонт та обслуговування автомобілів",371625,Центральний офіс,39479782,Київ,"Оплата за плановий техогляд автомобіля згідно рах САСТ-532779 від 26.12.2016р. У сумі 1834.90 грн., ПДВ - 20 % 366.98 грн.",26004052741642,current,2201.88,"ТОВ ""Автоцентр ""Прага Авто на Кільцевій""",35997739,юридична особа
УКРОП,"Київ, вулиця Михайла Грушевського, 1Д",70,2016-12-27,1227L3429Y,Банківські послуги,Інші витрати,371051,"Полтавська обласна організація політичної партії ""Українське обʼєднання патріотів - УКРОП""",39947896,Полтавська область,"Комісія за виконання платежів в національній валюті, згідно з відкритою офертою банку N б/н від 21.08.2015 та тарифів банку, без ПДВ.",26003054616293,current,3.00,"ПАТ КБ ""Приватбанк""",14360570,юридична особа
УКРОП,"Київ, вулиця Михайла Грушевського, 1Д",70,2016-12-27,1227L32GAY,Банківські послуги,Інші витрати,371050,"Полтавська обласна організація політичної партії ""Українське обʼєднання патріотів - УКРОП""",39947896,Полтавська область,"Комісія за виконання платежів в національній валюті, згідно з відкритою офертою банку N б/н від 21.08.2015 та тарифів банку, без ПДВ.",26003054616293,current,3.00,"ПАТ КБ ""Приватбанк""",14360570,юридична особа
УКРОП,"Київ, вулиця Михайла Грушевського, 1Д",70,2016-12-27,1227L2XGWY,Банківські послуги,Інші витрати,371049,"Полтавська обласна організація політичної партії ""Українське обʼєднання патріотів - УКРОП""",39947896,Полтавська область,"Комісія за виконання платежів в національній валюті, згідно з відкритою офертою банку N б/н від 21.08.2015 та тарифів банку, без ПДВ.",26003054616293,current,3.00,"ПАТ КБ ""Приватбанк""",14360570,юридична особа
УКРОП,"Київ, вулиця Михайла Грушевського, 1Д",70,2016-12-27,1227Ь2УМУ,Банківські послуги,Інші витрати,371048,"Волинська обласна організація політичної партії ""Українське обʼєднання патріотів - УКРОП""",39946248,Волинська область,"Комісія за виконання платежів в національній валюті, згідно з відкритою офертою банку № б/н від 28.08.2015 та тарифів банку, без ПДВ",26007055507180,current,3.00,"ПАТ КБ ""Приватбанк""",14360570,юридична особа
УКРОП,"Київ, вулиця Михайла Грушевського, 1Д",70,2016-12-27,1227Ь2СЗНУ,Банківські послуги,Інші витрати,371047,"Волинська обласна організація політичної партії ""Українське обʼєднання патріотів - УКРОП""",39946248,Волинська область,"Комісія за виконання платежів в національній валюті, згідно з відкритою офертою банку № б/н від 28.08.2015 та тарифів банку, без ПДВ",26007055507180,current,3.00,"ПАТ КБ ""Приватбанк""",14360570,юридична особа
УКРОП,"Київ, вулиця Михайла Грушевського, 1Д",70,2016-12-27,1227Ь1У5АУ,Банківські послуги,Інші витрати,371046,Центральний офіс,39479782,Київ,"Комісія за виконання платежів в національній валюті, згідно з відкритою офертою банку N б/н від 01.07.2015 та тарифів банку, без ПДВ.",26004052741642,current,3.00,"ПАТ КБ ""Приватбанк""",14360570,юридична особа
УКРОП,"Київ, вулиця Михайла Грушевського, 1Д",70,2016-12-27,1227Ь02УЯУ,Банківські послуги,Інші витрати,371045,"Дніпропетровська обласна регіональна парторганізація політичної партії ""Українське обʼєднання патріотів - УКРОП""",39874446,Дніпропетровська область,"Комісія за виконання платежів в національній валюті, згідно з відкритою офертою банку N б/н від 02.09.2015 та тарифів банку, без ПДВ.",26007050259982,current,3.00,"ПАТ КБ ""Приватбанк""",14360570,юридична особа
УКРОП,"Київ, вулиця Михайла Грушевського, 1Д",70,2016-12-27,1227Л1У4УУ,Банківські послуги,Інші витрати,371044,Центральний офіс,39479782,Київ,"Комісія за виконання платежів в національній валюті, згідно з відкритою офертою банку N б/н від 01.07.2015 та тарифів банку, без ПДВ.",26004052741642,current,3.00,"ПАТ КБ ""Приватбанк""",14360570,юридична особа
УКРОП,Київ,43,2016-12-26,170,Інші витрати,Інші витрати,374167,"Київська міська організація політичної партії ""Українське обʼєднання патріотів - УКРОП""",39976560,Київ,,26001052741968,current,273.42,"ТОВ ""ЮК ""Право та гроші""",39165528,юридична особа
УКРОП,"Київ, Кудрявський узвіз, 2",43,2016-12-26,168,Інші витрати,Інші витрати,374166,"Київська міська організація політичної партії ""Українське обʼєднання патріотів - УКРОП""",39976560,Київ,,26001052741968,current,10000.00,"ТОВ ""ЮК ""Право та гроші""",39165528,юридична особа
УКРОП,"Харківська область, Харків, Григорівське шосе, 52",61,2016-12-26,пд№102,Військовий збір,Податкові платежі,374065,"Харківська обласна організація політичної партії ""Українське обʼєднання патріотів - УКРОП""",39973329,Харківська область,"Військовий збір 1,5% із з/пл за грудень 2016.",26001052207545,current,120.00,УДКСУ у Харківському районі Харківської області,37999633,юридична особа
УКРОП,"Київ, вулиця Гарматна, 31",61,2016-12-26,Ібії,Військовий збір,Податкові платежі,374064,"Київська міська організація політичної партії ""Українське обʼєднання патріотів - УКРОП""",39976560,Київ,"101,39976560,Сплата військового збору 1,5% із заробітної плати за ірулснь 20І6р.Термін сплати 26 12 2016р Нараховано го перераховано ПОВНІСТЮ...",26001052741968,current,75.00,УКДСУ у Соломʼянському районі м. Києва,38050812,юридична особа
УКРОП,"Харківська область, Харків, вулиця Академіка Підгорного",62,2016-12-26,пд№103,Сплата ЄСВ,Податкові платежі,373821,"Харківська обласна організація політичної партії ""Українське обʼєднання патріотів - УКРОП""",39973329,Харківська область,"Сплата есв-22%-1286,92грн.,в т.ч.інв.8,41%-123,34грн.на з/пл за грудень 2016р.",26001052207545,current,1542.56,Харківська ОДПІ ГУ ДФС у Харківській області,39859695,юридична особа
УКРОП,"Київ, вулиця Смілянська, 6",62,2016-12-26,164,Сплата ЄСВ,Податкові платежі,373676,"Київська міська організація політичної партії ""Українське обʼєднання патріотів - УКРОП""",39976560,Київ,"101,39976560;Сплата ЄСВ 22%- 1100,00 гри нарахованого на заробітну п.тату за грудень 20І6р Термін сплати 26.12 2016р Нараховано та перераховано повністю;,.",26001052741968,current,1100.00,ДПІ у Соломʼянському р-ш ГУ ДФС у м Кисні,39471390,юридична особа
УКРОП,"Харківська область, Харків, Григорівське шосе, 52",63,2016-12-26,пд№101,Податок на доходи,Податкові платежі,373609,"Харківська обласна організація політичної партії ""Українське обʼєднання патріотів - УКРОП""",39973329,Харківська область,НДФЛ із з/пл за грудень 2016р.,26001052207545,current,819.90,УДКСУ у Харківському районі Харківської області,37999633,юридична особа
УКРОП,"Київ, вулиця Гарматна, 31",63,2016-12-26,165,Податок на доходи,Податкові платежі,373436,"Київська міська організація політичної партії ""Українське обʼєднання патріотів - УКРОП""",39976560,Київ,"10І,39976560;Снлата ІІД",26001052741968,current,900.00,УКДСУ у Соломʼянському районі м. Києва,38050812,юридична особа
УКРОП,"Харківська область, Харків",84,2016-12-26,Бв№104,"Заробітна плата, премії","Заробітна плата, лікарняні, вагітності, відрядження, компенсації",373079,"Харківська обласна організація політичної партії ""Українське обʼєднання патріотів - УКРОП""",39973329,Харківська область,Зарплата за грудень 2016р.,26001052207545,current,1412.02,Полякова Людмила Олександрівна,,фізична особа
УКРОП,"Харківська область, Харків",84,2016-12-26,Бв№104,"Заробітна плата, премії","Заробітна плата, лікарняні, вагітності, відрядження, компенсації",373078,"Харківська обласна організація політичної партії ""Українське обʼєднання патріотів - УКРОП""",39973329,Харківська область,Зарплата за грудень 2016р.,26001052207545,current,1412.02,Полуніна Світлана Миколаївна,,фізична особа
УКРОП,"Харківська область, Дергачівський район, Мала Данилівка",84,2016-12-26,Бв№104,"Заробітна плата, премії","Заробітна плата, лікарняні, вагітності, відрядження, компенсації",373077,"Харківська обласна організація політичної партії ""Українське обʼєднання патріотів - УКРОП""",39973329,Харківська область,Зарплата за грудень 2016р.,26001052207545,current,1412.02,Мірошнікова Людмила Юріївна,,фізична особа
УКРОП,"Харківська область, Люботин",84,2016-12-26,Бв№104,"Заробітна плата, премії","Заробітна плата, лікарняні, вагітності, відрядження, компенсації",373076,"Харківська обласна організація політичної партії ""Українське обʼєднання патріотів - УКРОП""",39973329,Харківська область,Зарплата за грудень 2016р.,26001052207545,current,1412.02,Голтвянський Олег Миколайович,,фізична особа
УКРОП,"Харківська область, Харків",84,2016-12-26,Бв№104,"Заробітна плата, премії","Заробітна плата, лікарняні, вагітності, відрядження, компенсації",373075,"Харківська обласна організація політичної партії ""Українське обʼєднання патріотів - УКРОП""",39973329,Харківська область,Зарплата за грудень 2016р.,26001052207545,current,1412.02,Безпалий Олександр Ігорович,,фізична особа
УКРОП,Київ,84,2016-12-26,167,"Заробітна плата, премії","Заробітна плата, лікарняні, вагітності, відрядження, компенсації",372855,"Київська міська організація політичної партії ""Українське обʼєднання патріотів - УКРОП""",39976560,Київ,Зарахування тар.плати іа гру день 2016р. Молаткн сплачеш у ноином) обсязі,26001052741968,current,4025.00,Сіманський Дмитро Альбертович,,фізична особа
УКРОП,"Київ, Кудрявський узвіз, 2",79,2016-12-26,169,"Оренда будинків і приміщень та експлуатаційні витрати (прибирання, страхування орендованих будинків, охорона, сигналізація, ремонт, вивіз сміття, тощо)",Оренда нерухомості,372301,"Київська міська організація політичної партії ""Українське обʼєднання патріотів - УКРОП""",39976560,Київ,"Компенсація послуг сл сперш та послуг втрат сл.снсрпї за листопад 20Ібр., по лог_№25/І2-0 віл 25 12 2015р., згідно рач. ДчСФ-30 віл 30 II 20І6рБсзПДВ",26001052741968,current,169.41,"ТОВ ""ЮК ""Право та гроші""",39165528,юридична особа
УКРОП,"Київ, вулиця Здолбунівська, 7Д",79,2016-12-26,542,"Оренда будинків і приміщень та експлуатаційні витрати (прибирання, страхування орендованих будинків, охорона, сигналізація, ремонт, вивіз сміття, тощо)",Оренда нерухомості,371990,"Волинська обласна організація політичної партії ""Українське обʼєднання патріотів - УКРОП""",39946248,Волинська область,"За оренду приміщення грудень та комупослуги зг. рах. №6794 від 20.12.16р. У сумі 404,55 грн."" ПДВ -20% 80,91 грн",26007055507180,current,485.46,"ПАТ ""НАСК ""Оранта""",00034186,юридична особа
УКРОП,"Київ, вулиця Здолбунівська, 7Д",79,2016-12-26,541,"Оренда будинків і приміщень та експлуатаційні витрати (прибирання, страхування орендованих будинків, охорона, сигналізація, ремонт, вивіз сміття, тощо)",Оренда нерухомості,371989,"Волинська обласна організація політичної партії ""Українське обʼєднання патріотів - УКРОП""",39946248,Волинська область,"За оренду приміщення грудень Ш відшкодування комунальнш послуг зг. рах. №6797 від 20.12.16р. У сумі 799,60 грн., ПДВ -20% 159,92 грн.",26007055507180,current,959.52,"ПАТ ""НАСК ""Оранта""",00034186,юридична особа
УКРОП,"Київ, Дніпровська набережна, 16",77,2016-12-26,1081,"Оренда, ремонт та обслуговування автомобілів","Оренда, ремонт та обслуговування автомобілів",371624,Центральний офіс,39479782,Київ,"Оплата за плановий техогляд автомобіля, згідно рах С4297629 від 26.12.2016 р. У сумі 4409.55 грн., ПДВ - 20 % 881.91 грн.",26004052741642,current,5291.46,"ТОВ ""АТЛАНТ-М ДНІПРОВСЬКА НАБЕРЕЖНА""",36824570,юридична особа
УКРОП,"Київ, вулиця Михайла Грушевського, 1Д",70,2016-12-26,I226L262TY,Банківські послуги,Інші витрати,371449,"Київська міська організація політичної партії ""Українське обʼєднання патріотів - УКРОП""",39976560,Київ,,26001052741968,current,3.00,"ПАТ КБ ""Приватбанк""",14360570,юридична особа
УКРОП,"Київ, вулиця Михайла Грушевського, 1Д",70,2016-12-26,I226L1II5SY,Банківські послуги,Інші витрати,371448,"Київська міська організація політичної партії ""Українське обʼєднання патріотів - УКРОП""",39976560,Київ,"Комісія за виконання платежів в національній валюті, згідно з відкритою офертою банку Де б/н віл 04.09.2015 та тарифів банку, без ПДВ",26001052741968,current,3.00,"ПАТ КБ ""Приватбанк""",14360570,юридична особа
УКРОП,"Київ, вулиця Михайла Грушевського, 1Д",70,2016-12-26,пд№105,Банківські послуги,Інші витрати,371353,"Харківська обласна організація політичної партії ""Українське обʼєднання патріотів - УКРОП""",39973329,Харківська область,Комісія за обслугов.рах.,26001052207545,current,17.65,"ПАТ КБ ""Приватбанк""",14360570,юридична особа
УКРОП,"Київ, вулиця Михайла Грушевського, 1Д",70,2016-12-26,483,Банківські послуги,Інші витрати,371128,"Київська міська організація політичної партії ""Українське обʼєднання патріотів - УКРОП""",39976560,Київ,"Комісія за виконання платежів в національній валюті, згідно з відкритою офертою банку № б/н віл 04 09.2015 та тарифів банку, без ПДВ",26001052741968,current,3.00,"ПАТ КБ ""Приватбанк""",14360570,юридична особа
УКРОП,"Київ, вулиця Михайла Грушевського, 1Д",70,2016-12-26,1226L262SY,Банківські послуги,Інші витрати,371043,"Київська міська організація політичної партії ""Українське обʼєднання патріотів - УКРОП""",39976560,Київ,,26001052741968,current,3.00,"ПАТ КБ ""Приватбанк""",14360570,юридична особа
УКРОП,"Київ, вулиця Михайла Грушевського, 1Д",70,2016-12-26,1226L261QY,Банківські послуги,Інші витрати,371042,"Київська міська організація політичної партії ""Українське обʼєднання патріотів - УКРОП""",39976560,Київ,"Комісія за виконання платежів в національній валюті, згідно з відкритою офертою банку № б/н від 04 09 2015 та тарифів банку, без ПДВ",26001052741968,current,3.00,"ПАТ КБ ""Приватбанк""",14360570,юридична особа
УКРОП,"Київ, вулиця Михайла Грушевського, 1Д",70,2016-12-26,1226Ь2МШУ,Банківські послуги,Інші витрати,371041,"Волинська обласна організація політичної партії ""Українське обʼєднання патріотів - УКРОП""",39946248,Волинська область,"Комісія за виконання платежів в національній валюті, згідно з відкритою офертою банку № б/н від 28.08.2015 та тарифів банку, без ПДВ",26007055507180,current,3.00,"ПАТ КБ ""Приватбанк""",14360570,юридична особа
УКРОП,"Київ, вулиця Михайла Грушевського, 1Д",70,2016-12-26,1226Ь1ЬШУ,Банківські послуги,Інші витрати,371040,"Харківська обласна організація політичної партії ""Українське обʼєднання патріотів - УКРОП""",39973329,Харківська область,Комісія за обслугов.рах.,26001052207545,current,3.00,"ПАТ КБ ""Приватбанк""",14360570,юридична особа
УКРОП,"Київ, вулиця Михайла Грушевського, 1Д",70,2016-12-26,1226Ь1Ь3ОТ,Банківські послуги,Інші витрати,371039,"Харківська обласна організація політичної партії ""Українське обʼєднання патріотів - УКРОП""",39973329,Харківська область,Комісія за обслугов.рах.,26001052207545,current,3.00,"ПАТ КБ ""Приватбанк""",14360570,юридична особа
УКРОП,"Київ, вулиця Михайла Грушевського, 1Д",70,2016-12-26,1226Ь1КУБУ,Банківські послуги,Інші витрати,371038,"Харківська обласна організація політичної партії ""Українське обʼєднання патріотів - УКРОП""",39973329,Харківська область,Комісія за обслугов.рах.,26001052207545,current,3.00,"ПАТ КБ ""Приватбанк""",14360570,юридична особа
УКРОП,"Київ, вулиця Михайла Грушевського, 1Д",70,2016-12-26,1226Ь0ХК.ИУ,Банківські послуги,Інші витрати,371037,Центральний офіс,39479782,Київ,"Комісія за виконання платежів в національній валюті, згідно з відкритою офертою банку N б/н від 01.07.2015 та тарифів банку, без ПДВ.",26004052741642,current,3.00,"ПАТ КБ ""Приватбанк""",14360570,юридична особа
УКРОП,"Київ, вулиця Михайла Грушевського, 1Д",70,2016-12-26,1226Б2МИХУи,Банківські послуги,Інші витрати,371036,"Волинська обласна організація політичної партії ""Українське обʼєднання патріотів - УКРОП""",39946248,Волинська область,"Комісія за виконання платежів в національній валюті, згідно з відкритою офертою банку № б/н від 28.08.2015 та тарифів банку, без ПДВ",26007055507180,current,3.00,"ПАТ КБ ""Приватбанк""",14360570,юридична особа
УКРОП,"Київ, вулиця Михайла Грушевського, 1Д",70,2016-12-26,"12261.11151""V'",Банківські послуги,Інші витрати,371035,"Київська міська організація політичної партії ""Українське обʼєднання патріотів - УКРОП""",39976560,Київ,"Комісія за виконання платежів в національній валюті, згідно з відкритою гн|к:ртою банку № б/н від 04 09.2015 та тарифів банку, без ПДВ",26001052741968,current,3.00,"ПАТ КБ ""Приватбанк""",14360570,юридична особа
УКРОП,"Чернівецька область, Чернівці, вулиця Кобилянської, 11",61,2016-12-24,68,Військовий збір,Податкові платежі,374019,"Чернівецька обласна регіональна парторганізація політичної партії ""Українське обʼєднання патріотів - УКРОП""",39914462,Чернівецька область,військовий збір та 12.2016р.,26007051500149,current,48.00,УДКСУ у м. Чернівці,37978173,юридична особа
УКРОП,"Чернівецька область, Чернівці, вулиця Героїв Майдану, 200А",62,2016-12-24,66,Сплата ЄСВ,Податкові платежі,373774,"Чернівецька обласна регіональна парторганізація політичної партії ""Українське обʼєднання патріотів - УКРОП""",39914462,Чернівецька область,ЄСВза 12.2016р.,26007051500149,current,704.00,ДПІ в м.Чернівцях ГУДФС у Черн.обл.,39579145,юридична особа
УКРОП,"Чернівецька область, Чернівці, вулиця Кобилянської, 11",63,2016-12-24,67,Податок на доходи,Податкові платежі,373554,"Чернівецька обласна регіональна парторганізація політичної партії ""Українське обʼєднання патріотів - УКРОП""",39914462,Чернівецька область,пол.з дох.фіз.осіб за 12.2016р.,26007051500149,current,576.00,УДКСУ у м. Чернівці,37978173,юридична особа
УКРОП,"Київ, вулиця Михайла Грушевського, 1Д",70,2016-12-24,69605,Банківські послуги,Інші витрати,372587,"Чернівецька обласна регіональна парторганізація політичної партії ""Українське обʼєднання патріотів - УКРОП""",39914462,Чернівецька область,ком.за кас.обсл.,26007051500149,current,6.44,"ПАТ КБ ""Приватбанк""",14360570,юридична особа
УКРОП,"Київ, вулиця Михайла Грушевського, 1Д",70,2016-12-24,1229,Банківські послуги,Інші витрати,371058,"Чернівецька обласна регіональна парторганізація політичної партії ""Українське обʼєднання патріотів - УКРОП""",39914462,Чернівецька область,комісія за виконання платежів,26007051500149,current,14.00,"ПАТ КБ ""Приватбанк""",14360570,юридична особа
УКРОП,"Волинська область, Луцьк, вулиця Стрілецька, 4А",61,2016-12-23,531,Військовий збір,Податкові платежі,373995,"Волинська обласна організація політичної партії ""Українське обʼєднання патріотів - УКРОП""",39946248,Волинська область,101 ;39946248;Військовий збір з доходів фізичної особи за послуги оренди.Оплата повністю 23.12.16р.;;;,26007055507180,current,302.84,Марчук Денис Володимирович,3172900890,фізична особа
УКРОП,"Волинська область, Луцьк, вулиця Стрілецька, 4А",63,2016-12-23,532,Податок на доходи,Податкові платежі,373531,"Волинська обласна організація політичної партії ""Українське обʼєднання патріотів - УКРОП""",39946248,Волинська область,101 ;39946248;11010100;Пода ток з доходів фізичних осіб 3 послуг оренди.Оплата повністю 23.12Л6р.;;; і ч,26007055507180,current,3633.98,Марчук Денис Володимирович,3172900890,фізична особа
УКРОП,"Волинська область, Маневицький район, Маневичі",79,2016-12-23,538,"Оренда будинків і приміщень та експлуатаційні витрати (прибирання, страхування орендованих будинків, охорона, сигналізація, ремонт, вивіз сміття, тощо)",Оренда нерухомості,372956,"Волинська обласна організація політичної партії ""Українське обʼєднання патріотів - УКРОП""",39946248,Волинська область,Зарахування на картковий рахунок №5167490042667783 Матвійчук Василь Ананійович (код 2441515577) за оренду приміщення за грудень по договору №13/16 від 01.02.16р.,26007055507180,current,1250.00,Матвійчук Василь Ананійович,,фізична особа
УКРОП,"Київ, Голосіївський проспект, 58А, 19",72,2016-12-23,1078,"Придбання, ремонт офісної техніки та програмного забезпечення (Бухгалтерські програми, Ліга.закон, домени)",Придбання офісної техніки та програмного забезпечення,372401,Центральний офіс,39479782,Київ,Доплата за програмне забезпечення згідно рахунку N 64462 від 30.11.2016 р. Без ПДВ,26004052741642,current,1282.46,"ТОВ ""Ай Ті Про""",31808989,юридична особа
УКРОП,"Волинська область, Володимир-Волинський, вулиця Ковельська, 140",79,2016-12-23,530,"Оренда будинків і приміщень та експлуатаційні витрати (прибирання, страхування орендованих будинків, охорона, сигналізація, ремонт, вивіз сміття, тощо)",Оренда нерухомості,372343,"Волинська обласна організація політичної партії ""Українське обʼєднання патріотів - УКРОП""",39946248,Волинська область,Відшкодування компослуг листопад 2016іг.рах.№101 від 02.12.16р. Без ПДВ,26007055507180,current,1356.70,Грек В Ю,2212903170,фізична особа
УКРОП,"Тернопільська область, Тернопіль, вулиця Білецька",79,2016-12-23,1079,"Оренда будинків і приміщень та експлуатаційні витрати (прибирання, страхування орендованих будинків, охорона, сигналізація, ремонт, вивіз сміття, тощо)",Оренда нерухомості,372291,Центральний офіс,39479782,Київ,Відшкодування за спожиту ел.енергію та газ в грудні 2016р.згідно рах.Ш12 від 23.12.2016р.,26004052741642,current,2709.24,"ПП ""ІМІКА""",37681437,юридична особа
УКРОП,"Київ, вулиця Здолбунівська, 7Д",79,2016-12-23,й524,"Оренда будинків і приміщень та експлуатаційні витрати (прибирання, страхування орендованих будинків, охорона, сигналізація, ремонт, вивіз сміття, тощо)",Оренда нерухомості,372139,"Волинська обласна організація політичної партії ""Українське обʼєднання патріотів - УКРОП""",39946248,Волинська область,"За оренду приміщення за листопад та компослуги за жовтень-листопадзг. рах. №5980 від 17.11.16р. У сумі 385,21 грн.3 ПДВ -20% 77,04 грн.",26007055507180,current,462.25,"ПАТ ""НАСК ""Оранта""",00034186,юридична особа
УКРОП,"Волинська область, Луцьк, проспект Перемоги, 1",79,2016-12-23,г527,"Оренда будинків і приміщень та експлуатаційні витрати (прибирання, страхування орендованих будинків, охорона, сигналізація, ремонт, вивіз сміття, тощо)",Оренда нерухомості,372137,"Волинська обласна організація політичної партії ""Українське обʼєднання патріотів - УКРОП""",39946248,Волинська область,За оренду приміщення та компослуги листопад зг.рах.№41 від 25.11.16р. Без пдв 1,26007055507180,current,2480.25,Волинський обласний спортивно-технічний клуб,02717920,юридична особа
УКРОП,"Житомирська область, Житомир, вулиця Пушкінська, 25",79,2016-12-23,74,"Оренда будинків і приміщень та експлуатаційні витрати (прибирання, страхування орендованих будинків, охорона, сигналізація, ремонт, вивіз сміття, тощо)",Оренда нерухомості,372046,"Житомирська обласна організація політичної партії ""Українське обʼєднання патріотів - УКРОП""",39925338,Житомирська область,Попередня оплата за оренду приміщення за 12. 2016 р. Договір від 29.08.2016 р. Без ПДВ.Держзакупівлі не передбачені,26000055804505,current,8000.00,"ПП ""Полісся Енерго""",32505831,юридична особа
УКРОП,,79,2016-12-23,540,"Оренда будинків і приміщень та експлуатаційні витрати (прибирання, страхування орендованих будинків, охорона, сигналізація, ремонт, вивіз сміття, тощо)",Оренда нерухомості,371988,"Волинська обласна організація політичної партії ""Українське обʼєднання патріотів - УКРОП""",39946248,Волинська область,За оренду приміщення та ком послуги груде нь зг.рах.№49 від 22.12.16р. Без ПДВ,26007055507180,current,2457.38,Волинський обласний спортивно-технічний клуб,02717920,юридична особа
УКРОП,,79,2016-12-23,539,"Оренда будинків і приміщень та експлуатаційні витрати (прибирання, страхування орендованих будинків, охорона, сигналізація, ремонт, вивіз сміття, тощо)",Оренда нерухомості,371987,"Волинська обласна організація політичної партії ""Українське обʼєднання патріотів - УКРОП""",39946248,Волинська область,#5168755621934450 ІПН 2130921572 Бортнік П.О. Орендга плата за грудень 2016р. зг.дог.№15/16 від 01.02.16р. Без ПДВ,26007055507180,current,1950.00,Бортнік Павло Олександрович,,фізична особа
УКРОП,"Волинська область, Локачинський район, Локачі",79,2016-12-23,537,"Оренда будинків і приміщень та експлуатаційні витрати (прибирання, страхування орендованих будинків, охорона, сигналізація, ремонт, вивіз сміття, тощо)",Оренда нерухомості,371986,"Волинська обласна організація політичної партії ""Українське обʼєднання патріотів - УКРОП""",39946248,Волинська область,#51693305 0740 Г9БТТГТН 2145211252 за оренду приміщення грудень 2016 зг. дог.№ 11/16 від 01.02.16р. Без ПДВ,26007055507180,current,1500.00,Новосад Святослав Трохимович,2145211252,фізична особа
УКРОП,"Волинська область, Ковель",79,2016-12-23,536,"Оренда будинків і приміщень та експлуатаційні витрати (прибирання, страхування орендованих будинків, охорона, сигналізація, ремонт, вивіз сміття, тощо)",Оренда нерухомості,371985,"Волинська обласна організація політичної партії ""Українське обʼєднання патріотів - УКРОП""",39946248,Волинська область,#4627055000713502 ІПН 2034902474 Орендна плата за грудень 2016 р. по дог.№18/16 від 29.02.16р. Без ПДВ,26007055507180,current,5052.00,Рибачок Юрій Іванович,,фізична особа
УКРОП,"Волинська область, Ківерцівський район, Ківерці",79,2016-12-23,535,"Оренда будинків і приміщень та експлуатаційні витрати (прибирання, страхування орендованих будинків, охорона, сигналізація, ремонт, вивіз сміття, тощо)",Оренда нерухомості,371984,"Волинська обласна організація політичної партії ""Українське обʼєднання патріотів - УКРОП""",39946248,Волинська область,#5168757288211008ІПН 26432048060рендна плата за грудень 2016 р. по дог.№16/16 від 20.02.16р Без ПДВ,26007055507180,current,2500.00,Колбун Оксана Володимирівна,,фізична особа
УКРОП,"Волинська область, Іваничівський район, Павлівка",79,2016-12-23,534,"Оренда будинків і приміщень та експлуатаційні витрати (прибирання, страхування орендованих будинків, охорона, сигналізація, ремонт, вивіз сміття, тощо)",Оренда нерухомості,371983,"Волинська обласна організація політичної партії ""Українське обʼєднання патріотів - УКРОП""",39946248,Волинська область,#5168757253114047 ІПН ' 2443613638 Живчин ВЛ. Орендна плата за грудень 2016р. по дог.№10/16 від 01.02.16р. Без ПДВ,26007055507180,current,1500.00,Живчин Василь Лукʼянович,2443613638,фізична особа
УКРОП,"Волинська область, Горохівський район, Горохів",79,2016-12-23,533,"Оренда будинків і приміщень та експлуатаційні витрати (прибирання, страхування орендованих будинків, охорона, сигналізація, ремонт, вивіз сміття, тощо)",Оренда нерухомості,371982,"Волинська обласна організація політичної партії ""Українське обʼєднання патріотів - УКРОП""",39946248,Волинська область,#4149437810135267 ІПН 2430412210 Кульгай Я.І. за оренду приміщення за грудень 2016.р по д&г.№9/16 від 01.02.16р. Без ПДВ,26007055507180,current,2500.00,Кульгай Ярослав Ігорович,,фізична особа
УКРОП,"Волинська область, Володимир-Волинський, вулиця Ковельська, 140",79,2016-12-23,529,"Оренда будинків і приміщень та експлуатаційні витрати (прибирання, страхування орендованих будинків, охорона, сигналізація, ремонт, вивіз сміття, тощо)",Оренда нерухомості,371980,"Волинська обласна організація політичної партії ""Українське обʼєднання патріотів - УКРОП""",39946248,Волинська область,Орендна плата за грудень 2016 зг.рах.№100 від 02.12.16р# Без ПДВ,26007055507180,current,4500.00,Грек В Ю,2212903170,фізична особа
УКРОП,"Волинська область, Любешівський район, Любешів, вулиця Незалежності, 79",79,2016-12-23,526,"Оренда будинків і приміщень та експлуатаційні витрати (прибирання, страхування орендованих будинків, охорона, сигналізація, ремонт, вивіз сміття, тощо)",Оренда нерухомості,371979,"Волинська обласна організація політичної партії ""Українське обʼєднання патріотів - УКРОП""",39946248,Волинська область,За оренду приміщення за грудень 2016р. зг. рах№30 від . 02.12.2016р. без ПДВ р,26007055507180,current,2000.00,"Виробничо-комерційне підприємство ""Любешівсервіс""",03052279,юридична особа
УКРОП,"Київ, вулиця Здолбунівська, 7Д",79,2016-12-23,525,"Оренда будинків і приміщень та експлуатаційні витрати (прибирання, страхування орендованих будинків, охорона, сигналізація, ремонт, вивіз сміття, тощо)",Оренда нерухомості,371978,"Волинська обласна організація політичної партії ""Українське обʼєднання патріотів - УКРОП""",39946248,Волинська область,"За оренду приміщення за листопад та компослуги за жовтень- листопадзг. рах. №5985 від 17.11.16р. У сумі 837,15 грн.ПДВ -20% 167,43 грн.",26007055507180,current,1004.58,"ПАТ ""НАСК ""Оранта""",00034186,юридична особа
УКРОП,"Волинська область, Рожищенський район, Рожище",79,2016-12-23,523',"Оренда будинків і приміщень та експлуатаційні витрати (прибирання, страхування орендованих будинків, охорона, сигналізація, ремонт, вивіз сміття, тощо)",Оренда нерухомості,371977,"Волинська обласна організація політичної партії ""Українське обʼєднання патріотів - УКРОП""",39946248,Волинська область,Заоренду приміщенш грудат 2016 зг.рах.№1 від 09.12.2016р. Без ПДВ,26007055507180,current,1552.00,Аршулік І І,3468712161,фізична особа
УКРОП,"Волинська область, Володимир-Волинський, вулиця Луцька, 211",79,2016-12-23,522,"Оренда будинків і приміщень та експлуатаційні витрати (прибирання, страхування орендованих будинків, охорона, сигналізація, ремонт, вивіз сміття, тощо)",Оренда нерухомості,371976,"Волинська обласна організація політичної партії ""Українське обʼєднання патріотів - УКРОП""",39946248,Волинська область,"За оренду приміщення та компослуги зг.рах.№1291 від 21.12.2016р. У сумі 3032,35 грн., ПДВ -20 % 606,47 грн.",26007055507180,current,3638.82,ТОВ “Гербор-холдінг “,30088756,юридична особа
УКРОП,"Луганська область, Попаснянський район, Лисичанський",79,2016-12-23,1080,"Оренда будинків і приміщень та експлуатаційні витрати (прибирання, страхування орендованих будинків, охорона, сигналізація, ремонт, вивіз сміття, тощо)",Оренда нерухомості,371785,Центральний офіс,39479782,Київ,Доплата за оренду приміщення в листопаді 2015р. згідно договору N 07-09/2015 від 07.09.2015р. Без ПДВ,26004052741642,current,400.00,Сідорко Наталія Валеріївна,2538010106,фізична особа
УКРОП,"Волинська, Луцьк, вулиця Винниченка, 26",79,2016-12-23,528,"Оренда будинків і приміщень та експлуатаційні витрати (прибирання, страхування орендованих будинків, охорона, сигналізація, ремонт, вивіз сміття, тощо)",Оренда нерухомості,371695,"Волинська обласна організація політичної партії ""Українське обʼєднання патріотів - УКРОП""",39946248,Волинська область,"За охорону та прибирання приміщень за грудень 2016 р. зг. рах.№ 1400,1401 від 29.11.16р. У сумі 899,34 гри,, ПДВ-20% 179,87 грн.",26007055507180,current,1079.21,ТОВ “Інвест-Контур “,38592673,юридична особа
УКРОП,"Вінницька область, Вінниця, вулиця Єрусалимка, 8",50,2016-12-23,184,Оплата ефірного часу на радіо,Реклама на радіо,371523,"Вінницька обласна організація політичної партії ""Українське обʼєднання патріотів - УКРОП""",39901123,Вінницька область,За трансляцію аудіороликів зг рах 151 від 21.12.2016. Без ПДВ.,26002055324323,current,500.00,"Радіокомпанія ""Місто над Бугом""",24902523,юридична особа
УКРОП,"Київ, вулиця Шовковична, 38Б",58,2016-12-23,163,"Виготовлення друкованих матеріалів (плакатів, листівок, буклетів та інших агітаційних матеріалів)",Друкована агітація,371480,"Київська міська організація політичної партії ""Українське обʼєднання патріотів - УКРОП""",39976560,Київ,"Оплата за листівки згідно з рахунком Л"" Т56750 від 23.12.16 р, вт.ч.ПДВ 274,33 гри.",26001052741968,current,1646.00,"ТОВ ""Друкарня ""50-копійок""",38704004,юридична особа
УКРОП,"Київ, вулиця Михайла Грушевського, 1Д",70,2016-12-23,і1223L28FF6Y,Банківські послуги,Інші витрати,371316,"Волинська обласна організація політичної партії ""Українське обʼєднання патріотів - УКРОП""",39946248,Волинська область,"Комісія за виконання платежів в національній валюті, згідно з відкритою офертою банку № б/н від 28.08.2015 та тарифів банку, без ПДВ",26007055507180,current,3.00,"ПАТ КБ ""Приватбанк""",14360570,юридична особа
УКРОП,"Київ, вулиця Михайла Грушевського, 1Д",70,2016-12-23,1223L28HBY,Банківські послуги,Інші витрати,371034,"Волинська обласна організація політичної партії ""Українське обʼєднання патріотів - УКРОП""",39946248,Волинська область,"Комісія за виконання платежів в національній валюті, згідно з відкритою офертою банку № б/н від 28.08.2015 та тарифів банку, без ПДВ",26007055507180,current,3.00,"ПАТ КБ ""Приватбанк""",14360570,юридична особа
УКРОП,"Київ, вулиця Михайла Грушевського, 1Д",70,2016-12-23,1223L279FY,Банківські послуги,Інші витрати,371033,"Волинська обласна організація політичної партії ""Українське обʼєднання патріотів - УКРОП""",39946248,Волинська область,"Комісія за виконання платежів в національній валюті, згідно з відкритою офертою банку № б/н від 28.08.2015 та тарифів банку, без ПДВ",26007055507180,current,3.00,"ПАТ КБ ""Приватбанк""",14360570,юридична особа
УКРОП,"Київ, вулиця Михайла Грушевського, 1Д",70,2016-12-23,1223Ь284ВУч1**,Банківські послуги,Інші витрати,371032,"Волинська обласна організація політичної партії ""Українське обʼєднання патріотів - УКРОП""",39946248,Волинська область,"Комісія за виконання платежів в національній валюті, згідно з відкритою офертою банку № б/н від 28.08.2015 та тарифів банку, без ПДВ",26007055507180,current,3.00,"ПАТ КБ ""Приватбанк""",14360570,юридична особа
УКРОП,"Київ, вулиця Михайла Грушевського, 1Д",70,2016-12-23,1223Ь20ЬТУ,Банківські послуги,Інші витрати,371031,"Волинська обласна організація політичної партії ""Українське обʼєднання патріотів - УКРОП""",39946248,Волинська область,"Комісія за виконання платежів в національній валюті, згідно з відкритою офертою банку № б/н від 28.08.2015 та тарифів банку, без ПДВ",26007055507180,current,3.00,"ПАТ КБ ""Приватбанк""",14360570,юридична особа
УКРОП,"Київ, вулиця Михайла Грушевського, 1Д",70,2016-12-23,1223Ь20У4А,Банківські послуги,Інші витрати,371030,"Волинська обласна організація політичної партії ""Українське обʼєднання патріотів - УКРОП""",39946248,Волинська область,Комісія за поповнення картМ для виплат та нецільові платежі,26007055507180,current,6.25,"ПАТ КБ ""Приватбанк""",14360570,юридична особа
УКРОП,"Київ, вулиця Михайла Грушевського, 1Д",70,2016-12-23,1223Ь20НЗУ,Банківські послуги,Інші витрати,371029,"Волинська обласна організація політичної партії ""Українське обʼєднання патріотів - УКРОП""",39946248,Волинська область,"Комісія за виконання платежів в національній валюті, згідно з відкритою офертою банку № б/н від 28.08.2015 та тарифів банку, без ПДВ",26007055507180,current,3.00,"ПАТ КБ ""Приватбанк""",14360570,юридична особа
УКРОП,"Київ, вулиця Михайла Грушевського, 1Д",70,2016-12-23,1223Ь0Р3БУ,Банківські послуги,Інші витрати,371028,Центральний офіс,39479782,Київ,"Комісія за виконання платежів в національній валюті, згідно з відкритою офертою банку N б/н від 01.07.2015 та тарифів банку, без ПДВ.",26004052741642,current,3.00,"ПАТ КБ ""Приватбанк""",14360570,юридична особа
УКРОП,"Київ, вулиця Михайла Грушевського, 1Д",70,2016-12-23,1223ШУ70У,Банківські послуги,Інші витрати,371027,"Житомирська обласна організація політичної партії ""Українське обʼєднання патріотів - УКРОП""",39925338,Житомирська область,"Комісія за виконання платежів в національній валюті, згідно з відкритою офертою банку N б/н від 17.08.2015 та тарифів банку, без ПДВ.",26000055804505,current,3.00,"ПАТ КБ ""Приватбанк""",14360570,юридична особа
УКРОП,"Київ, вулиця Михайла Грушевського, 1Д",70,2016-12-23,1223Б30ХКУ,Банківські послуги,Інші витрати,371026,"Вінницька обласна організація політичної партії ""Українське обʼєднання патріотів - УКРОП""",39901123,Вінницька область,Комісія банку,26002055324323,current,3.00,"ПАТ КБ ""Приватбанк""",14360570,юридична особа
УКРОП,"Київ, вулиця Михайла Грушевського, 1Д",70,2016-12-23,1223Б2РРКУ,Банківські послуги,Інші витрати,371025,"Волинська обласна організація політичної партії ""Українське обʼєднання патріотів - УКРОП""",39946248,Волинська область,"Комісія за виконання платежів в національній валюті, згідно з відкритою офертою банку № б/н від 28.08.2015 та тарифів банку, без ПДВ",26007055507180,current,3.00,"ПАТ КБ ""Приватбанк""",14360570,юридична особа
УКРОП,"Київ, вулиця Михайла Грушевського, 1Д",70,2016-12-23,1223Б28гЕУ,Банківські послуги,Інші витрати,371024,"Волинська обласна організація політичної партії ""Українське обʼєднання патріотів - УКРОП""",39946248,Волинська область,"Комісія за виконання платежів в національній валюті, згідно з відкритою офертою банку № б/н від 28.08.2015 та тарифів банку, без ПДВ",26007055507180,current,3.00,"ПАТ КБ ""Приватбанк""",14360570,юридична особа
УКРОП,"Київ, вулиця Михайла Грушевського, 1Д",70,2016-12-23,1223Б278ЬУ,Банківські послуги,Інші витрати,371023,"Волинська обласна організація політичної партії ""Українське обʼєднання патріотів - УКРОП""",39946248,Волинська область,"Комісія за виконання платежів в національній валюті, згідно з відкритою офертою банку № б/н від 28.08.2015 та тарифів банку, без ПДВ",26007055507180,current,3.00,"ПАТ КБ ""Приватбанк""",14360570,юридична особа
УКРОП,"Київ, вулиця Михайла Грушевського, 1Д",70,2016-12-23,1223Б20OWA,Банківські послуги,Інші витрати,371022,"Волинська обласна організація політичної партії ""Українське обʼєднання патріотів - УКРОП""",39946248,Волинська область,Комісія за поповнення карток для виплат та нецільові платежі,26007055507180,current,3.75,"ПАТ КБ ""Приватбанк""",14360570,юридична особа
УКРОП,"Київ, вулиця Михайла Грушевського, 1Д",70,2016-12-23,1223128Т2У,Банківські послуги,Інші витрати,371021,"Волинська обласна організація політичної партії ""Українське обʼєднання патріотів - УКРОП""",39946248,Волинська область,"Комісія за виконання платежів в національній валюті, згідно з відкритою офертою банку № б/н від 28.08.2015 та тарифів банку, без ПДВ",26007055507180,current,3.00,"ПАТ КБ ""Приватбанк""",14360570,юридична особа
УКРОП,"Київ, вулиця Михайла Грушевського, 1Д",70,2016-12-23,12231.2194Y,Банківські послуги,Інші витрати,371020,"Київська міська організація політичної партії ""Українське обʼєднання патріотів - УКРОП""",39976560,Київ,"Комісія за виконання платежів в національній валюті, згідно з відкритою см|>сріою банку № б/н від 04.09.2015 та тарифів банку, без ПДВ",26001052741968,current,3.00,"ПАТ КБ ""Приватбанк""",14360570,юридична особа
УКРОП,"Київ, вулиця Михайла Грушевського, 1Д",70,2016-12-23,12231.20АУУ,Банківські послуги,Інші витрати,371019,"Волинська обласна організація політичної партії ""Українське обʼєднання патріотів - УКРОП""",39946248,Волинська область,"Комісія за виконання платежів в національній валюті, згідно з відкритою офертою банку № б/н від 28.08.2015 та тарифів банку, без ПДВ",26007055507180,current,3.00,"ПАТ КБ ""Приватбанк""",14360570,юридична особа
УКРОП,"Київ, вулиця Михайла Грушевського, 1Д",70,2016-12-22,1590800006167,Банківські послуги,Інші витрати,372506,"Запозізька обласна парторганізація політичної партії ""Українське обʼєднання патріотів - УКРОП""",39923938,Запорізька область,оплата комісія за касове обслуговування по ЗОРППП УОП Укроп,26009055720384,current,4.85,"ПАТ КБ ""Приватбанк""",14360570,юридична особа
УКРОП,"Київ, вулиця Олександра Пироговського, 19",58,2016-12-22,162,"Виготовлення друкованих матеріалів (плакатів, листівок, буклетів та інших агітаційних матеріалів)",Друкована агітація,371479,"Київська міська організація політичної партії ""Українське обʼєднання патріотів - УКРОП""",39976560,Київ,"Оплата за листівки по рах Л""С<І>-0001222 від 22.12.16 р. зг.лог_№1/І2 від 22 12 2016р., в т ч ПДВ 500,00 гри",26001052741968,current,3000.00,"ТОВ ""ПРІНТ-ХАУС""",35008637,юридична особа
УКРОП,"Київ, вулиця Михайла Грушевського, 1Д",70,2016-12-21,1219Ь0Р2ІУ79,Банківські послуги,Інші витрати,372450,Центральний офіс,39479782,Київ,"Комісія за виконання платежів в національній валюті, згідно з відкритою офертою банку N б/н від 01.07.2015 та тарифів банку, без ПДВ.",26004052741642,current,3.00,"ПАТ КБ ""Приватбанк""",14360570,юридична особа
УКРОП,,79,2016-12-21,1V*'ч.519,"Оренда будинків і приміщень та експлуатаційні витрати (прибирання, страхування орендованих будинків, охорона, сигналізація, ремонт, вивіз сміття, тощо)",Оренда нерухомості,372302,"Волинська обласна організація політичної партії ""Українське обʼєднання патріотів - УКРОП""",39946248,Волинська область,"Компенсація витрат за газ зг. рах.№1477 від 06Л2.16р. У сумі 530,37грн., ПДВ-20% 106.07 гон.",26007055507180,current,636.44,ТОВ “Інвест-Контур “,38592673,юридична особа
УКРОП,"Полтавська область, Полтава, вулиця Пушкіна, 115",79,2016-12-21,111,"Оренда будинків і приміщень та експлуатаційні витрати (прибирання, страхування орендованих будинків, охорона, сигналізація, ремонт, вивіз сміття, тощо)",Оренда нерухомості,372294,"Полтавська обласна організація політичної партії ""Українське обʼєднання патріотів - УКРОП""",39947896,Полтавська область,"Відшкодування витрат за воду та водовідведенн по рах.2033/12 від 16.12.2016 р., рах. 1861/11 в т.ч. ПДВ -7.03 гри.",26003054616293,current,42.17,"ПП ""Зоря Полтавщини""",02474794,юридична особа
УКРОП,"Полтавська область, Полтава, вулиця Пушкіна, 115",79,2016-12-21,110,"Оренда будинків і приміщень та експлуатаційні витрати (прибирання, страхування орендованих будинків, охорона, сигналізація, ремонт, вивіз сміття, тощо)",Оренда нерухомості,372293,"Полтавська обласна організація політичної партії ""Українське обʼєднання патріотів - УКРОП""",39947896,Полтавська область,Відшкодування витрат за електроенергію по рах. 1860/11 від 30.1 1.2016 р. в т.ч. ПДВ 48.60 гри.,26003054616293,current,291.62,"ПП ""Зоря Полтавщини""",02474794,юридична особа
УКРОП,"Кіровоградська область, Кропивницький",79,2016-12-21,1076,"Оренда будинків і приміщень та експлуатаційні витрати (прибирання, страхування орендованих будинків, охорона, сигналізація, ремонт, вивіз сміття, тощо)",Оренда нерухомості,372290,Центральний офіс,39479782,Київ,Компенсація комунальних витрат за вересень-листопад 2016 р. зг.рах. № 118 від 30.11.2016 р. Без ПДВ,26004052741642,current,3521.40,Руденко Ольга Володимирівна,2960517380,фізична особа
УКРОП,,76,2016-12-21,521,Послуги зв’язку,Послуги зв’язку,372257,"Волинська обласна організація політичної партії ""Українське обʼєднання патріотів - УКРОП""",39946248,Волинська область,"За телекомунікаційні послуги ; листопад зґ.рах.№13111 935501 від 01.12.206р. У сумі 51,56 грн., ПЛВ -20% 10.31 гон.",26007055507180,current,61.87,"ПрАТ ""Датагруп""",31720260,юридична особа
УКРОП,"Миколаївська область, Миколаїв, вулиця Чкалова, 169",79,2016-12-21,66,"Оренда будинків і приміщень та експлуатаційні витрати (прибирання, страхування орендованих будинків, охорона, сигналізація, ремонт, вивіз сміття, тощо)",Оренда нерухомості,372006,"Миколаївська обласна організація політичної партії ""Українське обʼєднання патріотів - УКРОП""",39953669,Миколаївська область,Орендна плата за останній місяць згідно п. 3.6 договору суборенди №2/2 нежитлового приміщення від 1.11.16 V.,26001053221497,current,15570.00,"ТОВ Бізнес Центр ""Ніка""",40860798,юридична особа
УКРОП,"Волинська область, Камінь-Каширський район, Камінь-Каширський",79,2016-12-21,520,"Оренда будинків і приміщень та експлуатаційні витрати (прибирання, страхування орендованих будинків, охорона, сигналізація, ремонт, вивіз сміття, тощо)",Оренда нерухомості,371975,"Волинська обласна організація політичної партії ""Українське обʼєднання патріотів - УКРОП""",39946248,Волинська область,"За оренду приміщення зв листопаді та компослуги Зг. рах.№92 від ЗОЛ 1.16р. У сумі 928,46 грн.?ПДВ-20% 185,69 грн",26007055507180,current,1114.15,Камінь-Каширське виробниче управління житлово-комунального господарства,03339360,юридична особа
УКРОП,"Київ, бульвар Лесі Українки, 3",72,2016-12-21,1077,"Придбання, ремонт офісної техніки та програмного забезпечення (Бухгалтерські програми, Ліга.закон, домени)",Придбання офісної техніки та програмного забезпечення,371536,Центральний офіс,39479782,Київ,"Передплата на газету ""Все про бух облік"" інд. 33594 (укр) адреса доставки м. Київ, вул. Володимирська, 12 оф. 307 (т.0679946264) зг.рах. №26/263-1180 від 21.12.2016 р. Без ПДВ",26004052741642,current,4512.48,"РГ ""Все про бух.облік""",20021027,юридична особа
УКРОП,"Київ, вулиця Михайла Грушевського, 1Д",70,2016-12-21,15AÖ500044,Банківські послуги,Інші витрати,371102,"Чернівецька обласна регіональна парторганізація політичної партії ""Українське обʼєднання патріотів - УКРОП""",39914462,Чернівецька область,комла кас.обсл.,26007051500149,current,5.84,"ПАТ КБ ""Приватбанк""",14360570,юридична особа
УКРОП,"Київ, вулиця Михайла Грушевського, 1Д",70,2016-12-21,1221L3B0SY,Банківські послуги,Інші витрати,371018,"Полтавська обласна організація політичної партії ""Українське обʼєднання патріотів - УКРОП""",39947896,Полтавська область,"Комісія за виконання платежів в національній валюті, згідно з відкритою офертою банку N б/н від 21.08.2015 та тарифів банку, без ПДВ.",26003054616293,current,3.00,"ПАТ КБ ""Приватбанк""",14360570,юридична особа
УКРОП,"Київ, вулиця Михайла Грушевського, 1Д",70,2016-12-21,1221L3B0PY,Банківські послуги,Інші витрати,371017,"Полтавська обласна організація політичної партії ""Українське обʼєднання патріотів - УКРОП""",39947896,Полтавська область,"Комісія за виконання платежів в національній валюті, згідно з відкритою офертою банку N б/н від 21.08.2015 та тарифів банку, без І ІДВ.",26003054616293,current,3.00,"ПАТ КБ ""Приватбанк""",14360570,юридична особа
УКРОП,"Київ, вулиця Михайла Грушевського, 1Д",70,2016-12-21,1221Ь319ОМУ,Банківські послуги,Інші витрати,371016,"Волинська обласна організація політичної партії ""Українське обʼєднання патріотів - УКРОП""",39946248,Волинська область,"Комісія за виконання платежів в національній валюті, згідно з відкритою офертою банку № б/н від 28.08.2015 та тарифів банку, без ПДВ",26007055507180,current,3.00,"ПАТ КБ ""Приватбанк""",14360570,юридична особа
УКРОП,"Київ, вулиця Михайла Грушевського, 1Д",70,2016-12-21,1221БЗРЯ9У,Банківські послуги,Інші витрати,371015,"Волинська обласна організація політичної партії ""Українське обʼєднання патріотів - УКРОП""",39946248,Волинська область,"Комісія за виконання платежів в національній валюті, згідно з відкритою офертою банку № б/н від 28.08.2015 та тарифів банку, без ПДВ",26007055507180,current,3.00,"ПАТ КБ ""Приватбанк""",14360570,юридична особа
УКРОП,"Київ, вулиця Михайла Грушевського, 1Д",70,2016-12-21,1221БЗІРГУ,Банківські послуги,Інші витрати,371014,"Волинська обласна організація політичної партії ""Українське обʼєднання патріотів - УКРОП""",39946248,Волинська область,"Комісія за виконання платежів в національній валюті, згідно з відкритою офертою банку № б/н від 28.08.2015 та тарифів банку, без ПДВ",26007055507180,current,3.00,"ПАТ КБ ""Приватбанк""",14360570,юридична особа
УКРОП,"Київ, вулиця Предславинська, 34Б",79,2016-12-20,1074,"Оренда будинків і приміщень та експлуатаційні витрати (прибирання, страхування орендованих будинків, охорона, сигналізація, ремонт, вивіз сміття, тощо)",Оренда нерухомості,374164,Центральний офіс,39479782,Київ,"За воду бутильовану зг.рах. № 2667 від 16.12.2016 р. У сумі 562,50 грн. ПДВ-20% 112,50 грн.",26004052741642,current,675.00,"ДП ""Райське Джерело""",30858101,юридична особа
УКРОП,"Чернівецька область, Чернівці, вулиця Кобилянської, 11",61,2016-12-20,63,Військовий збір,Податкові платежі,374009,"Чернівецька обласна регіональна парторганізація політичної партії ""Українське обʼєднання патріотів - УКРОП""",39914462,Чернівецька область,військовий збір за 11.2016р.,26007051500149,current,43.50,УДКСУ у м. Чернівці,37978173,юридична особа
УКРОП,"Сумська область, Суми, вулиця Троїцька, 8",61,2016-12-20,295,Військовий збір,Податкові платежі,373960,"Сумська обласна організація політичної партії ""Українське обʼєднання патріотів - УКРОП""",39945637,Сумська область,"військовий збір 1,5% із заробітної плати за першу половину грудня 2016р.",26000055016685,current,21.95,УДКСУ у м. Суми,37970593,юридична особа
УКРОП,"Запорізька область, Запоріжжя, вулиця Олександрівська, 7",61,2016-12-20,174,Військовий збір,Податкові платежі,373902,"Запозізька обласна парторганізація політичної партії ""Українське обʼєднання патріотів - УКРОП""",39923938,Запорізька область,39923938;11011000; воєнний збір із з/плати за 1-у пол.грудня 16р. Без ПДВ,26009055720384,current,40.00,УДКСУ в Олександрівському районі м. Запоріжжя,38025440,юридична особа
УКРОП,"Чернівецька область, Чернівці, вулиця Героїв Майдану, 200А",62,2016-12-20,62,Сплата ЄСВ,Податкові платежі,373767,"Чернівецька обласна регіональна парторганізація політичної партії ""Українське обʼєднання патріотів - УКРОП""",39914462,Чернівецька область,ССИ та 11.2016р,26007051500149,current,638.00,ДПІ в м.Чернівцях ГУДФС у Черн.обл.,39579145,юридична особа
УКРОП,"Сумська область, Суми, Покровська площа, 2",62,2016-12-20,296,Сплата ЄСВ,Податкові платежі,373733,"Сумська обласна організація політичної партії ""Українське обʼєднання патріотів - УКРОП""",39945637,Сумська область,єдиний внесок 22% на заробітну плату за першу половину грудня 2016р.,26000055016685,current,322.00,ДПІ у м. Сумах,39563287,юридична особа
УКРОП,"Запорізька область, Запоріжжя, вулиця Дніпровська, 34",62,2016-12-20,175,Сплата ЄСВ,Податкові платежі,373682,"Запозізька обласна парторганізація політичної партії ""Українське обʼєднання патріотів - УКРОП""",39923938,Запорізька область,39923938;Єдиний внесок на заг. Соцстрахування за 1-у пол. грудня16р. Реєстр №10000000443721;;;,26009055720384,current,600.00,ДПІ у Жовтневому районі м. Запоріжжя ГУ ДФС у Запорізькій області,39501110,юридична особа
УКРОП,"Чернівецька область, Чернівці, вулиця Кобилянської, 11",63,2016-12-20,63,Податок на доходи,Податкові платежі,373548,"Чернівецька обласна регіональна парторганізація політичної партії ""Українське обʼєднання патріотів - УКРОП""",39914462,Чернівецька область,под.з дох.фіз.оіб за 11.2016р.,26007051500149,current,522.00,УДКСУ у м. Чернівці,37978173,юридична особа
УКРОП,"Сумська область, Суми, вулиця Троїцька, 8",63,2016-12-20,297,Податок на доходи,Податкові платежі,373498,"Сумська обласна організація політичної партії ""Українське обʼєднання патріотів - УКРОП""",39945637,Сумська область,податок з доходу фізичних осіб із заробітної плати за першу половину грудня 2016р.,26000055016685,current,263.46,УДКСУ у м. Суми,37970593,юридична особа
УКРОП,"Запорізька область, Запоріжжя, вулиця Олександрівська, 7",63,2016-12-20,173,Податок на доходи,Податкові платежі,373444,"Запозізька обласна парторганізація політичної партії ""Українське обʼєднання патріотів - УКРОП""",39923938,Запорізька область,101;39923938; податок з доходів ФО із з/плати за 1-у пол.грудня 16р.;;;,26009055720384,current,450.00,УДКСУ в Олександрівському районі м. Запоріжжя,38025440,юридична особа
УКРОП,,84,2016-12-20,70,"Заробітна плата, премії","Заробітна плата, лікарняні, вагітності, відрядження, компенсації",372983,"Чернівецька обласна регіональна парторганізація політичної партії ""Українське обʼєднання патріотів - УКРОП""",39914462,Чернівецька область,з/плата,26007051500149,current,1167.25,Ткачук В В,,фізична особа
УКРОП,,84,2016-12-20,70,"Заробітна плата, премії","Заробітна плата, лікарняні, вагітності, відрядження, компенсації",372982,"Чернівецька обласна регіональна парторганізація політичної партії ""Українське обʼєднання патріотів - УКРОП""",39914462,Чернівецька область,з/плата,26007051500149,current,1167.25,Кривннчук Г Т,,фізична особа
УКРОП,,84,2016-12-20,65,"Заробітна плата, премії","Заробітна плата, лікарняні, вагітності, відрядження, компенсації",372974,"Чернівецька обласна регіональна парторганізація політичної партії ""Українське обʼєднання патріотів - УКРОП""",39914462,Чернівецька область,з/плата,26007051500149,current,1167.25,Ткачук В В,,фізична особа
УКРОП,,84,2016-12-20,65,"Заробітна плата, премії","Заробітна плата, лікарняні, вагітності, відрядження, компенсації",372973,"Чернівецька обласна регіональна парторганізація політичної партії ""Українське обʼєднання патріотів - УКРОП""",39914462,Чернівецька область,з/плата,26007051500149,current,1167.25,Кривннчук Г Т,,фізична особа
УКРОП,"Запорізька область, Запоріжжя",84,2016-12-20,172,"Заробітна плата, премії","Заробітна плата, лікарняні, вагітності, відрядження, компенсації",372870,"Запозізька обласна парторганізація політичної партії ""Українське обʼєднання патріотів - УКРОП""",39923938,Запорізька область,"заробітна плата за 1-ю пол. грудня 16р. Податки в бюджет перераховані повністю 20,12.16р.",26009055720384,current,645.00,Россоха Марина Олександрівна,,фізична особа
УКРОП,"Запорізька область, Запоріжжя",84,2016-12-20,172,"Заробітна плата, премії","Заробітна плата, лікарняні, вагітності, відрядження, компенсації",372869,"Запозізька обласна парторганізація політичної партії ""Українське обʼєднання патріотів - УКРОП""",39923938,Запорізька область,"заробітна плата за 1-у пол. грудня 16р. Податки в бюджет перераховані повністю 20,12.16р.",26009055720384,current,645.00,Гришина Тетяна Миколаївна,,фізична особа
УКРОП,"Запорізька область, Запоріжжя",84,2016-12-20,172,"Заробітна плата, премії","Заробітна плата, лікарняні, вагітності, відрядження, компенсації",372868,"Запозізька обласна парторганізація політичної партії ""Українське обʼєднання патріотів - УКРОП""",39923938,Запорізька область,"заробітна плата за 1-у пол. грудня 16р. Податки в бюджет перераховані повністю 20,12.16р.",26009055720384,current,650.00,Гришин Ярослав Володимирович,,фізична особа
УКРОП,,84,2016-12-20,160930СТ766528,"Заробітна плата, премії","Заробітна плата, лікарняні, вагітності, відрядження, компенсації",372837,"Сумська обласна організація політичної партії ""Українське обʼєднання патріотів - УКРОП""",39945637,Сумська область,заробітна плата за першу половину грудня 2016р.,26000055016685,current,922.10,Чаленко Ольга Андріївна,,фізична особа
УКРОП,,84,2016-12-20,160930СТ766528,"Заробітна плата, премії","Заробітна плата, лікарняні, вагітності, відрядження, компенсації",372836,"Сумська обласна організація політичної партії ""Українське обʼєднання патріотів - УКРОП""",39945637,Сумська область,заробітна плата за першу половину грудня 2016р.,26000055016685,current,256.15,Луговий Владислав Віталійович,,фізична особа
УКРОП,"Київ, вулиця Михайла Грушевського, 1Д",70,2016-12-20,Банківськавиписказа28.09.2016667,Банківські послуги,Інші витрати,372626,"Вінницька обласна організація політичної партії ""Українське обʼєднання патріотів - УКРОП""",39901123,Вінницька область,Комісія банку,26002055324323,current,6.00,"ПАТ КБ ""Приватбанк""",14360570,юридична особа
УКРОП,"Київ, вулиця Михайла Грушевського, 1Д",70,2016-12-20,1219Ь0Р2ІУ78,Банківські послуги,Інші витрати,372449,Центральний офіс,39479782,Київ,"Комісія за виконання платежів в національній валюті, згідно з відкритою офертою банку N б/н від 01.07.2015 та тарифів банку, без ПДВ.",26004052741642,current,3.00,"ПАТ КБ ""Приватбанк""",14360570,юридична особа
УКРОП,"Київ, вулиця Михайла Грушевського, 1Д",70,2016-12-20,1219Б0Р2СУ77,Банківські послуги,Інші витрати,372448,Центральний офіс,39479782,Київ,"Комісія за виконання платежів в національній валюті, згідно з відкритою офертою банку N б/н від 01.07.2015 та тарифів банку, без ПДВ.",26004052741642,current,3.00,"ПАТ КБ ""Приватбанк""",14360570,юридична особа
УКРОП,"Полтавська область, Полтава, Зіньківська вулиця, 6",79,2016-12-20,299,"Оренда будинків і приміщень та експлуатаційні витрати (прибирання, страхування орендованих будинків, охорона, сигналізація, ремонт, вивіз сміття, тощо)",Оренда нерухомості,372318,"Сумська обласна організація політичної партії ""Українське обʼєднання патріотів - УКРОП""",39945637,Сумська область,"відшкодування комунальних послуг за листопад 2016р., згідно договору № 2-178-2016/ВЦ від 01.03.2016р.",26000055016685,current,4186.02,"ПП ""Торгівельний центр ""Київ""",36324299,юридична особа
УКРОП,"Полтавська область, Полтава, вулиця Комарова, 2А",79,2016-12-20,109,"Оренда будинків і приміщень та експлуатаційні витрати (прибирання, страхування орендованих будинків, охорона, сигналізація, ремонт, вивіз сміття, тощо)",Оренда нерухомості,372292,"Полтавська обласна організація політичної партії ""Українське обʼєднання патріотів - УКРОП""",39947896,Полтавська область,"За теплову енергію (централізоване опалення) по рах. АВ-10305 від 24.1 1.2016 р. в т.ч. ПДВ 470,41",26003054616293,current,2822.44,"ПОКВПП ""Полтаватеплоенерго""",03338030,юридична особа
УКРОП,"Київ, бульвар Тараса Шевченка, 18",76,2016-12-20,518,Послуги зв’язку,Послуги зв’язку,372256,"Волинська обласна організація політичної партії ""Українське обʼєднання патріотів - УКРОП""",39946248,Волинська область,"За телекомунікаційні послуги за листопад зг.рах.№0701000000001017.11. 2016р. Від ЗОЛ 1.2016р. У сумі 245,00 Гри., ПДВ-20% 49,00 грн.",26007055507180,current,294.00,"ПАТ ""Укртелеком""",21560766,юридична особа
УКРОП,"Київ, вулиця Предславинська, 34Б",78,2016-12-20,1075,Оренда обладнання та технічних засобів,Оренда обладнання та технічних засобів,372153,Центральний офіс,39479782,Київ,"За оренду кулерів зг.рах. № 663 від 01.12.16 р. у сумі 420,00грн. ПДВ-20% 84,00 грн.",26004052741642,current,504.00,"ДП ""Райське Джерело""",30858101,юридична особа
УКРОП,"Полтавська область, Полтава, Зіньківська вулиця, 6",79,2016-12-20,298,"Оренда будинків і приміщень та експлуатаційні витрати (прибирання, страхування орендованих будинків, охорона, сигналізація, ремонт, вивіз сміття, тощо)",Оренда нерухомості,371854,"Сумська обласна організація політичної партії ""Українське обʼєднання патріотів - УКРОП""",39945637,Сумська область,"передплата за оренду за січень 2016р., згідно договору № 2-178-2016/ВЦ від 01.03.2016р.",26000055016685,current,2985.00,"ПП ""Торгівельний центр ""Київ""",36324299,юридична особа
УКРОП,"Вінницька область, Вінниця, провулок Залізничний, 6",77,2016-12-20,183,"Оренда, ремонт та обслуговування автомобілів","Оренда, ремонт та обслуговування автомобілів",371667,"Вінницька обласна організація політичної партії ""Українське обʼєднання патріотів - УКРОП""",39901123,Вінницька область,"За ОПС тривожна кнопка в грудні 2016 р. зг рах N 21958 від 1.12.2016 р. У сумі 623,10 грн., ПДВ - 20 % 124,62 грн.",26002055324323,current,747.72,УПО у Вінницькій обл,40109132,юридична особа
УКРОП,"Вінницька область, Вінниця, провулок Залізничний, 6",77,2016-12-20,182,"Оренда, ремонт та обслуговування автомобілів","Оренда, ремонт та обслуговування автомобілів",371666,"Вінницька обласна організація політичної партії ""Українське обʼєднання патріотів - УКРОП""",39901123,Вінницька область,"За ОПС обєкти за грудень 2016 р. зг рах N 21957 від 1.12.2016 р. У сумі 18,00 грн., ПДВ -20 % 3,60 грн.",26002055324323,current,21.60,УПО у Вінницькій обл,40109132,юридична особа
УКРОП,"Київ, вулиця Михайла Грушевського, 1Д",70,2016-12-20,1220ЬШОУ,Банківські послуги,Інші витрати,371013,"Волинська обласна організація політичної партії ""Українське обʼєднання патріотів - УКРОП""",39946248,Волинська область,"Комісія за виконання платежів в національній валюті, згідно з відкритою офертою банку № б/н від 28.08.2015 та тарифів банку, без ПДВ",26007055507180,current,3.00,"ПАТ КБ ""Приватбанк""",14360570,юридична особа
УКРОП,"Київ, вулиця Михайла Грушевського, 1Д",70,2016-12-20,1220,Банківські послуги,Інші витрати,371012,"Чернівецька обласна регіональна парторганізація політичної партії ""Українське обʼєднання патріотів - УКРОП""",39914462,Чернівецька область,комісія та виконання платежів,26007051500149,current,14.00,"ПАТ КБ ""Приватбанк""",14360570,юридична особа
УКРОП,"Київ, вулиця Михайла Грушевського, 1Д",70,2016-12-20,1219L06JNY,Банківські послуги,Інші витрати,371011,"Полтавська обласна організація політичної партії ""Українське обʼєднання патріотів - УКРОП""",39947896,Полтавська область,"Комісія за виконання платежів в національній валюті, згідно з відкритою офертою банку N б/н від 21.08.2015 та тарифів банку, без ІІДВ.",26003054616293,current,3.00,"ПАТ КБ ""Приватбанк""",14360570,юридична особа
УКРОП,"Київ, вулиця Михайла Грушевського, 1Д",70,2016-12-20,1219Ь14КІУ,Банківські послуги,Інші витрати,371010,"Запозізька обласна парторганізація політичної партії ""Українське обʼєднання патріотів - УКРОП""",39923938,Запорізька область,"комісія за виконання платежів в національній валюті, згідно офертою банку №б/н від 13.08.2015",26009055720384,current,3.00,"ПАТ КБ ""Приватбанк""",14360570,юридична особа
УКРОП,"Київ, вулиця Михайла Грушевського, 1Д",70,2016-12-20,1219Б1484У,Банківські послуги,Інші витрати,371009,"Запозізька обласна парторганізація політичної партії ""Українське обʼєднання патріотів - УКРОП""",39923938,Запорізька область,"комісія за виконання платежів в національній валюті, згідно офертою банку №б/н від 13.08.2015",26009055720384,current,3.00,"ПАТ КБ ""Приватбанк""",14360570,юридична особа
УКРОП,"Київ, вулиця Михайла Грушевського, 1Д",70,2016-12-17,1219Б0Р2СУ76,Банківські послуги,Інші витрати,372447,Центральний офіс,39479782,Київ,"оплта комісії за касове обслуговувавння по УКР. ОБ'ЄДНАННЯ ПАТРІОТІВ0УКРОП""",26004052741642,current,101.73,"ПАТ КБ ""Приватбанк""",14360570,юридична особа
УКРОП,"Тернопільська область, Тернопіль, вулиця Листопадова, 9",64,2016-12-16,1063,Повернення платежів партії,Повернення,374163,Центральний офіс,39479782,Київ,Повернення поворотної фінансової допомоги згідно,26004052741642,current,35000.00,"Тернопільська обласна регіональна парторганізація політичної партії ""Українське обʼєднання патріотів - УКРОП""",39943199,юридична особа
УКРОП,"Миколаївська область, Миколаїв, вулиця Миколаївська, 19",64,2016-12-16,1054,Повернення платежів партії,Повернення,374138,Центральний офіс,39479782,Київ,Часткове повернення поворотної фінансової допомоги згідно договору N 10-03/16-1 від 10.03.2016 р. Без ПДВ,26004052741642,current,8860.00,"Миколаївська обласна організація політичної партії ""Українське обʼєднання патріотів - УКРОП""",39953669,юридична особа
УКРОП,"Житомирська область, Житомир, Путятинський майдан, 2, 619",64,2016-12-16,1047,Повернення платежів партії,Повернення,374136,Центральний офіс,39479782,Київ,Часткове повернення поворотної фінансової допомоги згідно договору N 10-03/16-1 від 10.03.2016 р. Без ПДВ,26004052741642,current,6000.00,"Житомирська обласна організація політичної партії ""Українське обʼєднання патріотів - УКРОП""",39925338,юридична особа
УКРОП,"Київ, вулиця Леоніда Первомайського, 9А",60,2016-12-16,1064,Інші податки,Податкові платежі,374084,Центральний офіс,39479782,Київ,"101;39479782;Судовий збір, за позовом ПОЛІТИЧНА...",26004052741642,current,1378.00,УДКСУ у Печерському районі м. Києва,38004897,юридична особа
УКРОП,"Волинська область, Луцьк, вулиця Стрілецька, 4А",61,2016-12-16,519,Військовий збір,Податкові платежі,373992,"Волинська обласна організація політичної партії ""Українське обʼєднання патріотів - УКРОП""",39946248,Волинська область,101;39946248;Військовий збір 3 ДОХОДІВ: фізичної ОСОби за послуги оренди.Оплата повністю 16.12.16р.;;;,26007055507180,current,16.97,УДКСУ у м. Луцьку,38009628,юридична особа
УКРОП,"Київ, вулиця Академіка Туполєва, 28А",61,2016-12-16,1070,Військовий збір,Податкові платежі,373847,Центральний офіс,39479782,Київ,"101;39479782;Військовий збір 1,5% із зарплати за жовтень 2016 р.",26004052741642,current,768.41,УДКСУ у Шевченківському районі м. Києва,37995466,юридична особа
УКРОП,"Київ, вулиця Академіка Туполєва, 28А",61,2016-12-16,1066,Військовий збір,Податкові платежі,373845,Центральний офіс,39479782,Київ,"101 ;39479782; 11011000;В ійськовий збір 1,5% із доходу Бурди О.С.ІПН 1686708876(наданн.приміщ в оренду) Термін сплати 16.12.2016р.Нарах та перераховано повністю",26004052741642,current,153.00,УДКСУ у Шевченківському районі м. Києва,37995466,юридична особа
УКРОП,"Київ, вулиця Володимирська, 69",61,2016-12-16,1060,Військовий збір,Податкові платежі,373844,Центральний офіс,39479782,Київ,"101;39479782;11011000;В ійськовий збір 1,5% із доходу Бурди О.С.ІПН 1686708876(наданн.приміщ в оренду) Термін сплати 16.12.2016р.Нарах та перераховано повністю",26004052741642,current,153.00,УДКСУ у Голосіївському районі м. Києва,38039757,юридична особа
УКРОП,"Київ, вулиця Багговутівська, 26",62,2016-12-16,1068,Сплата ЄСВ,Податкові платежі,373629,Центральний офіс,39479782,Київ,101;39479782;Сплата ЄСВ 22% із зарплати за грудень 2016р. Термін сплати 16.12.2016р. Нарах. та перерах. повністю;,26004052741642,current,11135.70,ДПІ у Шевченківському районі у м. Києві,39561761,юридична особа
УКРОП,"Волинська область, Луцьк, вулиця Стрілецька, 4А",63,2016-12-16,518,Податок на доходи,Податкові платежі,373530,"Волинська обласна організація політичної партії ""Українське обʼєднання патріотів - УКРОП""",39946248,Волинська область,101 ;3 9946248; 11010100 ;Пода ток з доходів фізичних осіб 3 послуг оренди.Оплата повністю 16.12.16р.;;;,26007055507180,current,203.54,УДКСУ у м. Луцьку,38009628,юридична особа
УКРОП,"Київ, вулиця Академіка Туполєва, 28А",63,2016-12-16,1069,Податок на доходи,Податкові платежі,373386,Центральний офіс,39479782,Київ,101;39479782;Сплата ПДФО із зарплати за грудень 2016 р. Термін сплати 16.12.2016 р Нараховано та перерах повністю.,26004052741642,current,8848.99,УДКСУ у Шевченківському районі м. Києва,37995466,юридична особа
УКРОП,"Київ, вулиця Академіка Туполєва, 28А",63,2016-12-16,1067,Податок на доходи,Податкові платежі,373385,Центральний офіс,39479782,Київ,101;39479782;11010400;П ДФО з доходу Бурди О.С.ІПН 1686708876(за посл по наданню приміщ в оренду)Термін сплати 16.12.16р. Нараховано та перераховано повністю,26004052741642,current,1836.00,УДКСУ у Шевченківському районі м. Києва,37995466,юридична особа
УКРОП,"Київ, вулиця Володимирська, 69",63,2016-12-16,1059,Податок на доходи,Податкові платежі,373382,Центральний офіс,39479782,Київ,101;39479782;11010400;П ДФО з доходу Бурди О.С.ІПН 1686708876(за посл по наданню приміщ в оренду)Термін сплати 16.12.16р. Нараховано та перераховано повністю,26004052741642,current,1836.00,УДКСУ у Голосіївському районі м. Києва,38039757,юридична особа
УКРОП,Київ,84,2016-12-16,1072,"Заробітна плата, премії","Заробітна плата, лікарняні, вагітності, відрядження, компенсації",372717,Центральний офіс,39479782,Київ,Зарплата за грудень 2016 р.,26004052741642,current,920.89,Кікін Олександр Сергійович,,фізична особа
УКРОП,"Київська обл., Васильків",84,2016-12-16,1071,"Заробітна плата, премії","Заробітна плата, лікарняні, вагітності, відрядження, компенсації",372716,Центральний офіс,39479782,Київ,Зарплата за грудень 2016 р.,26004052741642,current,2012.50,Турчин Анна Олександрівна,,фізична особа
УКРОП,Київ,84,2016-12-16,1071,"Заробітна плата, премії","Заробітна плата, лікарняні, вагітності, відрядження, компенсації",372715,Центральний офіс,39479782,Київ,Зарплата за грудень 2016 р.,26004052741642,current,1906.89,Титарчук Тетяна Євгенівна,,фізична особа
УКРОП,"Київська обл., Миронівський район, Миронівка",84,2016-12-16,1071,"Заробітна плата, премії","Заробітна плата, лікарняні, вагітності, відрядження, компенсації",372714,Центральний офіс,39479782,Київ,Зарплата за грудень 2016 р.,26004052741642,current,2067.89,Ситник Павло Анатолійович,3063103357,фізична особа
УКРОП,"Київська обл., Васильків",84,2016-12-16,1071,"Заробітна плата, премії","Заробітна плата, лікарняні, вагітності, відрядження, компенсації",372713,Центральний офіс,39479782,Київ,Зарплата за грудень 2016 р.,26004052741642,current,2631.39,Кривенко Тарас Олександрович,,фізична особа
УКРОП,Київ,84,2016-12-16,1071,"Заробітна плата, премії","Заробітна плата, лікарняні, вагітності, відрядження, компенсації",372712,Центральний офіс,39479782,Київ,Зарплата за грудень 2016 р.,26004052741642,current,8171.07,Кравчук Євгенія Михайлівна,,фізична особа
УКРОП,"Київська обл., Бородянський район, Клавдієво-Тарасове",84,2016-12-16,1071,"Заробітна плата, премії","Заробітна плата, лікарняні, вагітності, відрядження, компенсації",372711,Центральний офіс,39479782,Київ,Зарплата за грудень 2016 р.,26004052741642,current,1547.91,Коріний Олександр Іванович,,фізична особа
УКРОП,"Івано-Франківська область, Богородчанський район, Жураки",84,2016-12-16,1071,"Заробітна плата, премії","Заробітна плата, лікарняні, вагітності, відрядження, компенсації",372710,Центральний офіс,39479782,Київ,Зарплата за грудень 2016 р.,26004052741642,current,1547.91,Гунда Сергій Анатолійович,,фізична особа
УКРОП,"Хмельницька область, Полонський район, Велика Березна",84,2016-12-16,1071,"Заробітна плата, премії","Заробітна плата, лікарняні, вагітності, відрядження, компенсації",372709,Центральний офіс,39479782,Київ,Зарплата за грудень 2016 р.,26004052741642,current,1987.39,Грень Павло Вʼячеславович,,фізична особа
УКРОП,Київ,84,2016-12-16,1071,"Заробітна плата, премії","Заробітна плата, лікарняні, вагітності, відрядження, компенсації",372708,Центральний офіс,39479782,Київ,Зарплата за грудень 2016 р.,26004052741642,current,2067.89,Гордієнко Інна Володимирівна,,фізична особа
УКРОП,"Київська обл., Ірпінь",84,2016-12-16,1071,"Заробітна плата, премії","Заробітна плата, лікарняні, вагітності, відрядження, компенсації",372707,Центральний офіс,39479782,Київ,Зарплата за грудень 2016 р.,26004052741642,current,12130.39,Борисенко Денис Валерійович,2909505597,фізична особа
УКРОП,Київ,84,2016-12-16,1071,"Заробітна плата, премії","Заробітна плата, лікарняні, вагітності, відрядження, компенсації",372706,Центральний офіс,39479782,Київ,Зарплата за грудень 2016 р.,26004052741642,current,2631.39,Білінська Олена Анатоліївна,,фізична особа
УКРОП,Київ,84,2016-12-16,1071,"Заробітна плата, премії","Заробітна плата, лікарняні, вагітності, відрядження, компенсації",372705,Центральний офіс,39479782,Київ,Зарплата за грудень 2016 р.,26004052741642,current,1987.39,Білінська Марія Михайлівна,,фізична особа
УКРОП,"Волинська область, Шацький район, Шацьк",79,2016-12-16,,"Оренда будинків і приміщень та експлуатаційні витрати (прибирання, страхування орендованих будинків, охорона, сигналізація, ремонт, вивіз сміття, тощо)",Оренда нерухомості,372397,"Волинська обласна організація політичної партії ""Українське обʼєднання патріотів - УКРОП""",39946248,Волинська область,"#5168755621934450 ІПН 2130921572 Бортнік П.О. Відшкодування компослуг червень-вересень,листопад 2016р. зг.дог.№15/16 від 01.02.16р. Без ПДВ",26007055507180,current,910.30,Бортнік Павло Олександрович,,фізична особа
УКРОП,"Київ, вулиця Володимирська, 12",79,2016-12-16,1073,"Оренда будинків і приміщень та експлуатаційні витрати (прибирання, страхування орендованих будинків, охорона, сигналізація, ремонт, вивіз сміття, тощо)",Оренда нерухомості,371784,Центральний офіс,39479782,Київ,Оренда приміщення вгрудні згідно рах N 231 від 16...,26004052741642,current,33267.01,"ПАТ ""БУДІВЕЛ ЬНО-ФІНАНСОВА КОМПАНІЯ ""ГЛОБАЛ ЕСТЕЙТС""",24925429,юридична особа
УКРОП,"Хмельницька область, Дунаєвецький район, Дунаївці, провулок Широкий",79,2016-12-16,1062,"Оренда будинків і приміщень та експлуатаційні витрати (прибирання, страхування орендованих будинків, охорона, сигналізація, ремонт, вивіз сміття, тощо)",Оренда нерухомості,371783,Центральний офіс,39479782,Київ,Оплата за оренду приміщення у грудні 2016р. зг. д...,26004052741642,current,2500.00,Туркот Андрій Корнелійович,2617202396,фізична особа
УКРОП,"Хмельницька область, Хмельницький, проспект Миру, 72, 9",79,2016-12-16,1061,"Оренда будинків і приміщень та експлуатаційні витрати (прибирання, страхування орендованих будинків, охорона, сигналізація, ремонт, вивіз сміття, тощо)",Оренда нерухомості,371782,Центральний офіс,39479782,Київ,Оплата за оренду приміщення в грудні 2016 р. зг.дог. Оренди №15/07-2016 від 15.07.2016р. Без ПДВ,26004052741642,current,7500.00,Давидюк Денис Олександрович,3145617858,фізична особа
УКРОП,"Херсонська область, Приозерне",79,2016-12-16,1058,"Оренда будинків і приміщень та експлуатаційні витрати (прибирання, страхування орендованих будинків, охорона, сигналізація, ремонт, вивіз сміття, тощо)",Оренда нерухомості,371781,Центральний офіс,39479782,Київ,Оплата за оренду приміщення у грудні 2016 р.зг.до...,26004052741642,current,8211.00,Бурда Олександр Степанович,,фізична особа
УКРОП,"Харківська область, Харків, вулиця Гарібальді, 8",79,2016-12-16,1057,"Оренда будинків і приміщень та експлуатаційні витрати (прибирання, страхування орендованих будинків, охорона, сигналізація, ремонт, вивіз сміття, тощо)",Оренда нерухомості,371780,Центральний офіс,39479782,Київ,Оплата за оренду приміщення у грудні 2016 р.зг.до...,26004052741642,current,19500.00,Ярославська Інна Олександрівна,2863819624,фізична особа
УКРОП,"Одеська область, Одеса, вулиця Космонавтів, 52, 17",79,2016-12-16,1056,"Оренда будинків і приміщень та експлуатаційні витрати (прибирання, страхування орендованих будинків, охорона, сигналізація, ремонт, вивіз сміття, тощо)",Оренда нерухомості,371779,Центральний офіс,39479782,Київ,Доплата за оренду приміщення у грудні 2016р. зг. .,26004052741642,current,9449.79,Яшкіна Вікторія Миколаївна,2963220023,фізична особа
УКРОП,"Кіровоградська область, Кропивницький",79,2016-12-16,1053,"Оренда будинків і приміщень та експлуатаційні витрати (прибирання, страхування орендованих будинків, охорона, сигналізація, ремонт, вивіз сміття, тощо)",Оренда нерухомості,371778,Центральний офіс,39479782,Київ,Оплата за оренду приміщення у грудні 2016р. зг. д...,26004052741642,current,8500.00,Руденко Ольга Володимирівна,2960517380,фізична особа
УКРОП,"Київ, вулиця Автозаводська, 27, 47",79,2016-12-16,1052,"Оренда будинків і приміщень та експлуатаційні витрати (прибирання, страхування орендованих будинків, охорона, сигналізація, ремонт, вивіз сміття, тощо)",Оренда нерухомості,371777,Центральний офіс,39479782,Київ,Для зарах. на к/р N 0576617700 ФОП Недашківської .,26004052741642,current,17500.00,Недашківська Валентина Миколаївна,2191212747,фізична особа
УКРОП,"Івано-Франківська область, Івано-Франківськ, вулиця Гетьмана Мазепи",79,2016-12-16,1051,"Оренда будинків і приміщень та експлуатаційні витрати (прибирання, страхування орендованих будинків, охорона, сигналізація, ремонт, вивіз сміття, тощо)",Оренда нерухомості,371776,Центральний офіс,39479782,Київ,Оплата за оренду приміщення в грудні 2016р. зг.до.,26004052741642,current,12000.00,Олійник Мирослав Ігорович,2927213718,фізична особа
УКРОП,"Запорізька область, Запоріжжя, вулиця Вороніна, 9, 48",79,2016-12-16,1050,"Оренда будинків і приміщень та експлуатаційні витрати (прибирання, страхування орендованих будинків, охорона, сигналізація, ремонт, вивіз сміття, тощо)",Оренда нерухомості,371775,Центральний офіс,39479782,Київ,Оплата за суборенду приміщення у грудні 2016р. зг...,26004052741642,current,14770.00,"ТОВ ""Міжнародна юридична фірма ""Ярослав Гришин та партнери""",38732398,юридична особа
УКРОП,"Закарпатська область, Ужгород, вулиця Швабська, 66",79,2016-12-16,1049,"Оренда будинків і приміщень та експлуатаційні витрати (прибирання, страхування орендованих будинків, охорона, сигналізація, ремонт, вивіз сміття, тощо)",Оренда нерухомості,371774,Центральний офіс,39479782,Київ,Оплата за оренду приміщення у грудні 2016 р. зг.....,26004052741642,current,8000.00,Мельничин Юлія Іванівна,3298314188,фізична особа
УКРОП,"Київ, вулиця Антоновича, 112, 40",58,2016-12-16,1065,"Виготовлення друкованих матеріалів (плакатів, листівок, буклетів та інших агітаційних матеріалів)",Друкована агітація,371470,Центральний офіс,39479782,Київ,"За газету ""УКРОП"" та вкладки згідно рахунку N",26004052741642,current,138173.00,"ТОВ ""ЕКСПЕРТ-СЕРВІС""",31863950,юридична особа
УКРОП,"Київ, вулиця Михайла Грушевського, 1Д",70,2016-12-16,I215L12U.Y,Банківські послуги,Інші витрати,371447,"Полтавська обласна організація політичної партії ""Українське обʼєднання патріотів - УКРОП""",39947896,Полтавська область,Оплата комісії за касове обслуговування по ПОРППП УКР. ОБ’ЄДНАННЯ ПАТР.-УКРОП.,26003054616293,current,2.93,"ПАТ КБ ""Приватбанк""",14360570,юридична особа
УКРОП,"Київ, вулиця Михайла Грушевського, 1Д",70,2016-12-16,1612Б28СМУ,Банківські послуги,Інші витрати,371104,"Волинська обласна організація політичної партії ""Українське обʼєднання патріотів - УКРОП""",39946248,Волинська область,"Комісія за виконання платежів в національній валюті, згідно з відкритою офертою банку № б/н від 28.08.2015 та тарифів банку, без ПДВ",26007055507180,current,3.00,"ПАТ КБ ""Приватбанк""",14360570,юридична особа
УКРОП,"Київ, вулиця Михайла Грушевського, 1Д",70,2016-12-16,1612Б28С1У1,Банківські послуги,Інші витрати,371103,"Волинська обласна організація політичної партії ""Українське обʼєднання патріотів - УКРОП""",39946248,Волинська область,"Комісія за виконання платежів в національній валюті, згідно з відкритою офертою банку № б/н від 28.08.2015 та тарифів банку, без ПДВ",26007055507180,current,3.00,"ПАТ КБ ""Приватбанк""",14360570,юридична особа
УКРОП,"Київ, вулиця Михайла Грушевського, 1Д",70,2016-12-16,1216Ь2Ш6У,Банківські послуги,Інші витрати,371008,Центральний офіс,39479782,Київ,"Комісія за виконання платежів в національній валюті, згідно з відкритою офертою банку N б/н від 01.07.2015 та тарифів банку, без ПДВ.",26004052741642,current,3.00,"ПАТ КБ ""Приватбанк""",14360570,юридична особа
УКРОП,"Київ, вулиця Михайла Грушевського, 1Д",70,2016-12-16,1216Ь2ИУРУ,Банківські послуги,Інші витрати,371007,Центральний офіс,39479782,Київ,"Комісія за виконання платежів в національній валюті, згідно з відкритою офертою банку N б/н від 01.07.2015 та тарифів банку, без ПДВ.",26004052741642,current,3.00,"ПАТ КБ ""Приватбанк""",14360570,юридична особа
УКРОП,"Київ, вулиця Михайла Грушевського, 1Д",70,2016-12-16,1216Ь2ИУ7У,Банківські послуги,Інші витрати,371006,Центральний офіс,39479782,Київ,"Комісія за виконання платежів в національній валюті, згідно з відкритою офертою банку N б/н від 01.07.2015 та тарифів банку, без ПДВ.",26004052741642,current,3.00,"ПАТ КБ ""Приватбанк""",14360570,юридична особа
УКРОП,"Київ, вулиця Михайла Грушевського, 1Д",70,2016-12-16,1216Ь15ШУ,Банківські послуги,Інші витрати,371005,Центральний офіс,39479782,Київ,"Комісія за виконання платежів в національній валюті, згідно з відкритою офертою банку N б/н від 01.07.2015 та тарифів банку, без ПДВ.",26004052741642,current,3.00,"ПАТ КБ ""Приватбанк""",14360570,юридична особа
УКРОП,"Київ, вулиця Михайла Грушевського, 1Д",70,2016-12-16,1216Ь15БЬУ,Банківські послуги,Інші витрати,371004,Центральний офіс,39479782,Київ,"Комісія за виконання платежів в національній валюті, згідно з відкритою офертою банку N б/н від 01.07.2015 та тарифів банку, без ПДВ.",26004052741642,current,3.00,"ПАТ КБ ""Приватбанк""",14360570,юридична особа
УКРОП,"Київ, вулиця Михайла Грушевського, 1Д",70,2016-12-16,1216Ь15БКУ,Банківські послуги,Інші витрати,371003,Центральний офіс,39479782,Київ,"Комісія за виконання платежів в національній валюті, згідно з відкритою офертою банку N б/н від 01.07.2015 та тарифів банку, без ПДВ.",26004052741642,current,3.00,"ПАТ КБ ""Приватбанк""",14360570,юридична особа
УКРОП,"Київ, вулиця Михайла Грушевського, 1Д",70,2016-12-16,1216Б2Ш2У,Банківські послуги,Інші витрати,371002,Центральний офіс,39479782,Київ,"Комісія за виконання платежів в національній валюті, згідно з відкритою офертою банку N б/н від 01.07.2015 та тарифів банку, без ПДВ.",26004052741642,current,3.00,"ПАТ КБ ""Приватбанк""",14360570,юридична особа
УКРОП,"Київ, вулиця Михайла Грушевського, 1Д",70,2016-12-16,1216Б2ИУЛУ,Банківські послуги,Інші витрати,371001,Центральний офіс,39479782,Київ,"Комісія за виконання платежів в національній валюті, згідно з відкритою офертою банку N б/н від 01.07.2015 та тарифів банку, без ПДВ.",26004052741642,current,3.00,"ПАТ КБ ""Приватбанк""",14360570,юридична особа
УКРОП,"Київ, вулиця Михайла Грушевського, 1Д",70,2016-12-16,1216Б2ИУ2У,Банківські послуги,Інші витрати,371000,Центральний офіс,39479782,Київ,"Комісія за виконання платежів в національній валюті, згідно з відкритою офертою банку N б/н від 01.07.2015 та тарифів банку, без ПДВ.",26004052741642,current,3.00,"ПАТ КБ ""Приватбанк""",14360570,юридична особа
УКРОП,"Київ, вулиця Михайла Грушевського, 1Д",70,2016-12-16,1216Б15СРУ,Банківські послуги,Інші витрати,370999,Центральний офіс,39479782,Київ,"Комісія за виконання платежів в національній валюті, згідно з відкритою офертою банку N б/н від 01.07.2015 та тарифів банку, без ПДВ.",26004052741642,current,3.00,"ПАТ КБ ""Приватбанк""",14360570,юридична особа
УКРОП,"Київ, вулиця Михайла Грушевського, 1Д",70,2016-12-16,1216Б15БУУ,Банківські послуги,Інші витрати,370998,Центральний офіс,39479782,Київ,"Комісія за виконання платежів в національній валюті, згідно з відкритою офертою банку N б/н від 01.07.2015 та тарифів банку, без ПДВ.",26004052741642,current,3.00,"ПАТ КБ ""Приватбанк""",14360570,юридична особа
УКРОП,"Київ, вулиця Михайла Грушевського, 1Д",70,2016-12-16,1216Б15БОУ,Банківські послуги,Інші витрати,370997,Центральний офіс,39479782,Київ,"Комісія за виконання платежів в національній валюті, згідно з відкритою офертою банку N б/н від 01.07.2015 та тарифів банку, без ПДВ.",26004052741642,current,3.00,"ПАТ КБ ""Приватбанк""",14360570,юридична особа
УКРОП,"Київ, вулиця Михайла Грушевського, 1Д",70,2016-12-16,1216Б15Б3У,Банківські послуги,Інші витрати,370996,Центральний офіс,39479782,Київ,"Комісія за виконання платежів в національній валюті, згідно з відкритою офертою банку N б/н від 01.07.2015 та тарифів банку, без ПДВ.",26004052741642,current,3.00,"ПАТ КБ ""Приватбанк""",14360570,юридична особа
УКРОП,"Київ, вулиця Михайла Грушевського, 1Д",70,2016-12-16,1215ВРУ,Банківські послуги,Інші витрати,370995,Центральний офіс,39479782,Київ,"Комісія за виконання платежів в національній валюті, згідно з відкритою офертою банку N б/н від 01.07.2015 та тарифів банку, без ПДВ.",26004052741642,current,3.00,"ПАТ КБ ""Приватбанк""",14360570,юридична особа
УКРОП,,61,2016-12-15,218,Військовий збір,Податкові платежі,373937,"Івано-Франківська обласнапарторганізація політичної партії ""Українське обʼєднання патріотів - УКРОП""",39915162,Івано-Франківська область,Військовий збір від зарплати за грудень 2016р.,26007052513345,current,195.72,УДКСУ у м. Івано-Франківську,37952250,юридична особа
УКРОП,"Київська обл., Вишгородський район, Вишгород, вулиця Кургузова, 12",61,2016-12-15,210,Військовий збір,Податкові платежі,373934,"Київська обласна організація політичної партії ""Українське обʼєднання патріотів - УКРОП""",39949818,Київська область,101;39949818; Військовий збір із з/пл за 12/2016 утриман та перерахован повністю. Без ПДВ;;;,26003052766800,current,34.47,УДКСУ у Вишгородському районі Київської області,37868556,юридична особа
УКРОП,"Полтавська область, Полтава, вулиця Шевченка, 1",61,2016-12-15,107,Військовий збір,Податкові платежі,373846,"Полтавська обласна організація політичної партії ""Українське обʼєднання патріотів - УКРОП""",39947896,Полтавська область,"39947896; 1,5% військовий податок з зарплати за 1 половину грудня 2016 р.;;;",26003054616293,current,19.50,УДКСУ у м. Полтаві,38019510,юридична особа
УКРОП,"Івано-Франківська область, Івано-Франківськ, вулиця Незалежності, 20",62,2016-12-15,216,Сплата ЄСВ,Податкові платежі,373714,"Івано-Франківська обласнапарторганізація політичної партії ""Українське обʼєднання патріотів - УКРОП""",39915162,Івано-Франківська область,101;39915162;С СВ від зарплати за грудень 2016р.,26007052513345,current,2870.56,ДПІ в м. Івано-Франківську ГУ ДФС в Івано-Франківській області,39508514,юридична особа
УКРОП,"Київська обл., Вишгородський район, Вишгород, проспект Шевченка, 1",62,2016-12-15,209,Сплата ЄСВ,Податкові платежі,373711,"Київська обласна організація політичної партії ""Українське обʼєднання патріотів - УКРОП""",39949818,Київська область,101;39949818;ЕСВ 22% на з/пл за 12/2016 р нарахован та перерахован повністю .;;;,26003052766800,current,505.58,Вишгородська ОДПІ ГУ ДФС у Київській області,39466569,юридична особа
УКРОП,"Полтавська область, Полтава, вулиця Європейська, 155",62,2016-12-15,105,Сплата ЄСВ,Податкові платежі,373627,"Полтавська обласна організація політичної партії ""Українське обʼєднання патріотів - УКРОП""",39947896,Полтавська область,101:39947896; ЄСВ з зарплати за 1 половину грудня 2016 р. 22% - 374.00 грн. Перераховано повністю.:::,26003054616293,current,374.00,ДПІ у м. Полтава ГУ ДФС у Полтавській області,39680655,юридична особа
УКРОП,"Івано-Франківська область, Івано-Франківськ, вулиця Незалежності, 20",63,2016-12-15,214,Податок на доходи,Податкові платежі,373474,"Івано-Франківська обласнапарторганізація політичної партії ""Українське обʼєднання патріотів - УКРОП""",39915162,Івано-Франківська область,101 ;39915 62:П ДФО від зарплати за грудень 2016р.,26007052513345,current,1232.46,УДКСУ у м. Івано-Франківську,37952250,юридична особа
УКРОП,"Київська обл., Вишгородський район, Вишгород, вулиця Кургузова, 12",63,2016-12-15,208,Податок на доходи,Податкові платежі,373471,"Київська обласна організація політичної партії ""Українське обʼєднання патріотів - УКРОП""",39949818,Київська область,101;39949818; ПДФО із з/пл за 12/2016 утриман та перерахован повністю. Без ПДВ;;;,26003052766800,current,413.66,УДКСУ у Вишгородському районі Київської області,37868556,юридична особа
УКРОП,"Полтавська область, Полтава, вулиця Шевченка, 1",63,2016-12-15,106,Податок на доходи,Податкові платежі,373384,"Полтавська обласна організація політичної партії ""Українське обʼєднання патріотів - УКРОП""",39947896,Полтавська область,101 ;39947896; Прибутковий податок з заплати за 1 половину грудня 2016 року з найманих працівників партії. Перераховано повністю.;;;,26003054616293,current,109.98,УДКСУ у м. Полтаві,38019510,юридична особа
УКРОП,"Полтавська область, Полтавський район, Тахтаулове",84,2016-12-15,платіжнавідомість,"Заробітна плата, премії","Заробітна плата, лікарняні, вагітності, відрядження, компенсації",373311,"Полтавська обласна організація політичної партії ""Українське обʼєднання патріотів - УКРОП""",39947896,Полтавська область,заробітна плата за 1 половину грудня 2016 р.,26003054616293,current,786.51,Соловей Сергій Андрійович,,фізична особа
УКРОП,"Полтавська область, Полтавський район, Супрунівка",84,2016-12-15,платіжнавідомість,"Заробітна плата, премії","Заробітна плата, лікарняні, вагітності, відрядження, компенсації",373310,"Полтавська обласна організація політичної партії ""Українське обʼєднання патріотів - УКРОП""",39947896,Полтавська область,заробітна плата за 1 половину грудня 2016 р.,26003054616293,current,384.01,Вовченко Людмила Іванівна,,фізична особа
УКРОП,"Житомирська область, Андрушівський район, Новоівницьке",84,2016-12-15,211,"Заробітна плата, премії","Заробітна плата, лікарняні, вагітності, відрядження, компенсації",372891,"Київська обласна організація політичної партії ""Українське обʼєднання патріотів - УКРОП""",39949818,Київська область,Зарплата за грудень 2016р.,26003052766800,current,650.00,Чугунова Оксана Василівна,,фізична особа
УКРОП,"Київська обл., Києво-Святошинський район, Святопетрівське",84,2016-12-15,211,"Заробітна плата, премії","Заробітна плата, лікарняні, вагітності, відрядження, компенсації",372890,"Київська обласна організація політичної партії ""Українське обʼєднання патріотів - УКРОП""",39949818,Київська область,Зарплата за грудень 2016р.,26003052766800,current,600.00,Реган Павло Леонідович,,фізична особа
УКРОП,"Київська обл., Києво-Святошинський район, Дмитрівка",84,2016-12-15,211,"Заробітна плата, премії","Заробітна плата, лікарняні, вагітності, відрядження, компенсації",372889,"Київська обласна організація політичної партії ""Українське обʼєднання патріотів - УКРОП""",39949818,Київська область,Зарплата за грудень 2016р.,26003052766800,current,600.00,Козак Микола Миколайович,,фізична особа
УКРОП,"Київ, вулиця Михайла Грушевського, 1Д",70,2016-12-15,1214Ь4БИБУ75,Банківські послуги,Інші витрати,372446,"Київська обласна організація політичної партії ""Українське обʼєднання патріотів - УКРОП""",39949818,Київська область,"Комісія за виконання платежів в національній валюті, згідно з відкритою офертою банку N б/н від 21.08.2015 та тарифів банку, без ПДВ.",26003052766800,current,3.00,"ПАТ КБ ""Приватбанк""",14360570,юридична особа
УКРОП,"Київ, вулиця Михайла Грушевського, 1Д",70,2016-12-15,1214Ь4БИБУ74,Банківські послуги,Інші витрати,372445,"Київська обласна організація політичної партії ""Українське обʼєднання патріотів - УКРОП""",39949818,Київська область,"Комісія за виконання платежів в національній валюті, згідно з відкритою офертою банку N б/н від 21.08.2015 та тарифів банку, без ПДВ.",26003052766800,current,3.00,"ПАТ КБ ""Приватбанк""",14360570,юридична особа
УКРОП,"Київ, вулиця Антоновича, 91/14, 147",76,2016-12-15,212,Послуги зв’язку,Послуги зв’язку,372206,"Київська обласна організація політичної партії ""Українське обʼєднання патріотів - УКРОП""",39949818,Київська область,"Абонплата за послуги звязку зг дог N 84S16 від 05.07.16 та рах N 10745 від 30.11.16р. У сумі 50.62 грн., ПДВ - 20",26003052766800,current,60.74,"ТОВ ""СІТЕЛ""",31108855,юридична особа
УКРОП,"Київ, вулиця Антоновича, 91/14, 147",76,2016-12-15,211,Послуги зв’язку,Послуги зв’язку,372204,"Київська обласна організація політичної партії ""Українське обʼєднання патріотів - УКРОП""",39949818,Київська область,"Абонплата за послуги мережі Штернет зг дог N 221В16 від 05.07.16 та рах N 10744 від 30.11.16р. У сумі 800.00 грн., ПДВ - 20 % 160.00 грн.",26003052766800,current,960.00,"ТОВ ""СІТЕЛ""",31108855,юридична особа
УКРОП,"Закарпатська область, Ужгород, вулиця К. Міксата, 48",66,2016-12-15,21,Повернення внесків приватних внесків (донорам),Повернення приватних внесків (донорам),371519,"Закарпатська обласна організація політичної партії ""Українське обʼєднання патріотів - УКРОП""",40031888,Закарпатська область,повернення помилково зарахованих коштів,26006053910024,current,10000.00,Центр правової допомоги АО,38581127,юридична особа
УКРОП,"Київ, вулиця Михайла Грушевського, 1Д",70,2016-12-15,І2І4Б481ЮУ,Банківські послуги,Інші витрати,371317,"Івано-Франківська обласнапарторганізація політичної партії ""Українське обʼєднання патріотів - УКРОП""",39915162,Івано-Франківська область,"Комісія за виконання платежів в національній валюті, згідно з відкритою офертою банку N б/н від 11.08.2015 та тарифів банку, без ПДВ.",26007052513345,current,3.00,"ПАТ КБ ""Приватбанк""",14360570,юридична особа
УКРОП,"Київ, вулиця Михайла Грушевського, 1Д",70,2016-12-15,12151.12UY,Банківські послуги,Інші витрати,370994,"Полтавська обласна організація політичної партії ""Українське обʼєднання патріотів - УКРОП""",39947896,Полтавська область,"Комісія за виконання платежів в національній валюті, згідно з відкритою офертою банку N б/н від 21.08.2015 та тарифів банку, без 1 ІДВ.",26003054616293,current,3.00,"ПАТ КБ ""Приватбанк""",14360570,юридична особа
УКРОП,"Київ, вулиця Михайла Грушевського, 1Д",70,2016-12-15,12151.128SY,Банківські послуги,Інші витрати,370993,"Полтавська обласна організація політичної партії ""Українське обʼєднання патріотів - УКРОП""",39947896,Полтавська область,"Комісія за виконання платежів в національній валюті, згідно з відкритою офертою банку N б/н від 21.08.2015 та тарифів банку, без 1ІДВ.",26003054616293,current,3.00,"ПАТ КБ ""Приватбанк""",14360570,юридична особа
УКРОП,"Київ, вулиця Михайла Грушевського, 1Д",70,2016-12-15,12151.115FY,Банківські послуги,Інші витрати,370992,"Полтавська обласна організація політичної партії ""Українське обʼєднання патріотів - УКРОП""",39947896,Полтавська область,"Комісія за виконання платежів в національній валюті, згідно з відкритою офертою банку N б/н від 21.08.2015 та тарифів банку, без ПДВ.",26003054616293,current,3.00,"ПАТ КБ ""Приватбанк""",14360570,юридична особа
УКРОП,"Київ, вулиця Михайла Грушевського, 1Д",70,2016-12-15,1214Ь4БИІУ,Банківські послуги,Інші витрати,370991,"Київська обласна організація політичної партії ""Українське обʼєднання патріотів - УКРОП""",39949818,Київська область,"Комісія за виконання платежів в національній валюті, згідно з відкритою офертою банку N б/н від 21.08.2015 та тарифів банку, без ПДВ.",26003052766800,current,3.00,"ПАТ КБ ""Приватбанк""",14360570,юридична особа
УКРОП,"Київ, вулиця Михайла Грушевського, 1Д",70,2016-12-15,1214Ь4БИИУ,Банківські послуги,Інші витрати,370990,"Київська обласна організація політичної партії ""Українське обʼєднання патріотів - УКРОП""",39949818,Київська область,"Комісія за виконання платежів в національній валюті, згідно з відкритою офертою банку N б/н від 21.08.2015 та тарифів банку, без ПДВ.",26003052766800,current,3.00,"ПАТ КБ ""Приватбанк""",14360570,юридична особа
УКРОП,"Київ, вулиця Михайла Грушевського, 1Д",70,2016-12-15,1214Ь4БИвУ,Банківські послуги,Інші витрати,370989,"Київська обласна організація політичної партії ""Українське обʼєднання патріотів - УКРОП""",39949818,Київська область,"Комісія за виконання платежів в національній валюті, згідно з відкритою офертою банку N б/н від 21.08.2015 та тарифів банку, без ПДВ.",26003052766800,current,3.00,"ПАТ КБ ""Приватбанк""",14360570,юридична особа
УКРОП,"Київ, вулиця Михайла Грушевського, 1Д",70,2016-12-15,1214Б48ВКУ,Банківські послуги,Інші витрати,370987,"Івано-Франківська обласнапарторганізація політичної партії ""Українське обʼєднання патріотів - УКРОП""",39915162,Івано-Франківська область,"Комісія за виконання платежів в національній валюті, згідно з відкритою офертою банку N б/н від 1 1.08.2015 та тарифів банку, без ПДВ.",26007052513345,current,3.00,"ПАТ КБ ""Приватбанк""",14360570,юридична особа
УКРОП,"Київ, вулиця Михайла Грушевського, 1Д",70,2016-12-15,12141.48131У,Банківські послуги,Інші витрати,370986,"Івано-Франківська обласнапарторганізація політичної партії ""Українське обʼєднання патріотів - УКРОП""",39915162,Івано-Франківська область,"Комісія за виконання платежів в національній валюті, згідно з відкритою офертою банку N б/н від 11.08.2015 та тарифів банку, без ПДВ.",26007052513345,current,3.00,"ПАТ КБ ""Приватбанк""",14360570,юридична особа
УКРОП,"Хмельницька область, Хмельницький, вулиця Тернопільська",77,2016-12-14,119,"Оренда, ремонт та обслуговування автомобілів","Оренда, ремонт та обслуговування автомобілів",374165,"Хмельницька обласна організація політичної партії ""Українське обʼєднання патріотів - УКРОП""",39933490,Хмельницька область,ВП 52611817,26001052423138,current,694.35,1-й відділ ДВСУ м.Хмельницького,37225066,юридична особа
УКРОП,"Івано-Франківська область, Івано-Франківськ",84,2016-12-14,І6І2І4СТ689791,"Заробітна плата, премії","Заробітна плата, лікарняні, вагітності, відрядження, компенсації",373289,"Івано-Франківська обласнапарторганізація політичної партії ""Українське обʼєднання патріотів - УКРОП""",39915162,Івано-Франківська область,зарплата за грудень,26007052513345,current,1463.54,Шевченко Юлія Олегівна,,фізична особа
УКРОП,,84,2016-12-14,І6І214СТ689791,"Заробітна плата, премії","Заробітна плата, лікарняні, вагітності, відрядження, компенсації",373288,"Івано-Франківська обласнапарторганізація політичної партії ""Українське обʼєднання патріотів - УКРОП""",39915162,Івано-Франківська область,зарплата за грудень,26007052513345,current,1463.54,Шевчук Олександр Дмитрович,,фізична особа
УКРОП,"Івано-Франківська область, Івано-Франківськ",84,2016-12-14,І6І214СТ689791,"Заробітна плата, премії","Заробітна плата, лікарняні, вагітності, відрядження, компенсації",373287,"Івано-Франківська обласнапарторганізація політичної партії ""Українське обʼєднання патріотів - УКРОП""",39915162,Івано-Франківська область,зарплата за грудень,26007052513345,current,1463.54,Руміш Євгенія Ігорівна,,фізична особа
УКРОП,"Івано-Франківська область, Івано-Франківськ",84,2016-12-14,І612І4СТ689791,"Заробітна плата, премії","Заробітна плата, лікарняні, вагітності, відрядження, компенсації",373286,"Івано-Франківська обласнапарторганізація політичної партії ""Українське обʼєднання патріотів - УКРОП""",39915162,Івано-Франківська область,зарплата за грудень,26007052513345,current,1463.54,Хоминець Микола Іванович,,фізична особа
УКРОП,"Івано-Франківська, Богородчанський район, Солотвин",84,2016-12-14,І612І4СТ689791,"Заробітна плата, премії","Заробітна плата, лікарняні, вагітності, відрядження, компенсації",373285,"Івано-Франківська обласнапарторганізація політичної партії ""Українське обʼєднання патріотів - УКРОП""",39915162,Івано-Франківська область,зарплата за грудень,26007052513345,current,1463.54,Римарук Вікторія Ярославівна,,фізична особа
УКРОП,"Івано-Франківська область, Ворохта",84,2016-12-14,16І2І4СТ689791,"Заробітна плата, премії","Заробітна плата, лікарняні, вагітності, відрядження, компенсації",372861,"Івано-Франківська обласнапарторганізація політичної партії ""Українське обʼєднання патріотів - УКРОП""",39915162,Івано-Франківська область,зарплата за грудень,26007052513345,current,2838.58,Палійчук Микола Васильович,,фізична особа
УКРОП,"Івано-Франківська область, Крихівці",84,2016-12-14,161214СТ689791,"Заробітна плата, премії","Заробітна плата, лікарняні, вагітності, відрядження, компенсації",372846,"Івано-Франківська обласнапарторганізація політичної партії ""Українське обʼєднання патріотів - УКРОП""",39915162,Івано-Франківська область,зарплата за грудень,26007052513345,current,1463.54,Федоровська Надія Володимирівна,,фізична особа
УКРОП,"Київ, вулиця Михайла Грушевського, 1Д",70,2016-12-14,217297,Банківські послуги,Інші витрати,372551,"Івано-Франківська обласнапарторганізація політичної партії ""Українське обʼєднання патріотів - УКРОП""",39915162,Івано-Франківська область,Комісія РКО від зарплати за грудень 2016р.,26007052513345,current,29.05,"ПАТ КБ ""Приватбанк""",14360570,юридична особа
УКРОП,"Київ, вулиця Михайла Грушевського, 1Д",70,2016-12-14,212293,Банківські послуги,Інші витрати,372549,"Київська обласна організація політичної партії ""Українське обʼєднання патріотів - УКРОП""",39949818,Київська область,Комісія РКО від зарплати за грудень 2016р.,26003052766800,current,4.63,"ПАТ КБ ""Приватбанк""",14360570,юридична особа
УКРОП,"Волинська область, Іваничівський район, Іваничі, Вул. Грушевського, 1",69,2016-12-14,516,Організація заходів та інші організаційні послуги,Організація заходів та інші організаційні послуги,371974,"Волинська обласна організація політичної партії ""Українське обʼєднання патріотів - УКРОП""",39946248,Волинська область,За оренду актового залу зг.рах.№11 від 10.11.2016р. Без ПДВ,26007055507180,current,100.00,Територіальний центр самообслуговування,26120776,юридична особа
УКРОП,"Київ, вулиця Михайла Грушевського, 1Д",70,2016-12-14,1412ШРУНУ,Банківські послуги,Інші витрати,371097,"Волинська обласна організація політичної партії ""Українське обʼєднання патріотів - УКРОП""",39946248,Волинська область,"Комісія за виконання платежів в національній валюті, згідно з відкритою офертою банку № б/н від 28.08.2015 та тарифів банку, без ПДВ",26007055507180,current,3.00,"ПАТ КБ ""Приватбанк""",14360570,юридична особа
УКРОП,"Київ, вулиця Михайла Грушевського, 1Д",70,2016-12-14,1214ЫУ08У,Банківські послуги,Інші витрати,370988,"Хмельницька обласна організація політичної партії ""Українське обʼєднання патріотів - УКРОП""",39933490,Хмельницька область,комісія за виконання платежу,26001052423138,current,3.00,"ПАТ КБ ""Приватбанк""",14360570,юридична особа
УКРОП,"Київ, вулиця Новокостянтинівська, 4А",77,2016-12-13,1044,"Оренда, ремонт та обслуговування автомобілів","Оренда, ремонт та обслуговування автомобілів",374162,Центральний офіс,39479782,Київ,"За нафтопродукти згідно рахунку N 31ОБКПК-1391-6922047276 від 12.12.2016 р. У сумі 8333,33 грн., ПДВ 20% 1666,67",26004052741642,current,10000.00,"ПП ""ОККО-БІЗНЕС КОНТРАКТ""",33614922,юридична особа
УКРОП,"Київ, вулиця Михайла Грушевського, 1Д",70,2016-12-13,921647,Банківські послуги,Інші витрати,372611,"Рівненська обласна організація політичної партії ""Українське обʼєднання патріотів - УКРОП""",39914504,Рівненська область,Комісія банку за виконання платежів,26005054719198,current,3.00,"ПАТ КБ ""Приватбанк""",14360570,юридична особа
УКРОП,"Київ, вулиця Автозаводська, 27, 47",79,2016-12-13,1046,"Оренда будинків і приміщень та експлуатаційні витрати (прибирання, страхування орендованих будинків, охорона, сигналізація, ремонт, вивіз сміття, тощо)",Оренда нерухомості,372289,Центральний офіс,39479782,Київ,Для зарах. на к/р N 0576617700 ФОП Недашківської В.М. ІПН 2191212747відшкодування витрат за комунальні послуги зг.рах. .№0817/1 від 31.10.16 р. Без ПДВ,26004052741642,current,472.00,Недашківська Валентина Миколаївна,2191212747,фізична особа
УКРОП,"Київ, вулиця Молодогвардійська, 20",79,2016-12-13,1045,"Оренда будинків і приміщень та експлуатаційні витрати (прибирання, страхування орендованих будинків, охорона, сигналізація, ремонт, вивіз сміття, тощо)",Оренда нерухомості,371773,Центральний офіс,39479782,Київ,"Оплата за оренду складського приміщення у жовтні з коригуванням на індекс інфляції зг.рах. .№334 від 01.12.16 р. У сумі 29958,23 грн., ПДВ-20% 5991,64",26004052741642,current,35949.87,"ТОВ ""Приватна компанія ""Торіус""",01552767,юридична особа
УКРОП,"Харківська область, Харків, вулиця Гарібальді, 8",79,2016-12-13,1043,"Оренда будинків і приміщень та експлуатаційні витрати (прибирання, страхування орендованих будинків, охорона, сигналізація, ремонт, вивіз сміття, тощо)",Оренда нерухомості,371623,Центральний офіс,39479782,Київ,"Відшкодування за послуги центр.тех.охорони за жовтень зг.рах. № 04 від 31.10.16 р., за листопад зг.рах. № 8 від 17.11.16 р. Без ПДВ",26004052741642,current,560.00,Ярославська Інна Олександрівна,2863819624,фізична особа
УКРОП,"Харківська область, Харків, вулиця Гарібальді, 8",77,2016-12-13,1042,"Оренда, ремонт та обслуговування автомобілів","Оренда, ремонт та обслуговування автомобілів",371622,Центральний офіс,39479782,Київ,Відшкодування за обслуговування системи протипожежного захичту за жовтень зг.рах. № 03 від 31.10.16 та листопад зг.рах. № 7 від 17.11.16 р. Без ПДВ,26004052741642,current,500.00,Ярославська Інна Олександрівна,2863819624,фізична особа
УКРОП,"Івано-Франківська область, Івано-Франківськ, вулиця Михайла Грушевського, 21",51,2016-12-13,213,Оплата ефірного часу на ТБ,Телереклама,371527,"Івано-Франківська обласнапарторганізація політичної партії ""Українське обʼєднання патріотів - УКРОП""",39915162,Івано-Франківська область,Оплата за рекламні послуги згідно рах.1Ч305 від 13.12.2016 року У сумі 5800.00 гри.. ПДВ 20% 1160.00 гри.,26007052513345,current,6960.00,"Івано-Франківське обласне телебачення ""Галичина""",13641427,юридична особа
УКРОП,"Івано-Франківська область, Івано-Франківськ, вулиця Січових стрільців, 56",51,2016-12-13,212,Оплата ефірного часу на ТБ,Телереклама,371526,"Івано-Франківська обласнапарторганізація політичної партії ""Українське обʼєднання патріотів - УКРОП""",39915162,Івано-Франківська область,Оплата за трансляцію трансляцію ролика згідно рах.N0000080 від 05.12.2016 року У сумі 5265.00 грн.. ПДВ - 20 % 1053.00 грн.,26007052513345,current,6318.00,"TOB ""ТРК 3-Студія""",23797886,юридична особа
УКРОП,"Київ, вулиця Михайла Грушевського, 1Д",70,2016-12-13,I213L3M1.VX,Банківські послуги,Інші витрати,371446,"Івано-Франківська обласнапарторганізація політичної партії ""Українське обʼєднання патріотів - УКРОП""",39915162,Івано-Франківська область,Комісія за викон. платежу 212 від 13.12.2016. 63 18.00 в нац. валюті в післяопераційний час. згідно з відкритою офертою банку № б/н від 1 1.08.2015 без ПДВ,26007052513345,current,12.64,"ПАТ КБ ""Приватбанк""",14360570,юридична особа
УКРОП,"Київ, вулиця Михайла Грушевського, 1Д",70,2016-12-13,1213L3MLVY,Банківські послуги,Інші витрати,370985,"Івано-Франківська обласнапарторганізація політичної партії ""Українське обʼєднання патріотів - УКРОП""",39915162,Івано-Франківська область,"Комісія за виконання платежів в національній валюті, згідно з відкритою офертою банку N б/н від 11.08.2015 та тарифів банку, без ПДВ.",26007052513345,current,3.00,"ПАТ КБ ""Приватбанк""",14360570,юридична особа
УКРОП,"Київ, вулиця Михайла Грушевського, 1Д",70,2016-12-13,1213ЬЗМОСУ,Банківські послуги,Інші витрати,370984,"Івано-Франківська обласнапарторганізація політичної партії ""Українське обʼєднання патріотів - УКРОП""",39915162,Івано-Франківська область,"Комісія за виконання платежів в національній валюті, згідно з відкритою офертою банку N б/н від 11.08.2015 та тарифів банку, без 11ДВ.",26007052513345,current,3.00,"ПАТ КБ ""Приватбанк""",14360570,юридична особа
УКРОП,"Київ, вулиця Михайла Грушевського, 1Д",70,2016-12-13,1213Ь200ОТ,Банківські послуги,Інші витрати,370983,Центральний офіс,39479782,Київ,"Комісія за виконання платежів в національній валюті, згідно з відкритою офертою банку N б/н від 01.07.2015 та тарифів банку, без ПДВ.",26004052741642,current,3.00,"ПАТ КБ ""Приватбанк""",14360570,юридична особа
УКРОП,"Київ, вулиця Михайла Грушевського, 1Д",70,2016-12-13,1213Б200СУ,Банківські послуги,Інші витрати,370982,Центральний офіс,39479782,Київ,"Комісія за виконання платежів в національній валюті, згідно з відкритою офертою банку N б/н від 01.07.2015 та тарифів банку, без ПДВ.",26004052741642,current,3.00,"ПАТ КБ ""Приватбанк""",14360570,юридична особа
УКРОП,"Київ, вулиця Михайла Грушевського, 1Д",70,2016-12-13,1213Б2000У,Банківські послуги,Інші витрати,370981,Центральний офіс,39479782,Київ,"Комісія за виконання платежів в національній валюті, згідно з відкритою офертою банку N б/н від 01.07.2015 та тарифів банку, без ПДВ.",26004052741642,current,3.00,"ПАТ КБ ""Приватбанк""",14360570,юридична особа
УКРОП,"Київ, вулиця Михайла Грушевського, 1Д",70,2016-12-13,12131.3МОСХ,Банківські послуги,Інші витрати,370980,"Івано-Франківська обласнапарторганізація політичної партії ""Українське обʼєднання патріотів - УКРОП""",39915162,Івано-Франківська область,"Комісія та викон. платежу 213 від 13.12.2016, 6960.00 в нац. валюті в післяопераційний час, зг ідно з відкритою офертою банку № б/н від 11.08.2015 без 11 ДВ",26007052513345,current,13.92,"ПАТ КБ ""Приватбанк""",14360570,юридична особа
УКРОП,"Рівненська область, Рівне, вулиця Гагаріна, 39",76,2016-12-12,56,Послуги зв’язку,Послуги зв’язку,372259,"Рівненська обласна організація політичної партії ""Українське обʼєднання патріотів - УКРОП""",39914504,Рівненська область,Телекомунікаційні послуги за грудень 2016 р.,26005054719198,current,300.00,"ПрАТ ""Датагруп""",31720260,юридична особа
УКРОП,,76,2016-12-09,515в,Послуги зв’язку,Послуги зв’язку,372255,"Волинська обласна організація політичної партії ""Українське обʼєднання патріотів - УКРОП""",39946248,Волинська область,"За надання і нтернет-послуг зг.рах.№488 від 01.12.2016 У сумі 125,00грн., ПДВ-20% 25,00 грн.",26007055507180,current,150.00,"ПП ""Юаінет""",36523021,юридична особа
УКРОП,"Волинська область, Рожищенський район, Рожище",76,2016-12-09,514517,Послуги зв’язку,Послуги зв’язку,372254,"Волинська обласна організація політичної партії ""Українське обʼєднання патріотів - УКРОП""",39946248,Волинська область,За підключення доступу до мережі інтернетзг.рах.№92 від 01.12.2016р.,26007055507180,current,200.00,Демидюк Валентин Миколайович,2982403974,фізична особа
УКРОП,"Київ, вулиця Антоновича, 112, 40",58,2016-12-09,1041,"Виготовлення друкованих матеріалів (плакатів, листівок, буклетів та інших агітаційних матеріалів)",Друкована агітація,371469,Центральний офіс,39479782,Київ,За листівки та буклети зг.рах. № 0912/01 від 09.12.16 р. Без ПДВ,26004052741642,current,4460.00,"ТОВ ""ЕКСПЕРТ-СЕРВІС""",31863950,юридична особа
УКРОП,"Київ, вулиця Михайла Грушевського, 1Д",70,2016-12-09,490,Банківські послуги,Інші витрати,371135,"Хмельницька обласна організація політичної партії ""Українське обʼєднання патріотів - УКРОП""",39933490,Хмельницька область,погашення заборгованості за розрахунково-касове обслуговування,26001052423138,current,75.02,"ПАТ КБ ""Приватбанк""",14360570,юридична особа
УКРОП,"Київ, вулиця Володимирська, 12",79,2016-12-08,1040,"Оренда будинків і приміщень та експлуатаційні витрати (прибирання, страхування орендованих будинків, охорона, сигналізація, ремонт, вивіз сміття, тощо)",Оренда нерухомості,371772,Центральний офіс,39479782,Київ,"Індекс орендної плати за листопад 2016 р. рахунок № 229 від 05.12.16 р. У сумі 762,51 грн., ПДВ -20% 152,50",26004052741642,current,915.01,"ПАТ ""БУДІВЕЛ ЬНО-ФІНАНСОВА КОМПАНІЯ ""ГЛОБАЛ ЕСТЕЙТС""",24925429,юридична особа
УКРОП,"Волинська область, Луцьк, вулиця Шевченка, 41",49,2016-12-08,513,Публікування матеріалів у друкованих ЗМІ,Реклама в друкованих ЗМІ,371578,"Волинська обласна організація політичної партії ""Українське обʼєднання патріотів - УКРОП""",39946248,Волинська область,"За публікацію матеріалу зг рах №186 від 06.12.2016р. У сумв 1706,25 грн., ПДВ-20% 341,25 грн.",26007055507180,current,2047.50,"РГ ""Слава праці""",02471643,юридична особа
УКРОП,"Львівська область, Львів, вулиця Героїв УПА, 65",58,2016-12-08,1039,"Виготовлення друкованих матеріалів (плакатів, листівок, буклетів та інших агітаційних матеріалів)",Друкована агітація,371468,Центральний офіс,39479782,Київ,"За друк газети згідно рах. N ВЗ1275 від 07.12.2016 р. У сумі 25000,00 грн., ПДВ 20 % 5000 грн.",26004052741642,current,30000.00,"ТОВ ""Видавничий дім ""Високий замок""",13807781,юридична особа
УКРОП,"Київ, вулиця Михайла Грушевського, 1Д",70,2016-12-08,1208Б0СК4У,Банківські послуги,Інші витрати,370978,Центральний офіс,39479782,Київ,"Комісія за виконання платежів в національній валюті, згідно з відкритою офертою банку N б/н від 01.07.2015 та тарифів банку, без ПДВ.",26004052741642,current,3.00,"ПАТ КБ ""Приватбанк""",14360570,юридична особа
УКРОП,"Харківська область, Харків, Григорівське шосе, 52",61,2016-12-07,пд№96,Військовий збір,Податкові платежі,374075,"Харківська обласна організація політичної партії ""Українське обʼєднання патріотів - УКРОП""",39973329,Харківська область,"Військовий збір 1,5% із з/пл за листопад 2016.",26001052207545,current,109.75,УДКСУ у Харківському районі Харківської області,37999633,юридична особа
УКРОП,"Харківська область, Харків, вулиця Академіка Підгорного",62,2016-12-07,пд№98,Сплата ЄСВ,Податкові платежі,373832,"Харківська обласна організація політичної партії ""Українське обʼєднання патріотів - УКРОП""",39973329,Харківська область,"Сплата есв-22%-1286,92грн.,в т.ч.інв.8,41%-1 23 34грн на з/пл за",26001052207545,current,1410.26,Харківська ОДПІ ГУ ДФС у Харківській області,39859695,юридична особа
УКРОП,"Харківська область, Харків, Григорівське шосе, 52",63,2016-12-07,пд№97,Податок на доходи,Податкові платежі,373620,"Харківська обласна організація політичної партії ""Українське обʼєднання патріотів - УКРОП""",39973329,Харківська область,НДФЛ із з/пл за листопад 2016р.,26001052207545,current,696.82,УДКСУ у Харківському районі Харківської області,37999633,юридична особа
УКРОП,"Харківська область, Харків",84,2016-12-07,Бв№99,"Заробітна плата, премії","Заробітна плата, лікарняні, вагітності, відрядження, компенсації",373089,"Харківська обласна організація політичної партії ""Українське обʼєднання патріотів - УКРОП""",39973329,Харківська область,Зарплата за листопад 2016р.,26001052207545,current,1304.58,Полякова Людмила Олександрівна,,фізична особа
УКРОП,"Харківська область, Харків",84,2016-12-07,Бв№99,"Заробітна плата, премії","Заробітна плата, лікарняні, вагітності, відрядження, компенсації",373088,"Харківська обласна організація політичної партії ""Українське обʼєднання патріотів - УКРОП""",39973329,Харківська область,Зарплата за листопад 2016р.,26001052207545,current,1304.58,Полуніна Світлана Миколаївна,,фізична особа
УКРОП,"Харківська область, Дергачівський район, Мала Данилівка",84,2016-12-07,Бв№99,"Заробітна плата, премії","Заробітна плата, лікарняні, вагітності, відрядження, компенсації",373087,"Харківська обласна організація політичної партії ""Українське обʼєднання патріотів - УКРОП""",39973329,Харківська область,Зарплата за листопад 2016р.,26001052207545,current,1304.58,Мірошнікова Людмила Юріївна,,фізична особа
УКРОП,"Харківська область, Люботин",84,2016-12-07,Бв№99,"Заробітна плата, премії","Заробітна плата, лікарняні, вагітності, відрядження, компенсації",373086,"Харківська обласна організація політичної партії ""Українське обʼєднання патріотів - УКРОП""",39973329,Харківська область,Зарплата за листопад 2016р.,26001052207545,current,1291.27,Голтвянський Олег Миколайович,,фізична особа
УКРОП,"Харківська область, Харків",84,2016-12-07,Бв№99,"Заробітна плата, премії","Заробітна плата, лікарняні, вагітності, відрядження, компенсації",373085,"Харківська обласна організація політичної партії ""Українське обʼєднання патріотів - УКРОП""",39973329,Харківська область,Зарплата за листопад 2016р.,26001052207545,current,1304.58,Безпалий Олександр Ігорович,,фізична особа
УКРОП,"Київ, вулиця Михайла Грушевського, 1Д",70,2016-12-07,1590800006166,Банківські послуги,Інші витрати,372505,"Запозізька обласна парторганізація політичної партії ""Українське обʼєднання патріотів - УКРОП""",39923938,Запорізька область,оплата комісія за касове обслуговування по ЗОРППП УОП Укроп,26009055720384,current,3.69,"ПАТ КБ ""Приватбанк""",14360570,юридична особа
УКРОП,,79,2016-12-07,294,"Оренда будинків і приміщень та експлуатаційні витрати (прибирання, страхування орендованих будинків, охорона, сигналізація, ремонт, вивіз сміття, тощо)",Оренда нерухомості,371853,"Сумська обласна організація політичної партії ""Українське обʼєднання патріотів - УКРОП""",39945637,Сумська область,"орендна плата за грудень 2016р., згідно договору нежилого приміщення № 6 від",26000055016685,current,2000.00,Шалаш О А,,фізична особа
УКРОП,"Волинська область, Ковель, вулиця Михайла Грушевського, 2",49,2016-12-07,511,Публікування матеріалів у друкованих ЗМІ,Реклама в друкованих ЗМІ,371693,"Волинська обласна організація політичної партії ""Українське обʼєднання патріотів - УКРОП""",39946248,Волинська область,"За опублікування статті в газеті №493 від 06.12:2016р. У сумі 2094,56 грн.,ПДВ -20% 418,91 грн.",26007055507180,current,2513.47,"РГ ""Вісті Ковельщини""",02471672,юридична особа
УКРОП,,49,2016-12-07,510,Публікування матеріалів у друкованих ЗМІ,Реклама в друкованих ЗМІ,371577,"Волинська обласна організація політичної партії ""Українське обʼєднання патріотів - УКРОП""",39946248,Волинська область,Розміщення інформації у форматі новин зг. рах.№358 від 06.12.16р. Без ПДВ,26007055507180,current,2300.00,"ПП ""Волинські новини""",35963888,юридична особа
УКРОП,"Волинська, Луцьк, вулиця Винниченка, 26, 305",49,2016-12-07,508,Публікування матеріалів у друкованих ЗМІ,Реклама в друкованих ЗМІ,371576,"Волинська обласна організація політичної партії ""Українське обʼєднання патріотів - УКРОП""",39946248,Волинська область,Розміщення інформації у форматі статті зг. рах.№357 від 06.12.16р. Без ПДВ,26007055507180,current,2500.00,"ПП ""Волинські новини""",35963888,юридична особа
УКРОП,,49,2016-12-07,508,Публікування матеріалів у друкованих ЗМІ,Реклама в друкованих ЗМІ,371575,"Волинська обласна організація політичної партії ""Українське обʼєднання патріотів - УКРОП""",39946248,Волинська область,Розміщення інформації у форматі новин зг. рах.№362 від 07.12.16р. Без ПДВ,26007055507180,current,4600.00,"ПП ""Волинські новини""",35963888,юридична особа
УКРОП,"Київ, вулиця Михайла Грушевського, 1Д",70,2016-12-07,БВ№100,Банківські послуги,Інші витрати,371283,"Харківська обласна організація політичної партії ""Українське обʼєднання патріотів - УКРОП""",39973329,Харківська область,Комісія за обслугов.рах.,26001052207545,current,16.27,"ПАТ КБ ""Приватбанк""",14360570,юридична особа
УКРОП,"Київ, вулиця Михайла Грушевського, 1Д",70,2016-12-07,1207L3WOTY,Банківські послуги,Інші витрати,370977,"Харківська обласна організація політичної партії ""Українське обʼєднання патріотів - УКРОП""",39973329,Харківська область,Комісія за обслугов.рах.,26001052207545,current,3.00,"ПАТ КБ ""Приватбанк""",14360570,юридична особа
УКРОП,"Київ, вулиця Михайла Грушевського, 1Д",70,2016-12-07,1207L3W58Y,Банківські послуги,Інші витрати,370976,"Харківська обласна організація політичної партії ""Українське обʼєднання патріотів - УКРОП""",39973329,Харківська область,Комісія за обслугов.рах.,26001052207545,current,3.00,"ПАТ КБ ""Приватбанк""",14360570,юридична особа
УКРОП,"Київ, вулиця Михайла Грушевського, 1Д",70,2016-12-07,1207L3W32Y,Банківські послуги,Інші витрати,370975,"Харківська обласна організація політичної партії ""Українське обʼєднання патріотів - УКРОП""",39973329,Харківська область,Комісія за обслугов.рах.,26001052207545,current,3.00,"ПАТ КБ ""Приватбанк""",14360570,юридична особа
УКРОП,"Київ, вулиця Михайла Грушевського, 1Д",70,2016-12-07,12071.3иОІУ,Банківські послуги,Інші витрати,370974,"Волинська обласна організація політичної партії ""Українське обʼєднання патріотів - УКРОП""",39946248,Волинська область,"Комісія за виконання платежів в національній валюті, згідно з відкритою офертою банку № б/н від 28.08.2015 та тарифів банку, без ПДВ",26007055507180,current,3.00,"ПАТ КБ ""Приватбанк""",14360570,юридична особа
УКРОП,"Миколаївська область, Миколаїв, вулиця Космонавтів, 140Г, 26",76,2016-12-06,65,Послуги зв’язку,Послуги зв’язку,374109,"Миколаївська обласна організація політичної партії ""Українське обʼєднання патріотів - УКРОП""",39953669,Миколаївська область,Оплата маршрутизатора для обладнання інтернету в офісі Миколаївської ОРПО,26001053221497,current,600.00,Міхалевич А І,2938610696,фізична особа
УКРОП,"Запорізька область, Запоріжжя, вулиця Олександрівська, 7",61,2016-12-06,170,Військовий збір,Податкові платежі,373900,"Запозізька обласна парторганізація політичної партії ""Українське обʼєднання патріотів - УКРОП""",39923938,Запорізька область,39923938;11011000; воєнний збір із з/плати за 2-у пол. листопада 16р. Без ПДВ,26009055720384,current,26.09,УДКСУ в Олександрівському районі м. Запоріжжя,38025440,юридична особа
УКРОП,"Запорізька область, Запоріжжя, вулиця Олександрівська, 7",62,2016-12-06,171,Сплата ЄСВ,Податкові платежі,373680,"Запозізька обласна парторганізація політичної партії ""Українське обʼєднання патріотів - УКРОП""",39923938,Запорізька область,39923938;Єдиний внесок на заг. Соцстрахування за 2-у пол. листопада 16р. Реєстр №10000000443721;;;,26009055720384,current,429.10,УДКСУ в Олександрівському районі м. Запоріжжя,38025440,юридична особа
УКРОП,"Запорізька область, Запоріжжя, вулиця Олександрівська, 7",63,2016-12-06,169,Податок на доходи,Податкові платежі,373438,"Запозізька обласна парторганізація політичної партії ""Українське обʼєднання патріотів - УКРОП""",39923938,Запорізька область,101;39923938; податок з доходів ФО із з/плати за 2-у пол.листопада 16р.;;;,26009055720384,current,352.90,УДКСУ в Олександрівському районі м. Запоріжжя,38025440,юридична особа
УКРОП,"Запорізька область, Запоріжжя",84,2016-12-06,168,"Заробітна плата, премії","Заробітна плата, лікарняні, вагітності, відрядження, компенсації",372858,"Запозізька обласна парторганізація політичної партії ""Українське обʼєднання патріотів - УКРОП""",39923938,Запорізька область,"заробітна плата за 2-у пол. листопада 16р. Податки в бюджет перераховані повністю 06,12.16р.",26009055720384,current,529.32,Россоха Марина Олександрівна,,фізична особа
УКРОП,"Запорізька область, Запоріжжя",84,2016-12-06,168,"Заробітна плата, премії","Заробітна плата, лікарняні, вагітності, відрядження, компенсації",372857,"Запозізька обласна парторганізація політичної партії ""Українське обʼєднання патріотів - УКРОП""",39923938,Запорізька область,"заробітна плата за 2-у пол. листопада 16р. Податки в бюджет перераховані повністю 06,12.16р.",26009055720384,current,454.24,Гришина Тетяна Миколаївна,,фізична особа
УКРОП,"Запорізька область, Запоріжжя",84,2016-12-06,168,"Заробітна плата, премії","Заробітна плата, лікарняні, вагітності, відрядження, компенсації",372856,"Запозізька обласна парторганізація політичної партії ""Українське обʼєднання патріотів - УКРОП""",39923938,Запорізька область,"заробітна плата за 2-у пол. листопада 16р. Податки в бюджет перераховані повністю 06,12.16р.",26009055720384,current,491.69,Гришин Ярослав Володимирович,,фізична особа
УКРОП,"Київ, вулиця Михайла Грушевського, 1Д",70,2016-12-06,1206Ь2ІРИ¥69,Банківські послуги,Інші витрати,372443,"Запозізька обласна парторганізація політичної партії ""Українське обʼєднання патріотів - УКРОП""",39923938,Запорізька область,"комісія за виконання платежів в національній валюті, згідно офертою банку №б/н від 13.08.2015",26009055720384,current,3.00,"ПАТ КБ ""Приватбанк""",14360570,юридична особа
УКРОП,"Київ, вулиця Михайла Грушевського, 1Д",70,2016-12-06,1206Ь2ІРИ¥68,Банківські послуги,Інші витрати,372442,"Запозізька обласна парторганізація політичної партії ""Українське обʼєднання патріотів - УКРОП""",39923938,Запорізька область,"комісія за виконання платежів в національній валюті, згідно офертою банку №б/н від 13.08.2015",26009055720384,current,3.00,"ПАТ КБ ""Приватбанк""",14360570,юридична особа
УКРОП,"Сумська область, Суми, Іллінська вулиця, 2",76,2016-12-06,293,Послуги зв’язку,Послуги зв’язку,372215,"Сумська обласна організація політичної партії ""Українське обʼєднання патріотів - УКРОП""",39945637,Сумська область,оплата за телекомунікаційні послуги за листопад 2016р.,26000055016685,current,116.00,"Сумська філія ПАТ ""Укртелеком""",23825401,юридична особа
УКРОП,"Івано-Франківська область, Івано-Франківськ, вулиця Михайла Грушевського, 21",51,2016-12-06,211,Оплата ефірного часу на ТБ,Телереклама,371525,"Івано-Франківська обласнапарторганізація політичної партії ""Українське обʼєднання патріотів - УКРОП""",39915162,Івано-Франківська область,"оплата за рекламні послуги з-но рах.ІЧ 295 від 05.12.2016 року У сумі 16000.00 грн., ПДВ - 20 % 3200.00 грн.",26007052513345,current,19200.00,"Івано-Франківське обласне телебачення ""Галичина""",13641427,юридична особа
УКРОП,"Київ, вулиця Михайла Грушевського, 1Д",70,2016-12-06,I206L122QY,Банківські послуги,Інші витрати,371445,"Івано-Франківська обласнапарторганізація політичної партії ""Українське обʼєднання патріотів - УКРОП""",39915162,Івано-Франківська область,"Комісія за виконання платежів в національній валюті, згідно з відкритою офертою банку N б/н від 11.08.2015 та тарифів банку, без ПДВ.",26007052513345,current,3.00,"ПАТ КБ ""Приватбанк""",14360570,юридична особа
УКРОП,"Київ, вулиця Михайла Грушевського, 1Д",70,2016-12-06,1206Б2ІРИУ,Банківські послуги,Інші витрати,370973,"Запозізька обласна парторганізація політичної партії ""Українське обʼєднання патріотів - УКРОП""",39923938,Запорізька область,"комісія за виконання платежів в національній валюті, згідно офертою банку №б/н від 13.08.2015",26009055720384,current,3.00,"ПАТ КБ ""Приватбанк""",14360570,юридична особа
УКРОП,"Київ, вулиця Михайла Грушевського, 1Д",70,2016-12-06,9,Банківські послуги,Інші витрати,370107,"Львівська обласна організація політичної партії ""Українське обʼєднання патріотів - УКРОП""",39923503,Львівська область,РКО,26001053838223,current,14.69,"ПАТ КБ ""Приватбанк""",14360570,юридична особа
УКРОП,"Київ, вулиця Гарматна, 31",60,2016-12-05,1038,Інші податки,Податкові платежі,374083,Центральний офіс,39479782,Київ,"101;39479782;Судовий збір за позовом ПОЛІТИЧНА ПАРТІЯ ""УКРАЇНСЬКЕ ОБ'ЄДНАННЯ ПАТРІОТІВ - УКРОП"" Солом'янський рай суд м. Києва Код бюджетної класифікації 22030101",26004052741642,current,689.00,УКДСУ у Соломʼянському районі м. Києва,38050812,юридична особа
УКРОП,"Київ, вулиця Гарматна, 31",60,2016-12-05,1037,Інші податки,Податкові платежі,374082,Центральний офіс,39479782,Київ,"101;39479782;Судовий збір за позовом ПОЛІТИЧНА ПАРТІЯ ""УКРАЇНСЬКЕ ОБ'ЄДНАННЯ ПАТРІОТІВ - УКРОП"" Солом'янський рай суд м. Києва Код бюджетної класифікації 22030101",26004052741642,current,1378.00,УКДСУ у Соломʼянському районі м. Києва,38050812,юридична особа
УКРОП,"Київ, вулиця Гарматна, 31",60,2016-12-05,1036,Інші податки,Податкові платежі,374081,Центральний офіс,39479782,Київ,"101;39479782;Судовий збір за позовом ПОЛІТИЧНА ПАРТІЯ ""УКРАЇНСЬКЕ ОБ'ЄДНАННЯ ПАТРІОТІВ - УКРОП"" Солом'янський рай суд м. Києва Код бюджетної класифікації 22030101",26004052741642,current,1378.00,УКДСУ у Соломʼянському районі м. Києва,38050812,юридична особа
УКРОП,"Львівська область, Львів, вулиця Джохара Дудаєва, 19",61,2016-12-05,71,Військовий збір,Податкові платежі,374023,"Львівська обласна організація політичної партії ""Українське обʼєднання патріотів - УКРОП""",39923503,Львівська область,"ВЗ 1,5% за 11.2016 р.",26001053838223,current,109.00,УДКСУ у Галицькому районі м. Львова,,юридична особа
УКРОП,"Львівська область, Львів, вулиця Стрийська, 35",62,2016-12-05,72,Сплата ЄСВ,Податкові платежі,373780,"Львівська обласна організація політичної партії ""Українське обʼєднання патріотів - УКРОП""",39923503,Львівська область,ЄСВ 22% з ЗП за 11.2016 р.,26001053838223,current,1588.00,Галицька ОДПІ ГУ ДФС у Львівській області,39508163,юридична особа
УКРОП,"Львівська область, Львів, вулиця Джохара Дудаєва, 19",63,2016-12-05,70,Податок на доходи,Податкові платежі,373561,"Львівська обласна організація політичної партії ""Українське обʼєднання патріотів - УКРОП""",39923503,Львівська область,ПДФО за 11.2016 р.,26001053838223,current,1175.00,УДКСУ у Галицькому районі м. Львова,38007573,юридична особа
УКРОП,"Львівська область, Львів",84,2016-12-05,73,"Заробітна плата, премії","Заробітна плата, лікарняні, вагітності, відрядження, компенсації",372986,"Львівська обласна організація політичної партії ""Українське обʼєднання патріотів - УКРОП""",39923503,Львівська область,запрплатаза 11.2016,26001053838223,current,873.04,Білошевська Наталія Миколаївна,,фізична особа
УКРОП,"Львівська область, Львів",84,2016-12-05,73,"Заробітна плата, премії","Заробітна плата, лікарняні, вагітності, відрядження, компенсації",372985,"Львівська обласна організація політичної партії ""Українське обʼєднання патріотів - УКРОП""",39923503,Львівська область,запрплата за 11.2016,26001053838223,current,5003.08,Батенко Катерина Миколаївна,,фізична особа
УКРОП,"Київ, вулиця Михайла Грушевського, 1Д",70,2016-12-05,120567,Банківські послуги,Інші витрати,372441,"Рівненська обласна організація політичної партії ""Українське обʼєднання патріотів - УКРОП""",39914504,Рівненська область,Комісія банку за виконання платежів,26005054719198,current,19.42,"ПАТ КБ ""Приватбанк""",14360570,юридична особа
УКРОП,"Київ, вулиця Михайла Грушевського, 1Д",70,2016-12-05,120566,Банківські послуги,Інші витрати,372440,"Рівненська обласна організація політичної партії ""Українське обʼєднання патріотів - УКРОП""",39914504,Рівненська область,Комісія банку за виконання платежів,26005054719198,current,3.00,"ПАТ КБ ""Приватбанк""",14360570,юридична особа
УКРОП,"Львівська область, Львів, вулиця Січових Стрільців, 5",79,2016-12-05,74,"Оренда будинків і приміщень та експлуатаційні витрати (прибирання, страхування орендованих будинків, охорона, сигналізація, ремонт, вивіз сміття, тощо)",Оренда нерухомості,372047,"Львівська обласна організація політичної партії ""Українське обʼєднання патріотів - УКРОП""",39923503,Львівська область,оренда приміщення за12.2016,26001053838223,current,5000.00,Савельєва Людмила Анатоліївна,2577216304,фізична особа
УКРОП,"Рівненська область, Рівне, вулиця Будівельників, 7",79,2016-12-05,65,"Оренда будинків і приміщень та експлуатаційні витрати (прибирання, страхування орендованих будинків, охорона, сигналізація, ремонт, вивіз сміття, тощо)",Оренда нерухомості,372003,"Рівненська обласна організація політичної партії ""Українське обʼєднання патріотів - УКРОП""",39914504,Рівненська область,оренда офісу за грудень,26005054719198,current,9710.00,"ТОВ ""Рівнеагроспецмонтаж""",00910699,юридична особа
УКРОП,"Київ, вулиця Антоновича, 112, 40",75,2016-12-05,1035,Поштові послуги та поширення друкованих матеріалів,Поштові послуги та поширення друкованих матеріалів,371593,Центральний офіс,39479782,Київ,"Оплата за послуги з доставки газет, зг. рах.№011/01 від 30.11.16 р. Без ПДВ",26004052741642,current,23176.00,"ТОВ ""ЕКСПЕРТ-СЕРВІС""",31863950,юридична особа
УКРОП,"Київ, вулиця Антоновича, 112, 40",75,2016-12-05,1034,Поштові послуги та поширення друкованих матеріалів,Поштові послуги та поширення друкованих матеріалів,371592,Центральний офіс,39479782,Київ,"Оплата за послуги з доставки газет, зг. рах.№512/01 від 05.12.16 р. Без ПДВ",26004052741642,current,10145.00,"ТОВ ""ЕКСПЕРТ-СЕРВІС""",31863950,юридична особа
УКРОП,"Київ, вулиця Михайла Грушевського, 1Д",70,2016-12-05,1202Б37РРУ,Банківські послуги,Інші витрати,370970,Центральний офіс,39479782,Київ,"Комісія за виконання платежів в національній валюті, згідно з відкритою офертою банку N б/н від 01.07.2015 та тарифів банку, без ПДВ.",26004052741642,current,3.00,"ПАТ КБ ""Приватбанк""",14360570,юридична особа
УКРОП,"Київ, вулиця Михайла Грушевського, 1Д",70,2016-12-05,120237РСУ,Банківські послуги,Інші витрати,370967,Центральний офіс,39479782,Київ,"Комісія за виконання платежів в національній валюті, згідно з відкритою офертою банку N б/н від 01.07.2015 та тарифів банку, без ПДВ.",26004052741642,current,3.00,"ПАТ КБ ""Приватбанк""",14360570,юридична особа
УКРОП,"Київ, вулиця Михайла Грушевського, 1Д",70,2016-12-05,120237РЕУ,Банківські послуги,Інші витрати,370966,Центральний офіс,39479782,Київ,"Комісія за виконання платежів в національній валюті, згідно з відкритою офертою банку N б/н від 01.07.2015 та тарифів банку, без ПДВ.",26004052741642,current,3.00,"ПАТ КБ ""Приватбанк""",14360570,юридична особа
УКРОП,"Київ, вулиця Михайла Грушевського, 1Д",70,2016-12-05,8,Банківські послуги,Інші витрати,370106,"Львівська обласна організація політичної партії ""Українське обʼєднання патріотів - УКРОП""",39923503,Львівська область,РКО,26001053838223,current,9.00,"ПАТ КБ ""Приватбанк""",14360570,юридична особа
УКРОП,"Дніпропетровська область, Дніпро́, проспект Слобожанський, 40А",77,2016-12-02,1029,"Оренда, ремонт та обслуговування автомобілів","Оренда, ремонт та обслуговування автомобілів",374161,Центральний офіс,39479782,Київ,"За дизпаливо та бензин А-95 згідно рахунку N 0088/1002570 від 02.12.16 р. У сумі 23697,97 грн., ПДВ - 20% 4739,59 грн.",26004052741642,current,30250.00,"ТОВ ""ПРОМ ГРАНТ ПЛЮС""",39726851,юридична особа
УКРОП,"Миколаївська область, Миколаїв, вулиця Миколаївська, 19",64,2016-12-02,1030,Повернення платежів партії,Повернення,374135,Центральний офіс,39479782,Київ,Часткове повернення поворотної фінансової допомоги згідно договору N 10-03/16-1 від 10.03.2016 р. Без ПДВ,26004052741642,current,17640.00,"Миколаївська обласна організація політичної партії ""Українське обʼєднання патріотів - УКРОП""",39953669,юридична особа
УКРОП,"Київ, вулиця Гарматна, 31",60,2016-12-02,1033,Інші податки,Податкові платежі,374080,Центральний офіс,39479782,Київ,"101;39479782;Судовий збір за позовом ПОЛІТИЧНА ПАРТІЯ ""УКРАЇНСЬКЕ ОБ'ЄДНАННЯ ПАТРІОТІВ - УКРОП"" Солом'янський рай суд м. Києва Код бюджетної класифікації 22030101",26004052741642,current,689.00,УКДСУ у Соломʼянському районі м. Києва,38050812,юридична особа
УКРОП,"Київ, вулиця Гарматна, 31",60,2016-12-02,1032,Інші податки,Податкові платежі,374079,Центральний офіс,39479782,Київ,"101;39479782;Судовий збір за позовом ПОЛІТИЧНА ПАРТІЯ ""УКРАЇНСЬКЕ ОБ'ЄДНАННЯ ПАТРІОТІВ - УКРОП"" Солом'янський рай суд м. Києва Код бюджетної класифікації 22030101",26004052741642,current,1378.00,УКДСУ у Соломʼянському районі м. Києва,38050812,юридична особа
УКРОП,"Київ, вулиця Гарматна, 31",60,2016-12-02,1031,Інші податки,Податкові платежі,374078,Центральний офіс,39479782,Київ,"101;39479782;Судовий збір за позовом ПОЛІТИЧНА ПАРТІЯ ""УКРАЇНСЬКЕ ОБ'ЄДНАННЯ ПАТРІОТІВ - УКРОП"" Солом'янський рай суд м. Києва Код бюджетної класифікації 22030101",26004052741642,current,1378.00,УКДСУ у Соломʼянському районі м. Києва,38050812,юридична особа
УКРОП,"Волинська область, Луцьк",53,2016-12-02,506,Витрати на розміщення зовнішньої реклами,Зовнішня реклама,372675,"Волинська обласна організація політичної партії ""Українське обʼєднання патріотів - УКРОП""",39946248,Волинська область,"За розміщення реклами на площині ,поклейка постера зг.рах.№71 від ЗОЛ 1.2016р. Без ПДВ",26007055507180,current,30525.00,Брикса Андрій Володимирович,3099707271,фізична особа
УКРОП,"Київ, вулиця Михайла Грушевського, 1Д",70,2016-12-02,БВ№16В1500011671,Банківські послуги,Інші витрати,372630,"Харківська обласна організація політичної партії ""Українське обʼєднання патріотів - УКРОП""",39973329,Харківська область,Комісія за обслугов.рах.,26001052207545,current,100.00,"ПАТ КБ ""Приватбанк""",14360570,юридична особа
УКРОП,"Київ, вулиця Михайла Грушевського, 1Д",70,2016-12-02,А86ау6§Мр655,Банківські послуги,Інші витрати,372616,"Житомирська обласна організація політичної партії ""Українське обʼєднання патріотів - УКРОП""",39925338,Житомирська область,"Комісія за виконання платежів в національній валюті, згідно з відкритою офертою банку N б/н від 17.08.2015 та тарифів банку, без ПДВ.",26000055804505,current,100.00,"ПАТ КБ ""Приватбанк""",14360570,юридична особа
УКРОП,"Київ, вулиця Михайла Грушевського, 1Д",70,2016-12-02,1591600006178,Банківські послуги,Інші витрати,372517,"Рівненська обласна організація політичної партії ""Українське обʼєднання патріотів - УКРОП""",39914504,Рівненська область,Комісія банку за касове обслуго ву ва н ня,26005054719198,current,3.02,"ПАТ КБ ""Приватбанк""",14360570,юридична особа
УКРОП,"Миколаївська область, Миколаїв, вулиця Чкалова, 169",79,2016-12-02,,"Оренда будинків і приміщень та експлуатаційні витрати (прибирання, страхування орендованих будинків, охорона, сигналізація, ремонт, вивіз сміття, тощо)",Оренда нерухомості,372152,"Миколаївська обласна організація політичної партії ""Українське обʼєднання патріотів - УКРОП""",39953669,Миколаївська область,Орендна плата за грудень 2016 р.по договору суборенди №2/2 нежитлового приміщення від 1.11.16 Р-,26001053221497,current,15570.00,"ТОВ Бізнес Центр ""Ніка""",40860798,юридична особа
УКРОП,"Волинська область, Рожищенський район, Рожище, вулиця Незалежності, 82",79,2016-12-02,507,"Оренда будинків і приміщень та експлуатаційні витрати (прибирання, страхування орендованих будинків, охорона, сигналізація, ремонт, вивіз сміття, тощо)",Оренда нерухомості,371973,"Волинська обласна організація політичної партії ""Українське обʼєднання патріотів - УКРОП""",39946248,Волинська область,За оренду приміщення зг.рах.№ 106 від 04.11.16р. Без ПДВ,26007055507180,current,176.42,Рожищенська районна друкарня,02465967,юридична особа
УКРОП,"Київська обл., Бородянський район, Немішаєве",79,2016-12-02,207,"Оренда будинків і приміщень та експлуатаційні витрати (прибирання, страхування орендованих будинків, охорона, сигналізація, ремонт, вивіз сміття, тощо)",Оренда нерухомості,371821,"Київська обласна організація політичної партії ""Українське обʼєднання патріотів - УКРОП""",39949818,Київська область,Плата за оренду у 12/2016 зг дог оренди N 12/09 від 12.09.16р. Без ПДВ,26003052766800,current,3000.00,Туржанська Наталія Миколаївна,2136421041,фізична особа
УКРОП,"Івано-Франківська область, Івано-Франківськ, вулиця Січових стрільців, 56",51,2016-12-02,210,Оплата ефірного часу на ТБ,Телереклама,371524,"Івано-Франківська обласнапарторганізація політичної партії ""Українське обʼєднання патріотів - УКРОП""",39915162,Івано-Франківська область,"Оплата з трансляцію рекламного ролика Укроп згідно рах.N0000079 від 02.12.2016 року У сумі 3510.00 гри., 1ІДВ - 20 % 702.00 грн.",26007052513345,current,4212.00,"TOB ""ТРК 3-Студія""",23797886,юридична особа
УКРОП,"Київ, вулиця Михайла Грушевського, 1Д",70,2016-12-02,AS6bu6qk2p,Банківські послуги,Інші витрати,371430,"Івано-Франківська обласнапарторганізація політичної партії ""Українське обʼєднання патріотів - УКРОП""",39915162,Івано-Франківська область,Комісія за обслуговування рахунку листопад 2016р. згідно договору банківського рахунку від 11.08.2015. без ПДВ,26007052513345,current,100.00,"ПАТ КБ ""Приватбанк""",14360570,юридична особа
УКРОП,"Київ, вулиця Михайла Грушевського, 1Д",70,2016-12-02,AS6bu6b2hp,Банківські послуги,Інші витрати,371429,"Чернівецька обласна регіональна парторганізація політичної партії ""Українське обʼєднання патріотів - УКРОП""",39914462,Чернівецька область,комісія за облсл.рах,26007051500149,current,100.00,"ПАТ КБ ""Приватбанк""",14360570,юридична особа
УКРОП,"Київ, вулиця Михайла Грушевського, 1Д",70,2016-12-02,AS6bu64rxp,Банківські послуги,Інші витрати,371428,"Київська міська організація політичної партії ""Українське обʼєднання патріотів - УКРОП""",39976560,Київ,"Комісія за обслуговування рахунку листопад 20]6р.згілно договору банківського рахунку від 04 09 2015, без ПДВ",26001052741968,current,100.00,"ПАТ КБ ""Приватбанк""",14360570,юридична особа
УКРОП,"Київ, вулиця Михайла Грушевського, 1Д",70,2016-12-02,AS6bu63bjp,Банківські послуги,Інші витрати,371427,"Полтавська обласна організація політичної партії ""Українське обʼєднання патріотів - УКРОП""",39947896,Полтавська область,"Комісія за обслуговування рахунку листопад 2016р. згідно договору банківського рахунку від 21.08.2015, без ПДВ",26003054616293,current,100.00,"ПАТ КБ ""Приватбанк""",14360570,юридична особа
УКРОП,"Київ, вулиця Михайла Грушевського, 1Д",70,2016-12-02,ЛМіІіибКр,Банківські послуги,Інші витрати,371343,"Тернопільська обласна регіональна парторганізація політичної партії ""Українське обʼєднання патріотів - УКРОП""",39943199,Тернопільська область,обслуговування системи Банк,26002055111187,current,100.00,"ПАТ КБ ""Приватбанк""",14360570,юридична особа
УКРОП,"Київ, вулиця Михайла Грушевського, 1Д",70,2016-12-02,АБ6Ьи792*р,Банківські послуги,Інші витрати,371217,"Херсонська обласна організація політичної партії ""Українське обʼєднання патріотів - УКРОП""",39904145,Херсонська область,Оплата комісії за касове обслуговування рахункуза листопад 2016 згідно договору банківського рахунку,26007052206397,current,18.21,"ПАТ КБ ""Приватбанк""",14360570,юридична особа
УКРОП,"Київ, вулиця Михайла Грушевського, 1Д",70,2016-12-02,А86Ьи70Ізр,Банківські послуги,Інші витрати,371205,"Вінницька обласна організація політичної партії ""Українське обʼєднання патріотів - УКРОП""",39901123,Вінницька область,Комісія банку,26002055324323,current,100.00,"ПАТ КБ ""Приватбанк""",14360570,юридична особа
УКРОП,"Київ, вулиця Михайла Грушевського, 1Д",70,2016-12-02,1202L2EPMY,Банківські послуги,Інші витрати,370972,"Івано-Франківська обласнапарторганізація політичної партії ""Українське обʼєднання патріотів - УКРОП""",39915162,Івано-Франківська область,"Комісія за виконання платежів в національній валюті, згідно з відкритою офертою банку N б/н від 11.08.2015 та тарифів банку, без ПДВ.",26007052513345,current,3.00,"ПАТ КБ ""Приватбанк""",14360570,юридична особа
УКРОП,"Київ, вулиця Михайла Грушевського, 1Д",70,2016-12-02,1202Б3Н2РУ,Банківські послуги,Інші витрати,370971,Центральний офіс,39479782,Київ,"Комісія за виконання платежів в національній валюті, згідно з відкритою офертою банку N б/н від 01.07.2015 та тарифів банку, без ПДВ.",26004052741642,current,3.00,"ПАТ КБ ""Приватбанк""",14360570,юридична особа
УКРОП,"Київ, вулиця Михайла Грушевського, 1Д",70,2016-12-02,12023Н2Р¥,Банківські послуги,Інші витрати,370969,Центральний офіс,39479782,Київ,"Комісія за виконання платежів в національній валюті, згідно з відкритою офертою банку N б/н від 01.07.2015 та тарифів банку, без ПДВ.",26004052741642,current,3.00,"ПАТ КБ ""Приватбанк""",14360570,юридична особа
УКРОП,"Київ, вулиця Михайла Грушевського, 1Д",70,2016-12-02,12023Н2¥,Банківські послуги,Інші витрати,370968,Центральний офіс,39479782,Київ,"Комісія за виконання платежів в національній валюті, згідно з відкритою офертою банку N б/н від 01.07.2015 та тарифів банку, без ПДВ.",26004052741642,current,3.00,"ПАТ КБ ""Приватбанк""",14360570,юридична особа
УКРОП,"Київ, вулиця Михайла Грушевського, 1Д",70,2016-12-02,7,Банківські послуги,Інші витрати,370105,"Львівська обласна організація політичної партії ""Українське обʼєднання патріотів - УКРОП""",39923503,Львівська область,РКО,26001053838223,current,100.00,"ПАТ КБ ""Приватбанк""",14360570,юридична особа
УКРОП,"Київ, Дніпровська набережна, 16",77,2016-12-01,1028,"Оренда, ремонт та обслуговування автомобілів","Оренда, ремонт та обслуговування автомобілів",374160,Центральний офіс,39479782,Київ,"За заміну задніх гальмівних колодок згідно рахунку № С4295867 від 01.12.2016 р. У сумі 2541,55 грн., ПДВ-20% 508,31",26004052741642,current,3049.86,"ТОВ ""АТЛАНТ-М ДНІПРОВСЬКА НАБЕРЕЖНА""",36824570,юридична особа
УКРОП,"Рівненська область, Рівне, вулиця Відінська, 8",61,2016-12-01,63,Військовий збір,Податкові платежі,374008,"Рівненська обласна організація політичної партії ""Українське обʼєднання патріотів - УКРОП""",39914504,Рівненська область,військовий збір за листопад 2016 р.,26005054719198,current,25.00,ДПІ у м. Рівне ГУ ДФС в Рівненській області,39550744,юридична особа
УКРОП,"Сумська область, Суми, вулиця Троїцька, 8",61,2016-12-01,291,Військовий збір,Податкові платежі,373959,"Сумська обласна організація політичної партії ""Українське обʼєднання патріотів - УКРОП""",39945637,Сумська область,"військовий збір 1,5% із заробітної плати за другу половину листопада 2016р.",26000055016685,current,18.74,УДКСУ у м. Суми,37970593,юридична особа
УКРОП,"Київська обл., Вишгородський район, Вишгород, вулиця Кургузова, 12",61,2016-12-01,204,Військовий збір,Податкові платежі,373931,"Київська обласна організація політичної партії ""Українське обʼєднання патріотів - УКРОП""",39949818,Київська область,101;39949818; Військовий збір із орендної плати Кроль ІС. (код 2961209683) утриман та перерахован повністю. Без ПДВ;;;,26003052766800,current,300.00,УДКСУ у Вишгородському районі Київської області,37868556,юридична особа
УКРОП,"Рівненська область, Рівне, вулиця Відінська, 8",62,2016-12-01,62,Сплата ЄСВ,Податкові платежі,373766,"Рівненська обласна організація політичної партії ""Українське обʼєднання патріотів - УКРОП""",39914504,Рівненська область,ЄСВ за листопад 2016 р.,26005054719198,current,330.00,ДПІ у м. Рівне ГУ ДФС в Рівненській області,39550744,юридична особа
УКРОП,"Сумська область, Суми, Покровська площа, 2",62,2016-12-01,289,Сплата ЄСВ,Податкові платежі,373732,"Сумська обласна організація політичної партії ""Українське обʼєднання патріотів - УКРОП""",39945637,Сумська область,єдиний внесок 22% на заробітну' плату' за другу' половину листопада 2016р.,26000055016685,current,205.00,ДПІ у м. Сумах,39563287,юридична особа
УКРОП,"Рівненська область, Рівне, вулиця Відінська, 8",63,2016-12-01,61,Податок на доходи,Податкові платежі,373543,"Рівненська обласна організація політичної партії ""Українське обʼєднання патріотів - УКРОП""",39914504,Рівненська область,ПДФО із заплати листопада 2016 р.,26005054719198,current,270.00,ДПІ у м. Рівне ГУ ДФС в Рівненській області,39550744,юридична особа
УКРОП,"Київська обл., Вишгородський район, Вишгород, вулиця Кургузова, 12",63,2016-12-01,205,Податок на доходи,Податкові платежі,373468,"Київська обласна організація політичної партії ""Українське обʼєднання патріотів - УКРОП""",39949818,Київська область,101;39949818; ПДФО (11010400) із орендною плати Кроль ІС. код 2961209683 утриман і перерахован повністю. Без ПДВ,26003052766800,current,3600.00,УДКСУ у Вишгородському районі Київської області,37868556,юридична особа
УКРОП,,84,2016-12-01,60,"Заробітна плата, премії","Заробітна плата, лікарняні, вагітності, відрядження, компенсації",372969,"Рівненська обласна організація політичної партії ""Українське обʼєднання патріотів - УКРОП""",39914504,Рівненська область,Заробітна плата за листопад 2016 р.,26005054719198,current,1207.50,Гордійчук Діана Юріївна,,фізична особа
УКРОП,,84,2016-12-01,161201СТ523798,"Заробітна плата, премії","Заробітна плата, лікарняні, вагітності, відрядження, компенсації",372845,"Сумська обласна організація політичної партії ""Українське обʼєднання патріотів - УКРОП""",39945637,Сумська область,заробітна плата за другу половину листопада 2016р.,26000055016685,current,784.03,Чаленко Ольга Андріївна,,фізична особа
УКРОП,,84,2016-12-01,161201СТ523798,"Заробітна плата, премії","Заробітна плата, лікарняні, вагітності, відрядження, компенсації",372844,"Сумська обласна організація політичної партії ""Українське обʼєднання патріотів - УКРОП""",39945637,Сумська область,заробітна плата за другу половину листопада 2016р.,26000055016685,current,221.78,Луговий Владислав Віталійович,,фізична особа
УКРОП,"Київ, вулиця Михайла Грушевського, 1Д",70,2016-12-01,А86аV55оxр657,Банківські послуги,Інші витрати,372618,"Запозізька обласна парторганізація політичної партії ""Українське обʼєднання патріотів - УКРОП""",39923938,Запорізька область,"комісія за обслуговування рахунку за листопад 2016р. Згідно договору банківського рахунку від 13.09.2015,без ПДВ",26009055720384,current,100.00,"ПАТ КБ ""Приватбанк""",14360570,юридична особа
УКРОП,"Київ, вулиця Михайла Грушевського, 1Д",70,2016-12-01,913636,Банківські послуги,Інші витрати,372601,"Рівненська обласна організація політичної партії ""Українське обʼєднання патріотів - УКРОП""",39914504,Рівненська область,Комісія банку за виконання платежів,26005054719198,current,3.00,"ПАТ КБ ""Приватбанк""",14360570,юридична особа
УКРОП,"Київ, вулиця Михайла Грушевського, 1Д",70,2016-12-01,6584,Банківські послуги,Інші витрати,372578,"Рівненська обласна організація політичної партії ""Українське обʼєднання патріотів - УКРОП""",39914504,Рівненська область,Комісія банку за обслуговування рахунку,26005054719198,current,100.00,"ПАТ КБ ""Приватбанк""",14360570,юридична особа
УКРОП,"Київ, вулиця Михайла Грушевського, 1Д",70,2016-12-01,1590700009143,Банківські послуги,Інші витрати,372482,"Полтавська обласна організація політичної партії ""Українське обʼєднання патріотів - УКРОП""",39947896,Полтавська область,Оплата комісії за касове обслуговування по ПОРППП УКР. ОБ'ЄДНАННЯ ПАТР.-УКРОП.,26003054616293,current,1.97,"ПАТ КБ ""Приватбанк""",14360570,юридична особа
УКРОП,"Київ, вулиця Михайла Грушевського, 1Д",70,2016-12-01,120165,Банківські послуги,Інші витрати,372439,"Рівненська обласна організація політичної партії ""Українське обʼєднання патріотів - УКРОП""",39914504,Рівненська область,Комісія Оанку за виконання платежів_,26005054719198,current,3.00,"ПАТ КБ ""Приватбанк""",14360570,юридична особа
УКРОП,"Київ, вулиця Михайла Грушевського, 1Д",70,2016-12-01,120164,Банківські послуги,Інші витрати,372438,"Рівненська обласна організація політичної партії ""Українське обʼєднання патріотів - УКРОП""",39914504,Рівненська область,Комісія банку за виконання платежів,26005054719198,current,3.00,"ПАТ КБ ""Приватбанк""",14360570,юридична особа
УКРОП,"Київ, вулиця Михайла Грушевського, 1Д",70,2016-12-01,120163,Банківські послуги,Інші витрати,372437,"Рівненська обласна організація політичної партії ""Українське обʼєднання патріотів - УКРОП""",39914504,Рівненська область,Комісія банку за виконання платежів,26005054719198,current,3.00,"ПАТ КБ ""Приватбанк""",14360570,юридична особа
УКРОП,"Київ, вулиця Спаська, 11",72,2016-12-01,1026,"Придбання, ремонт офісної техніки та програмного забезпечення (Бухгалтерські програми, Ліга.закон, домени)",Придбання офісної техніки та програмного забезпечення,372400,Центральний офіс,39479782,Київ,"Поновл. на 1 рік прог з ліцензією в електр вигл, що перед каналами Е8ЕТ Епфоіп! Ргоіесііоп Айуешей зг. Рах. №1037 від 30.11.2016 р. Без ПДВ",26004052741642,current,9180.00,"ТОВ ""ІДЕАЛСОФТ",37726865,юридична особа
УКРОП,"Рівненська область, Рівне, вулиця Будівельників, 7",79,2016-12-01,64,"Оренда будинків і приміщень та експлуатаційні витрати (прибирання, страхування орендованих будинків, охорона, сигналізація, ремонт, вивіз сміття, тощо)",Оренда нерухомості,372351,"Рівненська обласна організація політичної партії ""Українське обʼєднання патріотів - УКРОП""",39914504,Рівненська область,Компенсація витрат по електроенергії та,26005054719198,current,4601.01,"ТОВ ""Рівнеагроспецмонтаж""",00910699,юридична особа
УКРОП,Київ,79,2016-12-01,206,"Оренда будинків і приміщень та експлуатаційні витрати (прибирання, страхування орендованих будинків, охорона, сигналізація, ремонт, вивіз сміття, тощо)",Оренда нерухомості,371820,"Київська обласна організація політичної партії ""Українське обʼєднання патріотів - УКРОП""",39949818,Київська область,Плата за оренду приміщення у грудні 2016р. зг дог N 1 від 22.06.2016р та рах N 126 від 01.12.2016р. Без ПДВ Податки утримані та перераховані повністю.,26003052766800,current,16100.00,Кроль Ірина Семенівна,,фізична особа
УКРОП,"Київська обл., Києво-Святошинський район, Софіївська Борщагівка, Кільцева дорога, 4",77,2016-12-01,1027,"Оренда, ремонт та обслуговування автомобілів","Оренда, ремонт та обслуговування автомобілів",371619,Центральний офіс,39479782,Київ,"Діагностика електрообладнання з заміною автолампи Н8 згідно рах. №°САСТ-529706 від 30.11.2016 року У сумі 424,00, ПДВ - 20% 84,80",26004052741642,current,508.80,"ТОВ ""Автоцентр ""Прага Авто на Кільцевій""",35997739,юридична особа
УКРОП,"Кіровоградська область, Кропивницький",58,2016-12-01,68,"Виготовлення друкованих матеріалів (плакатів, листівок, буклетів та інших агітаційних матеріалів)",Друкована агітація,371607,"Кіровоградська обласна регіональна парторганізація політичної партії ""Українське обʼєднання патріотів - УКРОП""",39922803,Кіровоградська область,Оплата за доставку друк. видання,26009052911811,current,1920.00,"Кіровоградська дирекція ПАТ ""Укрпошта""",01185220,юридична особа
УКРОП,"Сумська область, Суми, Привокзальна площа, 5",75,2016-12-01,288,Поштові послуги та поширення друкованих матеріалів,Поштові послуги та поширення друкованих матеріалів,371601,"Сумська обласна організація політичної партії ""Українське обʼєднання патріотів - УКРОП""",39945637,Сумська область,"доставка рекл -інформ. Матеріалу, згідно рахунку № 2317 від 29 11.2016р.",26000055016685,current,11673.60,"Сумська дирекція ПАТ ""Укрпошта""",22981300,юридична особа
УКРОП,"Київ, вулиця Михайла Грушевського, 1Д",70,2016-12-01,Л86Ьи37рір,Банківські послуги,Інші витрати,371336,"Кіровоградська обласна регіональна парторганізація політичної партії ""Українське обʼєднання патріотів - УКРОП""",39922803,Кіровоградська область,Комісія за обслуговування рахунку,26009052911811,current,79.12,"ПАТ КБ ""Приватбанк""",14360570,юридична особа
УКРОП,"Київ, вулиця Михайла Грушевського, 1Д",70,2016-12-01,А86Ьи46ер,Банківські послуги,Інші витрати,371204,Центральний офіс,39479782,Київ,Комісія за обслуговування рахунку в листопаді 2016 зг.дог. Банківського рахунку від 01.07.15 без ПДВ,26004052741642,current,100.00,"ПАТ КБ ""Приватбанк""",14360570,юридична особа
УКРОП,"Київ, вулиця Михайла Грушевського, 1Д",70,2016-12-01,А§6Ьи7р,Банківські послуги,Інші витрати,371170,"Київська обласна організація політичної партії ""Українське обʼєднання патріотів - УКРОП""",39949818,Київська область,"Комісія за обслуговування рахунку листопад 2016р. згідно договору банківського рахунку від 21.08.2015, без ПДВ",26003052766800,current,100.00,"ПАТ КБ ""Приватбанк""",14360570,юридична особа
УКРОП,"Київ, вулиця Михайла Грушевського, 1Д",70,2016-12-01,15А08000020,Банківські послуги,Інші витрати,371100,"Херсонська обласна організація політичної партії ""Українське обʼєднання патріотів - УКРОП""",39904145,Херсонська область,Оплата комісії за касове обслуговування по ХОР ППП УОП- Укроп,26007052206397,current,8.25,"ПАТ КБ ""Приватбанк""",14360570,юридична особа
УКРОП,"Київ, вулиця Михайла Грушевського, 1Д",70,2016-12-01,120ШШМА,Банківські послуги,Інші витрати,370979,Центральний офіс,39479782,Київ,"Комісія за виконання платежів в національній валюті, згідно з відкритою офертою банку N б/н від 01.07.2015 та тарифів банку, без ПДВ.",26004052741642,current,3.00,"ПАТ КБ ""Приватбанк""",14360570,юридична особа
УКРОП,"Київ, вулиця Михайла Грушевського, 1Д",70,2016-12-01,1201ЬШИБУ,Банківські послуги,Інші витрати,370965,"Київська обласна організація політичної партії ""Українське обʼєднання патріотів - УКРОП""",39949818,Київська область,"Комісія за виконання платежів в національній валюті, згідно з відкритою офертою банку N б/н від 21.08.2015 та тарифів банку, без ПДВ.",26003052766800,current,3.00,"ПАТ КБ ""Приватбанк""",14360570,юридична особа
УКРОП,"Київ, вулиця Михайла Грушевського, 1Д",70,2016-12-01,1201Ь2НБОУ,Банківські послуги,Інші витрати,370964,"Кіровоградська обласна регіональна парторганізація політичної партії ""Українське обʼєднання патріотів - УКРОП""",39922803,Кіровоградська область,Комісія за розрахунково-касове обслуговування,26009052911811,current,3.00,"ПАТ КБ ""Приватбанк""",14360570,юридична особа
УКРОП,"Київ, вулиця Михайла Грушевського, 1Д",70,2016-12-01,1201Ь1Ш9У,Банківські послуги,Інші витрати,370963,"Київська обласна організація політичної партії ""Українське обʼєднання патріотів - УКРОП""",39949818,Київська область,Комісія за виконання,26003052766800,current,3.00,"ПАТ КБ ""Приватбанк""",14360570,юридична особа
УКРОП,"Київ, вулиця Михайла Грушевського, 1Д",70,2016-12-01,1201Ь1ИиЬУ,Банківські послуги,Інші витрати,370962,Центральний офіс,39479782,Київ,"Комісія за виконання платежів в національній валюті, згідно з відкритою офертою банку N б/н від 01.07.2015 та тарифів банку, без ПДВ.",26004052741642,current,3.00,"ПАТ КБ ""Приватбанк""",14360570,юридична особа
УКРОП,"Київ, вулиця Михайла Грушевського, 1Д",70,2016-12-01,1201ЫШСУ,Банківські послуги,Інші витрати,370961,"Київська обласна організація політичної партії ""Українське обʼєднання патріотів - УКРОП""",39949818,Київська область,"Комісія за виконання платежів в національній валюті, згідно з відкритою офертою банку N б/н від 21.08.2015 та тарифів банку, без ПДВ.",26003052766800,current,3.00,"ПАТ КБ ""Приватбанк""",14360570,юридична особа
УКРОП,"Київ, вулиця Михайла Грушевського, 1Д",70,2016-12-01,12012Р5¥,Банківські послуги,Інші витрати,370960,Центральний офіс,39479782,Київ,"Комісія за виконання платежів в національній валюті, згідно з відкритою офертою банку N б/н від 01.07.2015 та тарифів банку, без ПДВ.",26004052741642,current,3.00,"ПАТ КБ ""Приватбанк""",14360570,юридична особа
УКРОП,"Херсонська область, Херсон, провулок Козацький, 10",61,2016-11-30,115,Військовий збір,Податкові платежі,373854,"Херсонська обласна організація політичної партії ""Українське обʼєднання патріотів - УКРОП""",39904145,Херсонська область,військовий збір за листопад 2016,26007052206397,current,61.50,УДКСУ у м. Херсон,37959779,юридична особа
